{"text_format":"1","workbook":"xlsx","n_sheets":4,"sheets":["Coloration","Archives","Stats","Liste"],"not_rendered":{"charts":0,"images":3,"macros":1,"external_links":1,"defined_names":22,"comments":1,"pivot_tables":0},"unopened":[],"bounds":{"document_bytes":16777216,"sheet_cells":100000,"rows_first":2000,"rows_last":500,"rows_between":2000,"halvings":0,"cell_chars":16384,"cell_head_chars":4096},"cells_cut":0,"cells_raw":0,"read":"whole","date_system":"1900"}

{"sheet":"Coloration","index":0,"n_rows":6,"n_cols":18,"rows_kept":6,"cut":false,"hidden":false,"merged":[[0,2,0,4],[0,5,0,6],[0,0,0,1]]}
[null,null,"SUIVI COLORATEUR",null,null,"       R-TE-FOR-005   -R01",null,null,"Fanny",300,null,"Changement Colorateur",{"$f":"SUMIFS(B:B,I:I,\"colo\")","v":0}]
["N° de portoir","Nb Lames","Date","Heure","Etuve","HES/Pas/Colo Spé","Nb de colos spé différentes","Technicien Colo","Coloration","Heure\nMis à colorer","N° lot Alcool","N° Lot Xylene","N° lot Hematoxyline","N° Lot Cabonate","N° Lot Eosine","N° lot Safran","N°lot Film"]
[1,null,null,42856.112673611111,"37°",null,null,null,null,null,null,null,null,null,null,null,null,"37°= 12h de sechage"]
[1,null,null,42856.77239583333,"20 min",null,null,null,null,null,null,null,null,null,null,null,null,"20 min = 20 min de sécchage"]
[1,null,null,42856.260416666664,"Macro",null,null,null,null,null,null,null,null,null,null,null,null,"Macro= 1h de séchage"]
[null,null,null,null,null,null,null,null,null,null,null,null,null,null,null,null,null,"Non = pas des échage"]

{"sheet":"Archives","index":1,"n_rows":3,"n_cols":18,"rows_kept":3,"cut":false,"hidden":false,"merged":[[0,5,0,6]]}
[null,null,"SUIVI COLORATEUR",null,null,"R-TE-FOR-005   -R01"]
["N° de portoir","Nb Lames","Date","Heure","Etuve","HES/Pas/Colo Spé","Nb de colos spé différentes","Technicien Colo","Coloration","Heure\nMis à colorer","N° lot Alcool","N° Lot Xylene","N° lot Hematoxyline","N° Lot Cabonate","N° Lot Eosine","N° lot Safran","N° lot Film","Date de coloration"]
[1,1,"2017-05-01",42856.737673611111,"non","Hes",1,"Fanny","Colo",42856.742314814815,"17B224007","17C144003",372371,"K46909980","FN1330836","16G0300002",4442208,"2017-05-01"]

{"sheet":"Stats","index":2,"n_rows":398,"n_cols":10,"rows_kept":398,"cut":false,"hidden":false,"merged":[]}
[null,"Date"]
[null,"01/05/2017"]
["Nb total Lames",{"$f":"SUMIF(Archives!R:R,B2,Archives!B:B)","v":1},null,"Janvier",null,"Avril",null,"Juillet",null,"Octobre"]
["Nb HE",{"$f":"SUMIFS(Archives!B:B,Archives!F:F,\"HES\",Archives!R:R,B2)","v":1},null,"Fevrier",null,"Mai",null,"Aout",null,"Novembre"]
["Nb PAS",{"$f":"SUMIFS(Archives!B:B,Archives!F:F,\"PAS\",Archives!R:R,B2)","v":0},null,"Mars",null,"Juin",null,"Septembre",null,"Décembre"]
["Nb Colos Spé",{"$f":"SUMIFS(Archives!B:B,Archives!F:F,\"Colo Spé\",Archives!R:R,B2)","v":0}]
["Nb Colos ≠",{"$f":"SUMIFS(Archives!G:G,Archives!F:F,\"Colo Spé\",Archives!R:R,B2)","v":0}]
[]
[]
[null,"Nb total Lames","Nb HE","Nb PAS","Nb Colos Spé","Nb Colos ≠"]
["2017-01-01",{"$f":"SUMIF(Archives!R:R,A11,Archives!B:B)","v":0},{"$f":"SUMIFS(Archives!B:B,Archives!F:F,\"HES\",Archives!R:R,A11)","v":0},{"$f":"SUMIFS(Archives!B:B,Archives!F:F,\"PAS\",Archives!R:R,A11)","v":0},{"$f":"SUMIFS(Archives!B:B,Archives!F:F,\"Colo Spé\",Archives!R:R,A11)","v":0},{"$f":"SUMIFS(Archives!G:G,Archives!F:F,\"Colo Spé\",Archives!R:R,A11)","v":0}]
["2017-01-02",{"$f":"SUMIF(Archives!R:R,A12,Archives!B:B)","v":0},{"$f":"SUMIFS(Archives!B:B,Archives!F:F,\"HES\",Archives!R:R,A12)","v":0},{"$f":"SUMIFS(Archives!B:B,Archives!F:F,\"PAS\",Archives!R:R,A12)","v":0},{"$f":"SUMIFS(Archives!B:B,Archives!F:F,\"Colo Spé\",Archives!R:R,A12)","v":0},{"$f":"SUMIFS(Archives!G:G,Archives!F:F,\"Colo Spé\",Archives!R:R,A12)","v":0}]
["2017-01-03",{"$f":"SUMIF(Archives!R:R,A13,Archives!B:B)","v":0},{"$f":"SUMIFS(Archives!B:B,Archives!F:F,\"HES\",Archives!R:R,A13)","v":0},{"$f":"SUMIFS(Archives!B:B,Archives!F:F,\"PAS\",Archives!R:R,A13)","v":0},{"$f":"SUMIFS(Archives!B:B,Archives!F:F,\"Colo Spé\",Archives!R:R,A13)","v":0},{"$f":"SUMIFS(Archives!G:G,Archives!F:F,\"Colo Spé\",Archives!R:R,A13)","v":0}]
["2017-01-04",{"$f":"SUMIF(Archives!R:R,A14,Archives!B:B)","v":0},{"$f":"SUMIFS(Archives!B:B,Archives!F:F,\"HES\",Archives!R:R,A14)","v":0},{"$f":"SUMIFS(Archives!B:B,Archives!F:F,\"PAS\",Archives!R:R,A14)","v":0},{"$f":"SUMIFS(Archives!B:B,Archives!F:F,\"Colo Spé\",Archives!R:R,A14)","v":0},{"$f":"SUMIFS(Archives!G:G,Archives!F:F,\"Colo Spé\",Archives!R:R,A14)","v":0}]
["2017-01-05",{"$f":"SUMIF(Archives!R:R,A15,Archives!B:B)","v":0},{"$f":"SUMIFS(Archives!B:B,Archives!F:F,\"HES\",Archives!R:R,A15)","v":0},{"$f":"SUMIFS(Archives!B:B,Archives!F:F,\"PAS\",Archives!R:R,A15)","v":0},{"$f":"SUMIFS(Archives!B:B,Archives!F:F,\"Colo Spé\",Archives!R:R,A15)","v":0},{"$f":"SUMIFS(Archives!G:G,Archives!F:F,\"Colo Spé\",Archives!R:R,A15)","v":0}]
["2017-01-06",{"$f":"SUMIF(Archives!R:R,A16,Archives!B:B)","v":0},{"$f":"SUMIFS(Archives!B:B,Archives!F:F,\"HES\",Archives!R:R,A16)","v":0},{"$f":"SUMIFS(Archives!B:B,Archives!F:F,\"PAS\",Archives!R:R,A16)","v":0},{"$f":"SUMIFS(Archives!B:B,Archives!F:F,\"Colo Spé\",Archives!R:R,A16)","v":0},{"$f":"SUMIFS(Archives!G:G,Archives!F:F,\"Colo Spé\",Archives!R:R,A16)","v":0}]
["2017-01-07",{"$f":"SUMIF(Archives!R:R,A17,Archives!B:B)","v":0},{"$f":"SUMIFS(Archives!B:B,Archives!F:F,\"HES\",Archives!R:R,A17)","v":0},{"$f":"SUMIFS(Archives!B:B,Archives!F:F,\"PAS\",Archives!R:R,A17)","v":0},{"$f":"SUMIFS(Archives!B:B,Archives!F:F,\"Colo Spé\",Archives!R:R,A17)","v":0},{"$f":"SUMIFS(Archives!G:G,Archives!F:F,\"Colo Spé\",Archives!R:R,A17)","v":0}]
["2017-01-08",{"$f":"SUMIF(Archives!R:R,A18,Archives!B:B)","v":0},{"$f":"SUMIFS(Archives!B:B,Archives!F:F,\"HES\",Archives!R:R,A18)","v":0},{"$f":"SUMIFS(Archives!B:B,Archives!F:F,\"PAS\",Archives!R:R,A18)","v":0},{"$f":"SUMIFS(Archives!B:B,Archives!F:F,\"Colo Spé\",Archives!R:R,A18)","v":0},{"$f":"SUMIFS(Archives!G:G,Archives!F:F,\"Colo Spé\",Archives!R:R,A18)","v":0}]
["2017-01-09",{"$f":"SUMIF(Archives!R:R,A19,Archives!B:B)","v":0},{"$f":"SUMIFS(Archives!B:B,Archives!F:F,\"HES\",Archives!R:R,A19)","v":0},{"$f":"SUMIFS(Archives!B:B,Archives!F:F,\"PAS\",Archives!R:R,A19)","v":0},{"$f":"SUMIFS(Archives!B:B,Archives!F:F,\"Colo Spé\",Archives!R:R,A19)","v":0},{"$f":"SUMIFS(Archives!G:G,Archives!F:F,\"Colo Spé\",Archives!R:R,A19)","v":0}]
["2017-01-10",{"$f":"SUMIF(Archives!R:R,A20,Archives!B:B)","v":0},{"$f":"SUMIFS(Archives!B:B,Archives!F:F,\"HES\",Archives!R:R,A20)","v":0},{"$f":"SUMIFS(Archives!B:B,Archives!F:F,\"PAS\",Archives!R:R,A20)","v":0},{"$f":"SUMIFS(Archives!B:B,Archives!F:F,\"Colo Spé\",Archives!R:R,A20)","v":0},{"$f":"SUMIFS(Archives!G:G,Archives!F:F,\"Colo Spé\",Archives!R:R,A20)","v":0}]
["2017-01-11",{"$f":"SUMIF(Archives!R:R,A21,Archives!B:B)","v":0},{"$f":"SUMIFS(Archives!B:B,Archives!F:F,\"HES\",Archives!R:R,A21)","v":0},{"$f":"SUMIFS(Archives!B:B,Archives!F:F,\"PAS\",Archives!R:R,A21)","v":0},{"$f":"SUMIFS(Archives!B:B,Archives!F:F,\"Colo Spé\",Archives!R:R,A21)","v":0},{"$f":"SUMIFS(Archives!G:G,Archives!F:F,\"Colo Spé\",Archives!R:R,A21)","v":0}]
["2017-01-12",{"$f":"SUMIF(Archives!R:R,A22,Archives!B:B)","v":0},{"$f":"SUMIFS(Archives!B:B,Archives!F:F,\"HES\",Archives!R:R,A22)","v":0},{"$f":"SUMIFS(Archives!B:B,Archives!F:F,\"PAS\",Archives!R:R,A22)","v":0},{"$f":"SUMIFS(Archives!B:B,Archives!F:F,\"Colo Spé\",Archives!R:R,A22)","v":0},{"$f":"SUMIFS(Archives!G:G,Archives!F:F,\"Colo Spé\",Archives!R:R,A22)","v":0}]
["2017-01-13",{"$f":"SUMIF(Archives!R:R,A23,Archives!B:B)","v":0},{"$f":"SUMIFS(Archives!B:B,Archives!F:F,\"HES\",Archives!R:R,A23)","v":0},{"$f":"SUMIFS(Archives!B:B,Archives!F:F,\"PAS\",Archives!R:R,A23)","v":0},{"$f":"SUMIFS(Archives!B:B,Archives!F:F,\"Colo Spé\",Archives!R:R,A23)","v":0},{"$f":"SUMIFS(Archives!G:G,Archives!F:F,\"Colo Spé\",Archives!R:R,A23)","v":0}]
["2017-01-14",{"$f":"SUMIF(Archives!R:R,A24,Archives!B:B)","v":0},{"$f":"SUMIFS(Archives!B:B,Archives!F:F,\"HES\",Archives!R:R,A24)","v":0},{"$f":"SUMIFS(Archives!B:B,Archives!F:F,\"PAS\",Archives!R:R,A24)","v":0},{"$f":"SUMIFS(Archives!B:B,Archives!F:F,\"Colo Spé\",Archives!R:R,A24)","v":0},{"$f":"SUMIFS(Archives!G:G,Archives!F:F,\"Colo Spé\",Archives!R:R,A24)","v":0}]
["2017-01-15",{"$f":"SUMIF(Archives!R:R,A25,Archives!B:B)","v":0},{"$f":"SUMIFS(Archives!B:B,Archives!F:F,\"HES\",Archives!R:R,A25)","v":0},{"$f":"SUMIFS(Archives!B:B,Archives!F:F,\"PAS\",Archives!R:R,A25)","v":0},{"$f":"SUMIFS(Archives!B:B,Archives!F:F,\"Colo Spé\",Archives!R:R,A25)","v":0},{"$f":"SUMIFS(Archives!G:G,Archives!F:F,\"Colo Spé\",Archives!R:R,A25)","v":0}]
["2017-01-16",{"$f":"SUMIF(Archives!R:R,A26,Archives!B:B)","v":0},{"$f":"SUMIFS(Archives!B:B,Archives!F:F,\"HES\",Archives!R:R,A26)","v":0},{"$f":"SUMIFS(Archives!B:B,Archives!F:F,\"PAS\",Archives!R:R,A26)","v":0},{"$f":"SUMIFS(Archives!B:B,Archives!F:F,\"Colo Spé\",Archives!R:R,A26)","v":0},{"$f":"SUMIFS(Archives!G:G,Archives!F:F,\"Colo Spé\",Archives!R:R,A26)","v":0}]
["2017-01-17",{"$f":"SUMIF(Archives!R:R,A27,Archives!B:B)","v":0},{"$f":"SUMIFS(Archives!B:B,Archives!F:F,\"HES\",Archives!R:R,A27)","v":0},{"$f":"SUMIFS(Archives!B:B,Archives!F:F,\"PAS\",Archives!R:R,A27)","v":0},{"$f":"SUMIFS(Archives!B:B,Archives!F:F,\"Colo Spé\",Archives!R:R,A27)","v":0},{"$f":"SUMIFS(Archives!G:G,Archives!F:F,\"Colo Spé\",Archives!R:R,A27)","v":0}]
["2017-01-18",{"$f":"SUMIF(Archives!R:R,A28,Archives!B:B)","v":0},{"$f":"SUMIFS(Archives!B:B,Archives!F:F,\"HES\",Archives!R:R,A28)","v":0},{"$f":"SUMIFS(Archives!B:B,Archives!F:F,\"PAS\",Archives!R:R,A28)","v":0},{"$f":"SUMIFS(Archives!B:B,Archives!F:F,\"Colo Spé\",Archives!R:R,A28)","v":0},{"$f":"SUMIFS(Archives!G:G,Archives!F:F,\"Colo Spé\",Archives!R:R,A28)","v":0}]
["2017-01-19",{"$f":"SUMIF(Archives!R:R,A29,Archives!B:B)","v":0},{"$f":"SUMIFS(Archives!B:B,Archives!F:F,\"HES\",Archives!R:R,A29)","v":0},{"$f":"SUMIFS(Archives!B:B,Archives!F:F,\"PAS\",Archives!R:R,A29)","v":0},{"$f":"SUMIFS(Archives!B:B,Archives!F:F,\"Colo Spé\",Archives!R:R,A29)","v":0},{"$f":"SUMIFS(Archives!G:G,Archives!F:F,\"Colo Spé\",Archives!R:R,A29)","v":0}]
["2017-01-20",{"$f":"SUMIF(Archives!R:R,A30,Archives!B:B)","v":0},{"$f":"SUMIFS(Archives!B:B,Archives!F:F,\"HES\",Archives!R:R,A30)","v":0},{"$f":"SUMIFS(Archives!B:B,Archives!F:F,\"PAS\",Archives!R:R,A30)","v":0},{"$f":"SUMIFS(Archives!B:B,Archives!F:F,\"Colo Spé\",Archives!R:R,A30)","v":0},{"$f":"SUMIFS(Archives!G:G,Archives!F:F,\"Colo Spé\",Archives!R:R,A30)","v":0}]
["2017-01-21",{"$f":"SUMIF(Archives!R:R,A31,Archives!B:B)","v":0},{"$f":"SUMIFS(Archives!B:B,Archives!F:F,\"HES\",Archives!R:R,A31)","v":0},{"$f":"SUMIFS(Archives!B:B,Archives!F:F,\"PAS\",Archives!R:R,A31)","v":0},{"$f":"SUMIFS(Archives!B:B,Archives!F:F,\"Colo Spé\",Archives!R:R,A31)","v":0},{"$f":"SUMIFS(Archives!G:G,Archives!F:F,\"Colo Spé\",Archives!R:R,A31)","v":0}]
["2017-01-22",{"$f":"SUMIF(Archives!R:R,A32,Archives!B:B)","v":0},{"$f":"SUMIFS(Archives!B:B,Archives!F:F,\"HES\",Archives!R:R,A32)","v":0},{"$f":"SUMIFS(Archives!B:B,Archives!F:F,\"PAS\",Archives!R:R,A32)","v":0},{"$f":"SUMIFS(Archives!B:B,Archives!F:F,\"Colo Spé\",Archives!R:R,A32)","v":0},{"$f":"SUMIFS(Archives!G:G,Archives!F:F,\"Colo Spé\",Archives!R:R,A32)","v":0}]
["2017-01-23",{"$f":"SUMIF(Archives!R:R,A33,Archives!B:B)","v":0},{"$f":"SUMIFS(Archives!B:B,Archives!F:F,\"HES\",Archives!R:R,A33)","v":0},{"$f":"SUMIFS(Archives!B:B,Archives!F:F,\"PAS\",Archives!R:R,A33)","v":0},{"$f":"SUMIFS(Archives!B:B,Archives!F:F,\"Colo Spé\",Archives!R:R,A33)","v":0},{"$f":"SUMIFS(Archives!G:G,Archives!F:F,\"Colo Spé\",Archives!R:R,A33)","v":0}]
["2017-01-24",{"$f":"SUMIF(Archives!R:R,A34,Archives!B:B)","v":0},{"$f":"SUMIFS(Archives!B:B,Archives!F:F,\"HES\",Archives!R:R,A34)","v":0},{"$f":"SUMIFS(Archives!B:B,Archives!F:F,\"PAS\",Archives!R:R,A34)","v":0},{"$f":"SUMIFS(Archives!B:B,Archives!F:F,\"Colo Spé\",Archives!R:R,A34)","v":0},{"$f":"SUMIFS(Archives!G:G,Archives!F:F,\"Colo Spé\",Archives!R:R,A34)","v":0}]
["2017-01-25",{"$f":"SUMIF(Archives!R:R,A35,Archives!B:B)","v":0},{"$f":"SUMIFS(Archives!B:B,Archives!F:F,\"HES\",Archives!R:R,A35)","v":0},{"$f":"SUMIFS(Archives!B:B,Archives!F:F,\"PAS\",Archives!R:R,A35)","v":0},{"$f":"SUMIFS(Archives!B:B,Archives!F:F,\"Colo Spé\",Archives!R:R,A35)","v":0},{"$f":"SUMIFS(Archives!G:G,Archives!F:F,\"Colo Spé\",Archives!R:R,A35)","v":0}]
["2017-01-26",{"$f":"SUMIF(Archives!R:R,A36,Archives!B:B)","v":0},{"$f":"SUMIFS(Archives!B:B,Archives!F:F,\"HES\",Archives!R:R,A36)","v":0},{"$f":"SUMIFS(Archives!B:B,Archives!F:F,\"PAS\",Archives!R:R,A36)","v":0},{"$f":"SUMIFS(Archives!B:B,Archives!F:F,\"Colo Spé\",Archives!R:R,A36)","v":0},{"$f":"SUMIFS(Archives!G:G,Archives!F:F,\"Colo Spé\",Archives!R:R,A36)","v":0}]
["2017-01-27",{"$f":"SUMIF(Archives!R:R,A37,Archives!B:B)","v":0},{"$f":"SUMIFS(Archives!B:B,Archives!F:F,\"HES\",Archives!R:R,A37)","v":0},{"$f":"SUMIFS(Archives!B:B,Archives!F:F,\"PAS\",Archives!R:R,A37)","v":0},{"$f":"SUMIFS(Archives!B:B,Archives!F:F,\"Colo Spé\",Archives!R:R,A37)","v":0},{"$f":"SUMIFS(Archives!G:G,Archives!F:F,\"Colo Spé\",Archives!R:R,A37)","v":0}]
["2017-01-28",{"$f":"SUMIF(Archives!R:R,A38,Archives!B:B)","v":0},{"$f":"SUMIFS(Archives!B:B,Archives!F:F,\"HES\",Archives!R:R,A38)","v":0},{"$f":"SUMIFS(Archives!B:B,Archives!F:F,\"PAS\",Archives!R:R,A38)","v":0},{"$f":"SUMIFS(Archives!B:B,Archives!F:F,\"Colo Spé\",Archives!R:R,A38)","v":0},{"$f":"SUMIFS(Archives!G:G,Archives!F:F,\"Colo Spé\",Archives!R:R,A38)","v":0}]
["2017-01-29",{"$f":"SUMIF(Archives!R:R,A39,Archives!B:B)","v":0},{"$f":"SUMIFS(Archives!B:B,Archives!F:F,\"HES\",Archives!R:R,A39)","v":0},{"$f":"SUMIFS(Archives!B:B,Archives!F:F,\"PAS\",Archives!R:R,A39)","v":0},{"$f":"SUMIFS(Archives!B:B,Archives!F:F,\"Colo Spé\",Archives!R:R,A39)","v":0},{"$f":"SUMIFS(Archives!G:G,Archives!F:F,\"Colo Spé\",Archives!R:R,A39)","v":0}]
["2017-01-30",{"$f":"SUMIF(Archives!R:R,A40,Archives!B:B)","v":0},{"$f":"SUMIFS(Archives!B:B,Archives!F:F,\"HES\",Archives!R:R,A40)","v":0},{"$f":"SUMIFS(Archives!B:B,Archives!F:F,\"PAS\",Archives!R:R,A40)","v":0},{"$f":"SUMIFS(Archives!B:B,Archives!F:F,\"Colo Spé\",Archives!R:R,A40)","v":0},{"$f":"SUMIFS(Archives!G:G,Archives!F:F,\"Colo Spé\",Archives!R:R,A40)","v":0}]
["2017-01-31",{"$f":"SUMIF(Archives!R:R,A41,Archives!B:B)","v":0},{"$f":"SUMIFS(Archives!B:B,Archives!F:F,\"HES\",Archives!R:R,A41)","v":0},{"$f":"SUMIFS(Archives!B:B,Archives!F:F,\"PAS\",Archives!R:R,A41)","v":0},{"$f":"SUMIFS(Archives!B:B,Archives!F:F,\"Colo Spé\",Archives!R:R,A41)","v":0},{"$f":"SUMIFS(Archives!G:G,Archives!F:F,\"Colo Spé\",Archives!R:R,A41)","v":0}]
["TotaL Janvier",{"$f":"SUM(B11:B41)","v":0},{"$f":"SUM(C11:C41)","v":0},0,0,0]
[]
["2017-02-01",{"$f":"SUMIF(Archives!R:R,A44,Archives!B:B)","v":0},{"$f":"SUMIFS(Archives!B:B,Archives!F:F,\"HES\",Archives!R:R,A44)","v":0},{"$f":"SUMIFS(Archives!B:B,Archives!F:F,\"PAS\",Archives!R:R,A44)","v":0},{"$f":"SUMIFS(Archives!B:B,Archives!F:F,\"Colo Spé\",Archives!R:R,A44)","v":0},{"$f":"SUMIFS(Archives!G:G,Archives!F:F,\"Colo Spé\",Archives!R:R,A44)","v":0}]
["2017-02-02",{"$f":"SUMIF(Archives!R:R,A45,Archives!B:B)","v":0},{"$f":"SUMIFS(Archives!B:B,Archives!F:F,\"HES\",Archives!R:R,A45)","v":0},{"$f":"SUMIFS(Archives!B:B,Archives!F:F,\"PAS\",Archives!R:R,A45)","v":0},{"$f":"SUMIFS(Archives!B:B,Archives!F:F,\"Colo Spé\",Archives!R:R,A45)","v":0},{"$f":"SUMIFS(Archives!G:G,Archives!F:F,\"Colo Spé\",Archives!R:R,A45)","v":0}]
["2017-02-03",{"$f":"SUMIF(Archives!R:R,A46,Archives!B:B)","v":0},{"$f":"SUMIFS(Archives!B:B,Archives!F:F,\"HES\",Archives!R:R,A46)","v":0},{"$f":"SUMIFS(Archives!B:B,Archives!F:F,\"PAS\",Archives!R:R,A46)","v":0},{"$f":"SUMIFS(Archives!B:B,Archives!F:F,\"Colo Spé\",Archives!R:R,A46)","v":0},{"$f":"SUMIFS(Archives!G:G,Archives!F:F,\"Colo Spé\",Archives!R:R,A46)","v":0}]
["2017-02-04",{"$f":"SUMIF(Archives!R:R,A47,Archives!B:B)","v":0},{"$f":"SUMIFS(Archives!B:B,Archives!F:F,\"HES\",Archives!R:R,A47)","v":0},{"$f":"SUMIFS(Archives!B:B,Archives!F:F,\"PAS\",Archives!R:R,A47)","v":0},{"$f":"SUMIFS(Archives!B:B,Archives!F:F,\"Colo Spé\",Archives!R:R,A47)","v":0},{"$f":"SUMIFS(Archives!G:G,Archives!F:F,\"Colo Spé\",Archives!R:R,A47)","v":0}]
["2017-02-05",{"$f":"SUMIF(Archives!R:R,A48,Archives!B:B)","v":0},{"$f":"SUMIFS(Archives!B:B,Archives!F:F,\"HES\",Archives!R:R,A48)","v":0},{"$f":"SUMIFS(Archives!B:B,Archives!F:F,\"PAS\",Archives!R:R,A48)","v":0},{"$f":"SUMIFS(Archives!B:B,Archives!F:F,\"Colo Spé\",Archives!R:R,A48)","v":0},{"$f":"SUMIFS(Archives!G:G,Archives!F:F,\"Colo Spé\",Archives!R:R,A48)","v":0}]
["2017-02-06",{"$f":"SUMIF(Archives!R:R,A49,Archives!B:B)","v":0},{"$f":"SUMIFS(Archives!B:B,Archives!F:F,\"HES\",Archives!R:R,A49)","v":0},{"$f":"SUMIFS(Archives!B:B,Archives!F:F,\"PAS\",Archives!R:R,A49)","v":0},{"$f":"SUMIFS(Archives!B:B,Archives!F:F,\"Colo Spé\",Archives!R:R,A49)","v":0},{"$f":"SUMIFS(Archives!G:G,Archives!F:F,\"Colo Spé\",Archives!R:R,A49)","v":0}]
["2017-02-07",{"$f":"SUMIF(Archives!R:R,A50,Archives!B:B)","v":0},{"$f":"SUMIFS(Archives!B:B,Archives!F:F,\"HES\",Archives!R:R,A50)","v":0},{"$f":"SUMIFS(Archives!B:B,Archives!F:F,\"PAS\",Archives!R:R,A50)","v":0},{"$f":"SUMIFS(Archives!B:B,Archives!F:F,\"Colo Spé\",Archives!R:R,A50)","v":0},{"$f":"SUMIFS(Archives!G:G,Archives!F:F,\"Colo Spé\",Archives!R:R,A50)","v":0}]
["2017-02-08",{"$f":"SUMIF(Archives!R:R,A51,Archives!B:B)","v":0},{"$f":"SUMIFS(Archives!B:B,Archives!F:F,\"HES\",Archives!R:R,A51)","v":0},{"$f":"SUMIFS(Archives!B:B,Archives!F:F,\"PAS\",Archives!R:R,A51)","v":0},{"$f":"SUMIFS(Archives!B:B,Archives!F:F,\"Colo Spé\",Archives!R:R,A51)","v":0},{"$f":"SUMIFS(Archives!G:G,Archives!F:F,\"Colo Spé\",Archives!R:R,A51)","v":0}]
["2017-02-09",{"$f":"SUMIF(Archives!R:R,A52,Archives!B:B)","v":0},{"$f":"SUMIFS(Archives!B:B,Archives!F:F,\"HES\",Archives!R:R,A52)","v":0},{"$f":"SUMIFS(Archives!B:B,Archives!F:F,\"PAS\",Archives!R:R,A52)","v":0},{"$f":"SUMIFS(Archives!B:B,Archives!F:F,\"Colo Spé\",Archives!R:R,A52)","v":0},{"$f":"SUMIFS(Archives!G:G,Archives!F:F,\"Colo Spé\",Archives!R:R,A52)","v":0}]
["2017-02-10",{"$f":"SUMIF(Archives!R:R,A53,Archives!B:B)","v":0},{"$f":"SUMIFS(Archives!B:B,Archives!F:F,\"HES\",Archives!R:R,A53)","v":0},{"$f":"SUMIFS(Archives!B:B,Archives!F:F,\"PAS\",Archives!R:R,A53)","v":0},{"$f":"SUMIFS(Archives!B:B,Archives!F:F,\"Colo Spé\",Archives!R:R,A53)","v":0},{"$f":"SUMIFS(Archives!G:G,Archives!F:F,\"Colo Spé\",Archives!R:R,A53)","v":0}]
["2017-02-11",{"$f":"SUMIF(Archives!R:R,A54,Archives!B:B)","v":0},{"$f":"SUMIFS(Archives!B:B,Archives!F:F,\"HES\",Archives!R:R,A54)","v":0},{"$f":"SUMIFS(Archives!B:B,Archives!F:F,\"PAS\",Archives!R:R,A54)","v":0},{"$f":"SUMIFS(Archives!B:B,Archives!F:F,\"Colo Spé\",Archives!R:R,A54)","v":0},{"$f":"SUMIFS(Archives!G:G,Archives!F:F,\"Colo Spé\",Archives!R:R,A54)","v":0}]
["2017-02-12",{"$f":"SUMIF(Archives!R:R,A55,Archives!B:B)","v":0},{"$f":"SUMIFS(Archives!B:B,Archives!F:F,\"HES\",Archives!R:R,A55)","v":0},{"$f":"SUMIFS(Archives!B:B,Archives!F:F,\"PAS\",Archives!R:R,A55)","v":0},{"$f":"SUMIFS(Archives!B:B,Archives!F:F,\"Colo Spé\",Archives!R:R,A55)","v":0},{"$f":"SUMIFS(Archives!G:G,Archives!F:F,\"Colo Spé\",Archives!R:R,A55)","v":0}]
["2017-02-13",{"$f":"SUMIF(Archives!R:R,A56,Archives!B:B)","v":0},{"$f":"SUMIFS(Archives!B:B,Archives!F:F,\"HES\",Archives!R:R,A56)","v":0},{"$f":"SUMIFS(Archives!B:B,Archives!F:F,\"PAS\",Archives!R:R,A56)","v":0},{"$f":"SUMIFS(Archives!B:B,Archives!F:F,\"Colo Spé\",Archives!R:R,A56)","v":0},{"$f":"SUMIFS(Archives!G:G,Archives!F:F,\"Colo Spé\",Archives!R:R,A56)","v":0}]
["2017-02-14",{"$f":"SUMIF(Archives!R:R,A57,Archives!B:B)","v":0},{"$f":"SUMIFS(Archives!B:B,Archives!F:F,\"HES\",Archives!R:R,A57)","v":0},{"$f":"SUMIFS(Archives!B:B,Archives!F:F,\"PAS\",Archives!R:R,A57)","v":0},{"$f":"SUMIFS(Archives!B:B,Archives!F:F,\"Colo Spé\",Archives!R:R,A57)","v":0},{"$f":"SUMIFS(Archives!G:G,Archives!F:F,\"Colo Spé\",Archives!R:R,A57)","v":0}]
["2017-02-15",{"$f":"SUMIF(Archives!R:R,A58,Archives!B:B)","v":0},{"$f":"SUMIFS(Archives!B:B,Archives!F:F,\"HES\",Archives!R:R,A58)","v":0},{"$f":"SUMIFS(Archives!B:B,Archives!F:F,\"PAS\",Archives!R:R,A58)","v":0},{"$f":"SUMIFS(Archives!B:B,Archives!F:F,\"Colo Spé\",Archives!R:R,A58)","v":0},{"$f":"SUMIFS(Archives!G:G,Archives!F:F,\"Colo Spé\",Archives!R:R,A58)","v":0}]
["2017-02-16",{"$f":"SUMIF(Archives!R:R,A59,Archives!B:B)","v":0},{"$f":"SUMIFS(Archives!B:B,Archives!F:F,\"HES\",Archives!R:R,A59)","v":0},{"$f":"SUMIFS(Archives!B:B,Archives!F:F,\"PAS\",Archives!R:R,A59)","v":0},{"$f":"SUMIFS(Archives!B:B,Archives!F:F,\"Colo Spé\",Archives!R:R,A59)","v":0},{"$f":"SUMIFS(Archives!G:G,Archives!F:F,\"Colo Spé\",Archives!R:R,A59)","v":0}]
["2017-02-17",{"$f":"SUMIF(Archives!R:R,A60,Archives!B:B)","v":0},{"$f":"SUMIFS(Archives!B:B,Archives!F:F,\"HES\",Archives!R:R,A60)","v":0},{"$f":"SUMIFS(Archives!B:B,Archives!F:F,\"PAS\",Archives!R:R,A60)","v":0},{"$f":"SUMIFS(Archives!B:B,Archives!F:F,\"Colo Spé\",Archives!R:R,A60)","v":0},{"$f":"SUMIFS(Archives!G:G,Archives!F:F,\"Colo Spé\",Archives!R:R,A60)","v":0}]
["2017-02-18",{"$f":"SUMIF(Archives!R:R,A61,Archives!B:B)","v":0},{"$f":"SUMIFS(Archives!B:B,Archives!F:F,\"HES\",Archives!R:R,A61)","v":0},{"$f":"SUMIFS(Archives!B:B,Archives!F:F,\"PAS\",Archives!R:R,A61)","v":0},{"$f":"SUMIFS(Archives!B:B,Archives!F:F,\"Colo Spé\",Archives!R:R,A61)","v":0},{"$f":"SUMIFS(Archives!G:G,Archives!F:F,\"Colo Spé\",Archives!R:R,A61)","v":0}]
["2017-02-19",{"$f":"SUMIF(Archives!R:R,A62,Archives!B:B)","v":0},{"$f":"SUMIFS(Archives!B:B,Archives!F:F,\"HES\",Archives!R:R,A62)","v":0},{"$f":"SUMIFS(Archives!B:B,Archives!F:F,\"PAS\",Archives!R:R,A62)","v":0},{"$f":"SUMIFS(Archives!B:B,Archives!F:F,\"Colo Spé\",Archives!R:R,A62)","v":0},{"$f":"SUMIFS(Archives!G:G,Archives!F:F,\"Colo Spé\",Archives!R:R,A62)","v":0}]
["2017-02-20",{"$f":"SUMIF(Archives!R:R,A63,Archives!B:B)","v":0},{"$f":"SUMIFS(Archives!B:B,Archives!F:F,\"HES\",Archives!R:R,A63)","v":0},{"$f":"SUMIFS(Archives!B:B,Archives!F:F,\"PAS\",Archives!R:R,A63)","v":0},{"$f":"SUMIFS(Archives!B:B,Archives!F:F,\"Colo Spé\",Archives!R:R,A63)","v":0},{"$f":"SUMIFS(Archives!G:G,Archives!F:F,\"Colo Spé\",Archives!R:R,A63)","v":0}]
["2017-02-21",{"$f":"SUMIF(Archives!R:R,A64,Archives!B:B)","v":0},{"$f":"SUMIFS(Archives!B:B,Archives!F:F,\"HES\",Archives!R:R,A64)","v":0},{"$f":"SUMIFS(Archives!B:B,Archives!F:F,\"PAS\",Archives!R:R,A64)","v":0},{"$f":"SUMIFS(Archives!B:B,Archives!F:F,\"Colo Spé\",Archives!R:R,A64)","v":0},{"$f":"SUMIFS(Archives!G:G,Archives!F:F,\"Colo Spé\",Archives!R:R,A64)","v":0}]
["2017-02-22",{"$f":"SUMIF(Archives!R:R,A65,Archives!B:B)","v":0},{"$f":"SUMIFS(Archives!B:B,Archives!F:F,\"HES\",Archives!R:R,A65)","v":0},{"$f":"SUMIFS(Archives!B:B,Archives!F:F,\"PAS\",Archives!R:R,A65)","v":0},{"$f":"SUMIFS(Archives!B:B,Archives!F:F,\"Colo Spé\",Archives!R:R,A65)","v":0},{"$f":"SUMIFS(Archives!G:G,Archives!F:F,\"Colo Spé\",Archives!R:R,A65)","v":0}]
["2017-02-23",{"$f":"SUMIF(Archives!R:R,A66,Archives!B:B)","v":0},{"$f":"SUMIFS(Archives!B:B,Archives!F:F,\"HES\",Archives!R:R,A66)","v":0},{"$f":"SUMIFS(Archives!B:B,Archives!F:F,\"PAS\",Archives!R:R,A66)","v":0},{"$f":"SUMIFS(Archives!B:B,Archives!F:F,\"Colo Spé\",Archives!R:R,A66)","v":0},{"$f":"SUMIFS(Archives!G:G,Archives!F:F,\"Colo Spé\",Archives!R:R,A66)","v":0}]
["2017-02-24",{"$f":"SUMIF(Archives!R:R,A67,Archives!B:B)","v":0},{"$f":"SUMIFS(Archives!B:B,Archives!F:F,\"HES\",Archives!R:R,A67)","v":0},{"$f":"SUMIFS(Archives!B:B,Archives!F:F,\"PAS\",Archives!R:R,A67)","v":0},{"$f":"SUMIFS(Archives!B:B,Archives!F:F,\"Colo Spé\",Archives!R:R,A67)","v":0},{"$f":"SUMIFS(Archives!G:G,Archives!F:F,\"Colo Spé\",Archives!R:R,A67)","v":0}]
["2017-02-25",{"$f":"SUMIF(Archives!R:R,A68,Archives!B:B)","v":0},{"$f":"SUMIFS(Archives!B:B,Archives!F:F,\"HES\",Archives!R:R,A68)","v":0},{"$f":"SUMIFS(Archives!B:B,Archives!F:F,\"PAS\",Archives!R:R,A68)","v":0},{"$f":"SUMIFS(Archives!B:B,Archives!F:F,\"Colo Spé\",Archives!R:R,A68)","v":0},{"$f":"SUMIFS(Archives!G:G,Archives!F:F,\"Colo Spé\",Archives!R:R,A68)","v":0}]
["2017-02-26",{"$f":"SUMIF(Archives!R:R,A69,Archives!B:B)","v":0},{"$f":"SUMIFS(Archives!B:B,Archives!F:F,\"HES\",Archives!R:R,A69)","v":0},{"$f":"SUMIFS(Archives!B:B,Archives!F:F,\"PAS\",Archives!R:R,A69)","v":0},{"$f":"SUMIFS(Archives!B:B,Archives!F:F,\"Colo Spé\",Archives!R:R,A69)","v":0},{"$f":"SUMIFS(Archives!G:G,Archives!F:F,\"Colo Spé\",Archives!R:R,A69)","v":0}]
["2017-02-27",{"$f":"SUMIF(Archives!R:R,A70,Archives!B:B)","v":0},{"$f":"SUMIFS(Archives!B:B,Archives!F:F,\"HES\",Archives!R:R,A70)","v":0},{"$f":"SUMIFS(Archives!B:B,Archives!F:F,\"PAS\",Archives!R:R,A70)","v":0},{"$f":"SUMIFS(Archives!B:B,Archives!F:F,\"Colo Spé\",Archives!R:R,A70)","v":0},{"$f":"SUMIFS(Archives!G:G,Archives!F:F,\"Colo Spé\",Archives!R:R,A70)","v":0}]
["2017-02-28",{"$f":"SUMIF(Archives!R:R,A71,Archives!B:B)","v":0},{"$f":"SUMIFS(Archives!B:B,Archives!F:F,\"HES\",Archives!R:R,A71)","v":0},{"$f":"SUMIFS(Archives!B:B,Archives!F:F,\"PAS\",Archives!R:R,A71)","v":0},{"$f":"SUMIFS(Archives!B:B,Archives!F:F,\"Colo Spé\",Archives!R:R,A71)","v":0},{"$f":"SUMIFS(Archives!G:G,Archives!F:F,\"Colo Spé\",Archives!R:R,A71)","v":0}]
["Total Fevrier",{"$f":"SUM(B44:B71)","v":0},{"$f":"SUM(C44:C71)","v":0},0,0,0]
[]
["2017-03-01",{"$f":"SUMIF(Archives!R:R,A74,Archives!B:B)","v":0},{"$f":"SUMIFS(Archives!B:B,Archives!F:F,\"HES\",Archives!R:R,A74)","v":0},{"$f":"SUMIFS(Archives!B:B,Archives!F:F,\"PAS\",Archives!R:R,A74)","v":0},{"$f":"SUMIFS(Archives!B:B,Archives!F:F,\"Colo Spé\",Archives!R:R,A74)","v":0},{"$f":"SUMIFS(Archives!G:G,Archives!F:F,\"Colo Spé\",Archives!R:R,A74)","v":0}]
["2017-03-02",{"$f":"SUMIF(Archives!R:R,A75,Archives!B:B)","v":0},{"$f":"SUMIFS(Archives!B:B,Archives!F:F,\"HES\",Archives!R:R,A75)","v":0},{"$f":"SUMIFS(Archives!B:B,Archives!F:F,\"PAS\",Archives!R:R,A75)","v":0},{"$f":"SUMIFS(Archives!B:B,Archives!F:F,\"Colo Spé\",Archives!R:R,A75)","v":0},{"$f":"SUMIFS(Archives!G:G,Archives!F:F,\"Colo Spé\",Archives!R:R,A75)","v":0}]
["2017-03-03",{"$f":"SUMIF(Archives!R:R,A76,Archives!B:B)","v":0},{"$f":"SUMIFS(Archives!B:B,Archives!F:F,\"HES\",Archives!R:R,A76)","v":0},{"$f":"SUMIFS(Archives!B:B,Archives!F:F,\"PAS\",Archives!R:R,A76)","v":0},{"$f":"SUMIFS(Archives!B:B,Archives!F:F,\"Colo Spé\",Archives!R:R,A76)","v":0},{"$f":"SUMIFS(Archives!G:G,Archives!F:F,\"Colo Spé\",Archives!R:R,A76)","v":0}]
["2017-03-04",{"$f":"SUMIF(Archives!R:R,A77,Archives!B:B)","v":0},{"$f":"SUMIFS(Archives!B:B,Archives!F:F,\"HES\",Archives!R:R,A77)","v":0},{"$f":"SUMIFS(Archives!B:B,Archives!F:F,\"PAS\",Archives!R:R,A77)","v":0},{"$f":"SUMIFS(Archives!B:B,Archives!F:F,\"Colo Spé\",Archives!R:R,A77)","v":0},{"$f":"SUMIFS(Archives!G:G,Archives!F:F,\"Colo Spé\",Archives!R:R,A77)","v":0}]
["2017-03-05",{"$f":"SUMIF(Archives!R:R,A78,Archives!B:B)","v":0},{"$f":"SUMIFS(Archives!B:B,Archives!F:F,\"HES\",Archives!R:R,A78)","v":0},{"$f":"SUMIFS(Archives!B:B,Archives!F:F,\"PAS\",Archives!R:R,A78)","v":0},{"$f":"SUMIFS(Archives!B:B,Archives!F:F,\"Colo Spé\",Archives!R:R,A78)","v":0},{"$f":"SUMIFS(Archives!G:G,Archives!F:F,\"Colo Spé\",Archives!R:R,A78)","v":0}]
["2017-03-06",{"$f":"SUMIF(Archives!R:R,A79,Archives!B:B)","v":0},{"$f":"SUMIFS(Archives!B:B,Archives!F:F,\"HES\",Archives!R:R,A79)","v":0},{"$f":"SUMIFS(Archives!B:B,Archives!F:F,\"PAS\",Archives!R:R,A79)","v":0},{"$f":"SUMIFS(Archives!B:B,Archives!F:F,\"Colo Spé\",Archives!R:R,A79)","v":0},{"$f":"SUMIFS(Archives!G:G,Archives!F:F,\"Colo Spé\",Archives!R:R,A79)","v":0}]
["2017-03-07",{"$f":"SUMIF(Archives!R:R,A80,Archives!B:B)","v":0},{"$f":"SUMIFS(Archives!B:B,Archives!F:F,\"HES\",Archives!R:R,A80)","v":0},{"$f":"SUMIFS(Archives!B:B,Archives!F:F,\"PAS\",Archives!R:R,A80)","v":0},{"$f":"SUMIFS(Archives!B:B,Archives!F:F,\"Colo Spé\",Archives!R:R,A80)","v":0},{"$f":"SUMIFS(Archives!G:G,Archives!F:F,\"Colo Spé\",Archives!R:R,A80)","v":0}]
["2017-03-08",{"$f":"SUMIF(Archives!R:R,A81,Archives!B:B)","v":0},{"$f":"SUMIFS(Archives!B:B,Archives!F:F,\"HES\",Archives!R:R,A81)","v":0},{"$f":"SUMIFS(Archives!B:B,Archives!F:F,\"PAS\",Archives!R:R,A81)","v":0},{"$f":"SUMIFS(Archives!B:B,Archives!F:F,\"Colo Spé\",Archives!R:R,A81)","v":0},{"$f":"SUMIFS(Archives!G:G,Archives!F:F,\"Colo Spé\",Archives!R:R,A81)","v":0}]
["2017-03-09",{"$f":"SUMIF(Archives!R:R,A82,Archives!B:B)","v":0},{"$f":"SUMIFS(Archives!B:B,Archives!F:F,\"HES\",Archives!R:R,A82)","v":0},{"$f":"SUMIFS(Archives!B:B,Archives!F:F,\"PAS\",Archives!R:R,A82)","v":0},{"$f":"SUMIFS(Archives!B:B,Archives!F:F,\"Colo Spé\",Archives!R:R,A82)","v":0},{"$f":"SUMIFS(Archives!G:G,Archives!F:F,\"Colo Spé\",Archives!R:R,A82)","v":0}]
["2017-03-10",{"$f":"SUMIF(Archives!R:R,A83,Archives!B:B)","v":0},{"$f":"SUMIFS(Archives!B:B,Archives!F:F,\"HES\",Archives!R:R,A83)","v":0},{"$f":"SUMIFS(Archives!B:B,Archives!F:F,\"PAS\",Archives!R:R,A83)","v":0},{"$f":"SUMIFS(Archives!B:B,Archives!F:F,\"Colo Spé\",Archives!R:R,A83)","v":0},{"$f":"SUMIFS(Archives!G:G,Archives!F:F,\"Colo Spé\",Archives!R:R,A83)","v":0}]
["2017-03-11",{"$f":"SUMIF(Archives!R:R,A84,Archives!B:B)","v":0},{"$f":"SUMIFS(Archives!B:B,Archives!F:F,\"HES\",Archives!R:R,A84)","v":0},{"$f":"SUMIFS(Archives!B:B,Archives!F:F,\"PAS\",Archives!R:R,A84)","v":0},{"$f":"SUMIFS(Archives!B:B,Archives!F:F,\"Colo Spé\",Archives!R:R,A84)","v":0},{"$f":"SUMIFS(Archives!G:G,Archives!F:F,\"Colo Spé\",Archives!R:R,A84)","v":0}]
["2017-03-12",{"$f":"SUMIF(Archives!R:R,A85,Archives!B:B)","v":0},{"$f":"SUMIFS(Archives!B:B,Archives!F:F,\"HES\",Archives!R:R,A85)","v":0},{"$f":"SUMIFS(Archives!B:B,Archives!F:F,\"PAS\",Archives!R:R,A85)","v":0},{"$f":"SUMIFS(Archives!B:B,Archives!F:F,\"Colo Spé\",Archives!R:R,A85)","v":0},{"$f":"SUMIFS(Archives!G:G,Archives!F:F,\"Colo Spé\",Archives!R:R,A85)","v":0}]
["2017-03-13",{"$f":"SUMIF(Archives!R:R,A86,Archives!B:B)","v":0},{"$f":"SUMIFS(Archives!B:B,Archives!F:F,\"HES\",Archives!R:R,A86)","v":0},{"$f":"SUMIFS(Archives!B:B,Archives!F:F,\"PAS\",Archives!R:R,A86)","v":0},{"$f":"SUMIFS(Archives!B:B,Archives!F:F,\"Colo Spé\",Archives!R:R,A86)","v":0},{"$f":"SUMIFS(Archives!G:G,Archives!F:F,\"Colo Spé\",Archives!R:R,A86)","v":0}]
["2017-03-14",{"$f":"SUMIF(Archives!R:R,A87,Archives!B:B)","v":0},{"$f":"SUMIFS(Archives!B:B,Archives!F:F,\"HES\",Archives!R:R,A87)","v":0},{"$f":"SUMIFS(Archives!B:B,Archives!F:F,\"PAS\",Archives!R:R,A87)","v":0},{"$f":"SUMIFS(Archives!B:B,Archives!F:F,\"Colo Spé\",Archives!R:R,A87)","v":0},{"$f":"SUMIFS(Archives!G:G,Archives!F:F,\"Colo Spé\",Archives!R:R,A87)","v":0}]
["2017-03-15",{"$f":"SUMIF(Archives!R:R,A88,Archives!B:B)","v":0},{"$f":"SUMIFS(Archives!B:B,Archives!F:F,\"HES\",Archives!R:R,A88)","v":0},{"$f":"SUMIFS(Archives!B:B,Archives!F:F,\"PAS\",Archives!R:R,A88)","v":0},{"$f":"SUMIFS(Archives!B:B,Archives!F:F,\"Colo Spé\",Archives!R:R,A88)","v":0},{"$f":"SUMIFS(Archives!G:G,Archives!F:F,\"Colo Spé\",Archives!R:R,A88)","v":0}]
["2017-03-16",{"$f":"SUMIF(Archives!R:R,A89,Archives!B:B)","v":0},{"$f":"SUMIFS(Archives!B:B,Archives!F:F,\"HES\",Archives!R:R,A89)","v":0},{"$f":"SUMIFS(Archives!B:B,Archives!F:F,\"PAS\",Archives!R:R,A89)","v":0},{"$f":"SUMIFS(Archives!B:B,Archives!F:F,\"Colo Spé\",Archives!R:R,A89)","v":0},{"$f":"SUMIFS(Archives!G:G,Archives!F:F,\"Colo Spé\",Archives!R:R,A89)","v":0}]
["2017-03-17",{"$f":"SUMIF(Archives!R:R,A90,Archives!B:B)","v":0},{"$f":"SUMIFS(Archives!B:B,Archives!F:F,\"HES\",Archives!R:R,A90)","v":0},{"$f":"SUMIFS(Archives!B:B,Archives!F:F,\"PAS\",Archives!R:R,A90)","v":0},{"$f":"SUMIFS(Archives!B:B,Archives!F:F,\"Colo Spé\",Archives!R:R,A90)","v":0},{"$f":"SUMIFS(Archives!G:G,Archives!F:F,\"Colo Spé\",Archives!R:R,A90)","v":0}]
["2017-03-18",{"$f":"SUMIF(Archives!R:R,A91,Archives!B:B)","v":0},{"$f":"SUMIFS(Archives!B:B,Archives!F:F,\"HES\",Archives!R:R,A91)","v":0},{"$f":"SUMIFS(Archives!B:B,Archives!F:F,\"PAS\",Archives!R:R,A91)","v":0},{"$f":"SUMIFS(Archives!B:B,Archives!F:F,\"Colo Spé\",Archives!R:R,A91)","v":0},{"$f":"SUMIFS(Archives!G:G,Archives!F:F,\"Colo Spé\",Archives!R:R,A91)","v":0}]
["2017-03-19",{"$f":"SUMIF(Archives!R:R,A92,Archives!B:B)","v":0},{"$f":"SUMIFS(Archives!B:B,Archives!F:F,\"HES\",Archives!R:R,A92)","v":0},{"$f":"SUMIFS(Archives!B:B,Archives!F:F,\"PAS\",Archives!R:R,A92)","v":0},{"$f":"SUMIFS(Archives!B:B,Archives!F:F,\"Colo Spé\",Archives!R:R,A92)","v":0},{"$f":"SUMIFS(Archives!G:G,Archives!F:F,\"Colo Spé\",Archives!R:R,A92)","v":0}]
["2017-03-20",{"$f":"SUMIF(Archives!R:R,A93,Archives!B:B)","v":0},{"$f":"SUMIFS(Archives!B:B,Archives!F:F,\"HES\",Archives!R:R,A93)","v":0},{"$f":"SUMIFS(Archives!B:B,Archives!F:F,\"PAS\",Archives!R:R,A93)","v":0},{"$f":"SUMIFS(Archives!B:B,Archives!F:F,\"Colo Spé\",Archives!R:R,A93)","v":0},{"$f":"SUMIFS(Archives!G:G,Archives!F:F,\"Colo Spé\",Archives!R:R,A93)","v":0}]
["2017-03-21",{"$f":"SUMIF(Archives!R:R,A94,Archives!B:B)","v":0},{"$f":"SUMIFS(Archives!B:B,Archives!F:F,\"HES\",Archives!R:R,A94)","v":0},{"$f":"SUMIFS(Archives!B:B,Archives!F:F,\"PAS\",Archives!R:R,A94)","v":0},{"$f":"SUMIFS(Archives!B:B,Archives!F:F,\"Colo Spé\",Archives!R:R,A94)","v":0},{"$f":"SUMIFS(Archives!G:G,Archives!F:F,\"Colo Spé\",Archives!R:R,A94)","v":0}]
["2017-03-22",{"$f":"SUMIF(Archives!R:R,A95,Archives!B:B)","v":0},{"$f":"SUMIFS(Archives!B:B,Archives!F:F,\"HES\",Archives!R:R,A95)","v":0},{"$f":"SUMIFS(Archives!B:B,Archives!F:F,\"PAS\",Archives!R:R,A95)","v":0},{"$f":"SUMIFS(Archives!B:B,Archives!F:F,\"Colo Spé\",Archives!R:R,A95)","v":0},{"$f":"SUMIFS(Archives!G:G,Archives!F:F,\"Colo Spé\",Archives!R:R,A95)","v":0}]
["2017-03-23",{"$f":"SUMIF(Archives!R:R,A96,Archives!B:B)","v":0},{"$f":"SUMIFS(Archives!B:B,Archives!F:F,\"HES\",Archives!R:R,A96)","v":0},{"$f":"SUMIFS(Archives!B:B,Archives!F:F,\"PAS\",Archives!R:R,A96)","v":0},{"$f":"SUMIFS(Archives!B:B,Archives!F:F,\"Colo Spé\",Archives!R:R,A96)","v":0},{"$f":"SUMIFS(Archives!G:G,Archives!F:F,\"Colo Spé\",Archives!R:R,A96)","v":0}]
["2017-03-24",{"$f":"SUMIF(Archives!R:R,A97,Archives!B:B)","v":0},{"$f":"SUMIFS(Archives!B:B,Archives!F:F,\"HES\",Archives!R:R,A97)","v":0},{"$f":"SUMIFS(Archives!B:B,Archives!F:F,\"PAS\",Archives!R:R,A97)","v":0},{"$f":"SUMIFS(Archives!B:B,Archives!F:F,\"Colo Spé\",Archives!R:R,A97)","v":0},{"$f":"SUMIFS(Archives!G:G,Archives!F:F,\"Colo Spé\",Archives!R:R,A97)","v":0}]
["2017-03-25",{"$f":"SUMIF(Archives!R:R,A98,Archives!B:B)","v":0},{"$f":"SUMIFS(Archives!B:B,Archives!F:F,\"HES\",Archives!R:R,A98)","v":0},{"$f":"SUMIFS(Archives!B:B,Archives!F:F,\"PAS\",Archives!R:R,A98)","v":0},{"$f":"SUMIFS(Archives!B:B,Archives!F:F,\"Colo Spé\",Archives!R:R,A98)","v":0},{"$f":"SUMIFS(Archives!G:G,Archives!F:F,\"Colo Spé\",Archives!R:R,A98)","v":0}]
["2017-03-26",{"$f":"SUMIF(Archives!R:R,A99,Archives!B:B)","v":0},{"$f":"SUMIFS(Archives!B:B,Archives!F:F,\"HES\",Archives!R:R,A99)","v":0},{"$f":"SUMIFS(Archives!B:B,Archives!F:F,\"PAS\",Archives!R:R,A99)","v":0},{"$f":"SUMIFS(Archives!B:B,Archives!F:F,\"Colo Spé\",Archives!R:R,A99)","v":0},{"$f":"SUMIFS(Archives!G:G,Archives!F:F,\"Colo Spé\",Archives!R:R,A99)","v":0}]
["2017-03-27",{"$f":"SUMIF(Archives!R:R,A100,Archives!B:B)","v":0},{"$f":"SUMIFS(Archives!B:B,Archives!F:F,\"HES\",Archives!R:R,A100)","v":0},{"$f":"SUMIFS(Archives!B:B,Archives!F:F,\"PAS\",Archives!R:R,A100)","v":0},{"$f":"SUMIFS(Archives!B:B,Archives!F:F,\"Colo Spé\",Archives!R:R,A100)","v":0},{"$f":"SUMIFS(Archives!G:G,Archives!F:F,\"Colo Spé\",Archives!R:R,A100)","v":0}]
["2017-03-28",{"$f":"SUMIF(Archives!R:R,A101,Archives!B:B)","v":0},{"$f":"SUMIFS(Archives!B:B,Archives!F:F,\"HES\",Archives!R:R,A101)","v":0},{"$f":"SUMIFS(Archives!B:B,Archives!F:F,\"PAS\",Archives!R:R,A101)","v":0},{"$f":"SUMIFS(Archives!B:B,Archives!F:F,\"Colo Spé\",Archives!R:R,A101)","v":0},{"$f":"SUMIFS(Archives!G:G,Archives!F:F,\"Colo Spé\",Archives!R:R,A101)","v":0}]
["2017-03-29",{"$f":"SUMIF(Archives!R:R,A102,Archives!B:B)","v":0},{"$f":"SUMIFS(Archives!B:B,Archives!F:F,\"HES\",Archives!R:R,A102)","v":0},{"$f":"SUMIFS(Archives!B:B,Archives!F:F,\"PAS\",Archives!R:R,A102)","v":0},{"$f":"SUMIFS(Archives!B:B,Archives!F:F,\"Colo Spé\",Archives!R:R,A102)","v":0},{"$f":"SUMIFS(Archives!G:G,Archives!F:F,\"Colo Spé\",Archives!R:R,A102)","v":0}]
["2017-03-30",{"$f":"SUMIF(Archives!R:R,A103,Archives!B:B)","v":0},{"$f":"SUMIFS(Archives!B:B,Archives!F:F,\"HES\",Archives!R:R,A103)","v":0},{"$f":"SUMIFS(Archives!B:B,Archives!F:F,\"PAS\",Archives!R:R,A103)","v":0},{"$f":"SUMIFS(Archives!B:B,Archives!F:F,\"Colo Spé\",Archives!R:R,A103)","v":0},{"$f":"SUMIFS(Archives!G:G,Archives!F:F,\"Colo Spé\",Archives!R:R,A103)","v":0}]
["2017-03-31",{"$f":"SUMIF(Archives!R:R,A104,Archives!B:B)","v":0},{"$f":"SUMIFS(Archives!B:B,Archives!F:F,\"HES\",Archives!R:R,A104)","v":0},{"$f":"SUMIFS(Archives!B:B,Archives!F:F,\"PAS\",Archives!R:R,A104)","v":0},{"$f":"SUMIFS(Archives!B:B,Archives!F:F,\"Colo Spé\",Archives!R:R,A104)","v":0},{"$f":"SUMIFS(Archives!G:G,Archives!F:F,\"Colo Spé\",Archives!R:R,A104)","v":0}]
["Total Mars",{"$f":"SUM(B74:B104)","v":0},{"$f":"SUM(C74:C104)","v":0},0,0,0]
[]
["2017-04-01",{"$f":"SUMIF(Archives!R:R,A107,Archives!B:B)","v":0},{"$f":"SUMIFS(Archives!B:B,Archives!F:F,\"HES\",Archives!R:R,A107)","v":0},{"$f":"SUMIFS(Archives!B:B,Archives!F:F,\"PAS\",Archives!R:R,A107)","v":0},{"$f":"SUMIFS(Archives!B:B,Archives!F:F,\"Colo Spé\",Archives!R:R,A107)","v":0},{"$f":"SUMIFS(Archives!G:G,Archives!F:F,\"Colo Spé\",Archives!R:R,A107)","v":0}]
["2017-04-02",{"$f":"SUMIF(Archives!R:R,A108,Archives!B:B)","v":0},{"$f":"SUMIFS(Archives!B:B,Archives!F:F,\"HES\",Archives!R:R,A108)","v":0},{"$f":"SUMIFS(Archives!B:B,Archives!F:F,\"PAS\",Archives!R:R,A108)","v":0},{"$f":"SUMIFS(Archives!B:B,Archives!F:F,\"Colo Spé\",Archives!R:R,A108)","v":0},{"$f":"SUMIFS(Archives!G:G,Archives!F:F,\"Colo Spé\",Archives!R:R,A108)","v":0}]
["2017-04-03",{"$f":"SUMIF(Archives!R:R,A109,Archives!B:B)","v":0},{"$f":"SUMIFS(Archives!B:B,Archives!F:F,\"HES\",Archives!R:R,A109)","v":0},{"$f":"SUMIFS(Archives!B:B,Archives!F:F,\"PAS\",Archives!R:R,A109)","v":0},{"$f":"SUMIFS(Archives!B:B,Archives!F:F,\"Colo Spé\",Archives!R:R,A109)","v":0},{"$f":"SUMIFS(Archives!G:G,Archives!F:F,\"Colo Spé\",Archives!R:R,A109)","v":0}]
["2017-04-04",{"$f":"SUMIF(Archives!R:R,A110,Archives!B:B)","v":0},{"$f":"SUMIFS(Archives!B:B,Archives!F:F,\"HES\",Archives!R:R,A110)","v":0},{"$f":"SUMIFS(Archives!B:B,Archives!F:F,\"PAS\",Archives!R:R,A110)","v":0},{"$f":"SUMIFS(Archives!B:B,Archives!F:F,\"Colo Spé\",Archives!R:R,A110)","v":0},{"$f":"SUMIFS(Archives!G:G,Archives!F:F,\"Colo Spé\",Archives!R:R,A110)","v":0}]
["2017-04-05",{"$f":"SUMIF(Archives!R:R,A111,Archives!B:B)","v":0},{"$f":"SUMIFS(Archives!B:B,Archives!F:F,\"HES\",Archives!R:R,A111)","v":0},{"$f":"SUMIFS(Archives!B:B,Archives!F:F,\"PAS\",Archives!R:R,A111)","v":0},{"$f":"SUMIFS(Archives!B:B,Archives!F:F,\"Colo Spé\",Archives!R:R,A111)","v":0},{"$f":"SUMIFS(Archives!G:G,Archives!F:F,\"Colo Spé\",Archives!R:R,A111)","v":0}]
["2017-04-06",{"$f":"SUMIF(Archives!R:R,A112,Archives!B:B)","v":0},{"$f":"SUMIFS(Archives!B:B,Archives!F:F,\"HES\",Archives!R:R,A112)","v":0},{"$f":"SUMIFS(Archives!B:B,Archives!F:F,\"PAS\",Archives!R:R,A112)","v":0},{"$f":"SUMIFS(Archives!B:B,Archives!F:F,\"Colo Spé\",Archives!R:R,A112)","v":0},{"$f":"SUMIFS(Archives!G:G,Archives!F:F,\"Colo Spé\",Archives!R:R,A112)","v":0}]
["2017-04-07",{"$f":"SUMIF(Archives!R:R,A113,Archives!B:B)","v":0},{"$f":"SUMIFS(Archives!B:B,Archives!F:F,\"HES\",Archives!R:R,A113)","v":0},{"$f":"SUMIFS(Archives!B:B,Archives!F:F,\"PAS\",Archives!R:R,A113)","v":0},{"$f":"SUMIFS(Archives!B:B,Archives!F:F,\"Colo Spé\",Archives!R:R,A113)","v":0},{"$f":"SUMIFS(Archives!G:G,Archives!F:F,\"Colo Spé\",Archives!R:R,A113)","v":0}]
["2017-04-08",{"$f":"SUMIF(Archives!R:R,A114,Archives!B:B)","v":0},{"$f":"SUMIFS(Archives!B:B,Archives!F:F,\"HES\",Archives!R:R,A114)","v":0},{"$f":"SUMIFS(Archives!B:B,Archives!F:F,\"PAS\",Archives!R:R,A114)","v":0},{"$f":"SUMIFS(Archives!B:B,Archives!F:F,\"Colo Spé\",Archives!R:R,A114)","v":0},{"$f":"SUMIFS(Archives!G:G,Archives!F:F,\"Colo Spé\",Archives!R:R,A114)","v":0}]
["2017-04-09",{"$f":"SUMIF(Archives!R:R,A115,Archives!B:B)","v":0},{"$f":"SUMIFS(Archives!B:B,Archives!F:F,\"HES\",Archives!R:R,A115)","v":0},{"$f":"SUMIFS(Archives!B:B,Archives!F:F,\"PAS\",Archives!R:R,A115)","v":0},{"$f":"SUMIFS(Archives!B:B,Archives!F:F,\"Colo Spé\",Archives!R:R,A115)","v":0},{"$f":"SUMIFS(Archives!G:G,Archives!F:F,\"Colo Spé\",Archives!R:R,A115)","v":0}]
["2017-04-10",{"$f":"SUMIF(Archives!R:R,A116,Archives!B:B)","v":0},{"$f":"SUMIFS(Archives!B:B,Archives!F:F,\"HES\",Archives!R:R,A116)","v":0},{"$f":"SUMIFS(Archives!B:B,Archives!F:F,\"PAS\",Archives!R:R,A116)","v":0},{"$f":"SUMIFS(Archives!B:B,Archives!F:F,\"Colo Spé\",Archives!R:R,A116)","v":0},{"$f":"SUMIFS(Archives!G:G,Archives!F:F,\"Colo Spé\",Archives!R:R,A116)","v":0}]
["2017-04-11",{"$f":"SUMIF(Archives!R:R,A117,Archives!B:B)","v":0},{"$f":"SUMIFS(Archives!B:B,Archives!F:F,\"HES\",Archives!R:R,A117)","v":0},{"$f":"SUMIFS(Archives!B:B,Archives!F:F,\"PAS\",Archives!R:R,A117)","v":0},{"$f":"SUMIFS(Archives!B:B,Archives!F:F,\"Colo Spé\",Archives!R:R,A117)","v":0},{"$f":"SUMIFS(Archives!G:G,Archives!F:F,\"Colo Spé\",Archives!R:R,A117)","v":0}]
["2017-04-12",{"$f":"SUMIF(Archives!R:R,A118,Archives!B:B)","v":0},{"$f":"SUMIFS(Archives!B:B,Archives!F:F,\"HES\",Archives!R:R,A118)","v":0},{"$f":"SUMIFS(Archives!B:B,Archives!F:F,\"PAS\",Archives!R:R,A118)","v":0},{"$f":"SUMIFS(Archives!B:B,Archives!F:F,\"Colo Spé\",Archives!R:R,A118)","v":0},{"$f":"SUMIFS(Archives!G:G,Archives!F:F,\"Colo Spé\",Archives!R:R,A118)","v":0}]
["2017-04-13",{"$f":"SUMIF(Archives!R:R,A119,Archives!B:B)","v":0},{"$f":"SUMIFS(Archives!B:B,Archives!F:F,\"HES\",Archives!R:R,A119)","v":0},{"$f":"SUMIFS(Archives!B:B,Archives!F:F,\"PAS\",Archives!R:R,A119)","v":0},{"$f":"SUMIFS(Archives!B:B,Archives!F:F,\"Colo Spé\",Archives!R:R,A119)","v":0},{"$f":"SUMIFS(Archives!G:G,Archives!F:F,\"Colo Spé\",Archives!R:R,A119)","v":0}]
["2017-04-14",{"$f":"SUMIF(Archives!R:R,A120,Archives!B:B)","v":0},{"$f":"SUMIFS(Archives!B:B,Archives!F:F,\"HES\",Archives!R:R,A120)","v":0},{"$f":"SUMIFS(Archives!B:B,Archives!F:F,\"PAS\",Archives!R:R,A120)","v":0},{"$f":"SUMIFS(Archives!B:B,Archives!F:F,\"Colo Spé\",Archives!R:R,A120)","v":0},{"$f":"SUMIFS(Archives!G:G,Archives!F:F,\"Colo Spé\",Archives!R:R,A120)","v":0}]
["2017-04-15",{"$f":"SUMIF(Archives!R:R,A121,Archives!B:B)","v":0},{"$f":"SUMIFS(Archives!B:B,Archives!F:F,\"HES\",Archives!R:R,A121)","v":0},{"$f":"SUMIFS(Archives!B:B,Archives!F:F,\"PAS\",Archives!R:R,A121)","v":0},{"$f":"SUMIFS(Archives!B:B,Archives!F:F,\"Colo Spé\",Archives!R:R,A121)","v":0},{"$f":"SUMIFS(Archives!G:G,Archives!F:F,\"Colo Spé\",Archives!R:R,A121)","v":0}]
["2017-04-16",{"$f":"SUMIF(Archives!R:R,A122,Archives!B:B)","v":0},{"$f":"SUMIFS(Archives!B:B,Archives!F:F,\"HES\",Archives!R:R,A122)","v":0},{"$f":"SUMIFS(Archives!B:B,Archives!F:F,\"PAS\",Archives!R:R,A122)","v":0},{"$f":"SUMIFS(Archives!B:B,Archives!F:F,\"Colo Spé\",Archives!R:R,A122)","v":0},{"$f":"SUMIFS(Archives!G:G,Archives!F:F,\"Colo Spé\",Archives!R:R,A122)","v":0}]
["2017-04-17",{"$f":"SUMIF(Archives!R:R,A123,Archives!B:B)","v":0},{"$f":"SUMIFS(Archives!B:B,Archives!F:F,\"HES\",Archives!R:R,A123)","v":0},{"$f":"SUMIFS(Archives!B:B,Archives!F:F,\"PAS\",Archives!R:R,A123)","v":0},{"$f":"SUMIFS(Archives!B:B,Archives!F:F,\"Colo Spé\",Archives!R:R,A123)","v":0},{"$f":"SUMIFS(Archives!G:G,Archives!F:F,\"Colo Spé\",Archives!R:R,A123)","v":0}]
["2017-04-18",{"$f":"SUMIF(Archives!R:R,A124,Archives!B:B)","v":0},{"$f":"SUMIFS(Archives!B:B,Archives!F:F,\"HES\",Archives!R:R,A124)","v":0},{"$f":"SUMIFS(Archives!B:B,Archives!F:F,\"PAS\",Archives!R:R,A124)","v":0},{"$f":"SUMIFS(Archives!B:B,Archives!F:F,\"Colo Spé\",Archives!R:R,A124)","v":0},{"$f":"SUMIFS(Archives!G:G,Archives!F:F,\"Colo Spé\",Archives!R:R,A124)","v":0}]
["2017-04-19",{"$f":"SUMIF(Archives!R:R,A125,Archives!B:B)","v":0},{"$f":"SUMIFS(Archives!B:B,Archives!F:F,\"HES\",Archives!R:R,A125)","v":0},{"$f":"SUMIFS(Archives!B:B,Archives!F:F,\"PAS\",Archives!R:R,A125)","v":0},{"$f":"SUMIFS(Archives!B:B,Archives!F:F,\"Colo Spé\",Archives!R:R,A125)","v":0},{"$f":"SUMIFS(Archives!G:G,Archives!F:F,\"Colo Spé\",Archives!R:R,A125)","v":0}]
["2017-04-20",{"$f":"SUMIF(Archives!R:R,A126,Archives!B:B)","v":0},{"$f":"SUMIFS(Archives!B:B,Archives!F:F,\"HES\",Archives!R:R,A126)","v":0},{"$f":"SUMIFS(Archives!B:B,Archives!F:F,\"PAS\",Archives!R:R,A126)","v":0},{"$f":"SUMIFS(Archives!B:B,Archives!F:F,\"Colo Spé\",Archives!R:R,A126)","v":0},{"$f":"SUMIFS(Archives!G:G,Archives!F:F,\"Colo Spé\",Archives!R:R,A126)","v":0}]
["2017-04-21",{"$f":"SUMIF(Archives!R:R,A127,Archives!B:B)","v":0},{"$f":"SUMIFS(Archives!B:B,Archives!F:F,\"HES\",Archives!R:R,A127)","v":0},{"$f":"SUMIFS(Archives!B:B,Archives!F:F,\"PAS\",Archives!R:R,A127)","v":0},{"$f":"SUMIFS(Archives!B:B,Archives!F:F,\"Colo Spé\",Archives!R:R,A127)","v":0},{"$f":"SUMIFS(Archives!G:G,Archives!F:F,\"Colo Spé\",Archives!R:R,A127)","v":0}]
["2017-04-22",{"$f":"SUMIF(Archives!R:R,A128,Archives!B:B)","v":0},{"$f":"SUMIFS(Archives!B:B,Archives!F:F,\"HES\",Archives!R:R,A128)","v":0},{"$f":"SUMIFS(Archives!B:B,Archives!F:F,\"PAS\",Archives!R:R,A128)","v":0},{"$f":"SUMIFS(Archives!B:B,Archives!F:F,\"Colo Spé\",Archives!R:R,A128)","v":0},{"$f":"SUMIFS(Archives!G:G,Archives!F:F,\"Colo Spé\",Archives!R:R,A128)","v":0}]
["2017-04-23",{"$f":"SUMIF(Archives!R:R,A129,Archives!B:B)","v":0},{"$f":"SUMIFS(Archives!B:B,Archives!F:F,\"HES\",Archives!R:R,A129)","v":0},{"$f":"SUMIFS(Archives!B:B,Archives!F:F,\"PAS\",Archives!R:R,A129)","v":0},{"$f":"SUMIFS(Archives!B:B,Archives!F:F,\"Colo Spé\",Archives!R:R,A129)","v":0},{"$f":"SUMIFS(Archives!G:G,Archives!F:F,\"Colo Spé\",Archives!R:R,A129)","v":0}]
["2017-04-24",{"$f":"SUMIF(Archives!R:R,A130,Archives!B:B)","v":0},{"$f":"SUMIFS(Archives!B:B,Archives!F:F,\"HES\",Archives!R:R,A130)","v":0},{"$f":"SUMIFS(Archives!B:B,Archives!F:F,\"PAS\",Archives!R:R,A130)","v":0},{"$f":"SUMIFS(Archives!B:B,Archives!F:F,\"Colo Spé\",Archives!R:R,A130)","v":0},{"$f":"SUMIFS(Archives!G:G,Archives!F:F,\"Colo Spé\",Archives!R:R,A130)","v":0}]
["2017-04-25",{"$f":"SUMIF(Archives!R:R,A131,Archives!B:B)","v":0},{"$f":"SUMIFS(Archives!B:B,Archives!F:F,\"HES\",Archives!R:R,A131)","v":0},{"$f":"SUMIFS(Archives!B:B,Archives!F:F,\"PAS\",Archives!R:R,A131)","v":0},{"$f":"SUMIFS(Archives!B:B,Archives!F:F,\"Colo Spé\",Archives!R:R,A131)","v":0},{"$f":"SUMIFS(Archives!G:G,Archives!F:F,\"Colo Spé\",Archives!R:R,A131)","v":0}]
["2017-04-26",{"$f":"SUMIF(Archives!R:R,A132,Archives!B:B)","v":0},{"$f":"SUMIFS(Archives!B:B,Archives!F:F,\"HES\",Archives!R:R,A132)","v":0},{"$f":"SUMIFS(Archives!B:B,Archives!F:F,\"PAS\",Archives!R:R,A132)","v":0},{"$f":"SUMIFS(Archives!B:B,Archives!F:F,\"Colo Spé\",Archives!R:R,A132)","v":0},{"$f":"SUMIFS(Archives!G:G,Archives!F:F,\"Colo Spé\",Archives!R:R,A132)","v":0}]
["2017-04-27",{"$f":"SUMIF(Archives!R:R,A133,Archives!B:B)","v":0},{"$f":"SUMIFS(Archives!B:B,Archives!F:F,\"HES\",Archives!R:R,A133)","v":0},{"$f":"SUMIFS(Archives!B:B,Archives!F:F,\"PAS\",Archives!R:R,A133)","v":0},{"$f":"SUMIFS(Archives!B:B,Archives!F:F,\"Colo Spé\",Archives!R:R,A133)","v":0},{"$f":"SUMIFS(Archives!G:G,Archives!F:F,\"Colo Spé\",Archives!R:R,A133)","v":0}]
["2017-04-28",{"$f":"SUMIF(Archives!R:R,A134,Archives!B:B)","v":0},{"$f":"SUMIFS(Archives!B:B,Archives!F:F,\"HES\",Archives!R:R,A134)","v":0},{"$f":"SUMIFS(Archives!B:B,Archives!F:F,\"PAS\",Archives!R:R,A134)","v":0},{"$f":"SUMIFS(Archives!B:B,Archives!F:F,\"Colo Spé\",Archives!R:R,A134)","v":0},{"$f":"SUMIFS(Archives!G:G,Archives!F:F,\"Colo Spé\",Archives!R:R,A134)","v":0}]
["2017-04-29",{"$f":"SUMIF(Archives!R:R,A135,Archives!B:B)","v":0},{"$f":"SUMIFS(Archives!B:B,Archives!F:F,\"HES\",Archives!R:R,A135)","v":0},{"$f":"SUMIFS(Archives!B:B,Archives!F:F,\"PAS\",Archives!R:R,A135)","v":0},{"$f":"SUMIFS(Archives!B:B,Archives!F:F,\"Colo Spé\",Archives!R:R,A135)","v":0},{"$f":"SUMIFS(Archives!G:G,Archives!F:F,\"Colo Spé\",Archives!R:R,A135)","v":0}]
["2017-04-30",{"$f":"SUMIF(Archives!R:R,A136,Archives!B:B)","v":0},{"$f":"SUMIFS(Archives!B:B,Archives!F:F,\"HES\",Archives!R:R,A136)","v":0},{"$f":"SUMIFS(Archives!B:B,Archives!F:F,\"PAS\",Archives!R:R,A136)","v":0},{"$f":"SUMIFS(Archives!B:B,Archives!F:F,\"Colo Spé\",Archives!R:R,A136)","v":0},{"$f":"SUMIFS(Archives!G:G,Archives!F:F,\"Colo Spé\",Archives!R:R,A136)","v":0}]
["Total Avril",{"$f":"SUM(B107:B136)","v":0},{"$f":"SUM(C107:C136)","v":0},0,0,0]
[]
["2017-05-01",{"$f":"SUMIF(Archives!R:R,A139,Archives!B:B)","v":1},{"$f":"SUMIFS(Archives!B:B,Archives!F:F,\"HES\",Archives!R:R,A139)","v":1},{"$f":"SUMIFS(Archives!B:B,Archives!F:F,\"PAS\",Archives!R:R,A139)","v":0},{"$f":"SUMIFS(Archives!B:B,Archives!F:F,\"Colo Spé\",Archives!R:R,A139)","v":0},{"$f":"SUMIFS(Archives!G:G,Archives!F:F,\"Colo Spé\",Archives!R:R,A139)","v":0}]
["2017-05-02",{"$f":"SUMIF(Archives!R:R,A140,Archives!B:B)","v":0},{"$f":"SUMIFS(Archives!B:B,Archives!F:F,\"HES\",Archives!R:R,A140)","v":0},{"$f":"SUMIFS(Archives!B:B,Archives!F:F,\"PAS\",Archives!R:R,A140)","v":0},{"$f":"SUMIFS(Archives!B:B,Archives!F:F,\"Colo Spé\",Archives!R:R,A140)","v":0},{"$f":"SUMIFS(Archives!G:G,Archives!F:F,\"Colo Spé\",Archives!R:R,A140)","v":0}]
["2017-05-03",{"$f":"SUMIF(Archives!R:R,A141,Archives!B:B)","v":0},{"$f":"SUMIFS(Archives!B:B,Archives!F:F,\"HES\",Archives!R:R,A141)","v":0},{"$f":"SUMIFS(Archives!B:B,Archives!F:F,\"PAS\",Archives!R:R,A141)","v":0},{"$f":"SUMIFS(Archives!B:B,Archives!F:F,\"Colo Spé\",Archives!R:R,A141)","v":0},{"$f":"SUMIFS(Archives!G:G,Archives!F:F,\"Colo Spé\",Archives!R:R,A141)","v":0}]
["2017-05-04",{"$f":"SUMIF(Archives!R:R,A142,Archives!B:B)","v":0},{"$f":"SUMIFS(Archives!B:B,Archives!F:F,\"HES\",Archives!R:R,A142)","v":0},{"$f":"SUMIFS(Archives!B:B,Archives!F:F,\"PAS\",Archives!R:R,A142)","v":0},{"$f":"SUMIFS(Archives!B:B,Archives!F:F,\"Colo Spé\",Archives!R:R,A142)","v":0},{"$f":"SUMIFS(Archives!G:G,Archives!F:F,\"Colo Spé\",Archives!R:R,A142)","v":0}]
["2017-05-05",{"$f":"SUMIF(Archives!R:R,A143,Archives!B:B)","v":0},{"$f":"SUMIFS(Archives!B:B,Archives!F:F,\"HES\",Archives!R:R,A143)","v":0},{"$f":"SUMIFS(Archives!B:B,Archives!F:F,\"PAS\",Archives!R:R,A143)","v":0},{"$f":"SUMIFS(Archives!B:B,Archives!F:F,\"Colo Spé\",Archives!R:R,A143)","v":0},{"$f":"SUMIFS(Archives!G:G,Archives!F:F,\"Colo Spé\",Archives!R:R,A143)","v":0}]
["2017-05-06",{"$f":"SUMIF(Archives!R:R,A144,Archives!B:B)","v":0},{"$f":"SUMIFS(Archives!B:B,Archives!F:F,\"HES\",Archives!R:R,A144)","v":0},{"$f":"SUMIFS(Archives!B:B,Archives!F:F,\"PAS\",Archives!R:R,A144)","v":0},{"$f":"SUMIFS(Archives!B:B,Archives!F:F,\"Colo Spé\",Archives!R:R,A144)","v":0},{"$f":"SUMIFS(Archives!G:G,Archives!F:F,\"Colo Spé\",Archives!R:R,A144)","v":0}]
["2017-05-07",{"$f":"SUMIF(Archives!R:R,A145,Archives!B:B)","v":0},{"$f":"SUMIFS(Archives!B:B,Archives!F:F,\"HES\",Archives!R:R,A145)","v":0},{"$f":"SUMIFS(Archives!B:B,Archives!F:F,\"PAS\",Archives!R:R,A145)","v":0},{"$f":"SUMIFS(Archives!B:B,Archives!F:F,\"Colo Spé\",Archives!R:R,A145)","v":0},{"$f":"SUMIFS(Archives!G:G,Archives!F:F,\"Colo Spé\",Archives!R:R,A145)","v":0}]
["2017-05-08",{"$f":"SUMIF(Archives!R:R,A146,Archives!B:B)","v":0},{"$f":"SUMIFS(Archives!B:B,Archives!F:F,\"HES\",Archives!R:R,A146)","v":0},{"$f":"SUMIFS(Archives!B:B,Archives!F:F,\"PAS\",Archives!R:R,A146)","v":0},{"$f":"SUMIFS(Archives!B:B,Archives!F:F,\"Colo Spé\",Archives!R:R,A146)","v":0},{"$f":"SUMIFS(Archives!G:G,Archives!F:F,\"Colo Spé\",Archives!R:R,A146)","v":0}]
["2017-05-09",{"$f":"SUMIF(Archives!R:R,A147,Archives!B:B)","v":0},{"$f":"SUMIFS(Archives!B:B,Archives!F:F,\"HES\",Archives!R:R,A147)","v":0},{"$f":"SUMIFS(Archives!B:B,Archives!F:F,\"PAS\",Archives!R:R,A147)","v":0},{"$f":"SUMIFS(Archives!B:B,Archives!F:F,\"Colo Spé\",Archives!R:R,A147)","v":0},{"$f":"SUMIFS(Archives!G:G,Archives!F:F,\"Colo Spé\",Archives!R:R,A147)","v":0}]
["2017-05-10",{"$f":"SUMIF(Archives!R:R,A148,Archives!B:B)","v":0},{"$f":"SUMIFS(Archives!B:B,Archives!F:F,\"HES\",Archives!R:R,A148)","v":0},{"$f":"SUMIFS(Archives!B:B,Archives!F:F,\"PAS\",Archives!R:R,A148)","v":0},{"$f":"SUMIFS(Archives!B:B,Archives!F:F,\"Colo Spé\",Archives!R:R,A148)","v":0},{"$f":"SUMIFS(Archives!G:G,Archives!F:F,\"Colo Spé\",Archives!R:R,A148)","v":0}]
["2017-05-11",{"$f":"SUMIF(Archives!R:R,A149,Archives!B:B)","v":0},{"$f":"SUMIFS(Archives!B:B,Archives!F:F,\"HES\",Archives!R:R,A149)","v":0},{"$f":"SUMIFS(Archives!B:B,Archives!F:F,\"PAS\",Archives!R:R,A149)","v":0},{"$f":"SUMIFS(Archives!B:B,Archives!F:F,\"Colo Spé\",Archives!R:R,A149)","v":0},{"$f":"SUMIFS(Archives!G:G,Archives!F:F,\"Colo Spé\",Archives!R:R,A149)","v":0}]
["2017-05-12",{"$f":"SUMIF(Archives!R:R,A150,Archives!B:B)","v":0},{"$f":"SUMIFS(Archives!B:B,Archives!F:F,\"HES\",Archives!R:R,A150)","v":0},{"$f":"SUMIFS(Archives!B:B,Archives!F:F,\"PAS\",Archives!R:R,A150)","v":0},{"$f":"SUMIFS(Archives!B:B,Archives!F:F,\"Colo Spé\",Archives!R:R,A150)","v":0},{"$f":"SUMIFS(Archives!G:G,Archives!F:F,\"Colo Spé\",Archives!R:R,A150)","v":0}]
["2017-05-13",{"$f":"SUMIF(Archives!R:R,A151,Archives!B:B)","v":0},{"$f":"SUMIFS(Archives!B:B,Archives!F:F,\"HES\",Archives!R:R,A151)","v":0},{"$f":"SUMIFS(Archives!B:B,Archives!F:F,\"PAS\",Archives!R:R,A151)","v":0},{"$f":"SUMIFS(Archives!B:B,Archives!F:F,\"Colo Spé\",Archives!R:R,A151)","v":0},{"$f":"SUMIFS(Archives!G:G,Archives!F:F,\"Colo Spé\",Archives!R:R,A151)","v":0}]
["2017-05-14",{"$f":"SUMIF(Archives!R:R,A152,Archives!B:B)","v":0},{"$f":"SUMIFS(Archives!B:B,Archives!F:F,\"HES\",Archives!R:R,A152)","v":0},{"$f":"SUMIFS(Archives!B:B,Archives!F:F,\"PAS\",Archives!R:R,A152)","v":0},{"$f":"SUMIFS(Archives!B:B,Archives!F:F,\"Colo Spé\",Archives!R:R,A152)","v":0},{"$f":"SUMIFS(Archives!G:G,Archives!F:F,\"Colo Spé\",Archives!R:R,A152)","v":0}]
["2017-05-15",{"$f":"SUMIF(Archives!R:R,A153,Archives!B:B)","v":0},{"$f":"SUMIFS(Archives!B:B,Archives!F:F,\"HES\",Archives!R:R,A153)","v":0},{"$f":"SUMIFS(Archives!B:B,Archives!F:F,\"PAS\",Archives!R:R,A153)","v":0},{"$f":"SUMIFS(Archives!B:B,Archives!F:F,\"Colo Spé\",Archives!R:R,A153)","v":0},{"$f":"SUMIFS(Archives!G:G,Archives!F:F,\"Colo Spé\",Archives!R:R,A153)","v":0}]
["2017-05-16",{"$f":"SUMIF(Archives!R:R,A154,Archives!B:B)","v":0},{"$f":"SUMIFS(Archives!B:B,Archives!F:F,\"HES\",Archives!R:R,A154)","v":0},{"$f":"SUMIFS(Archives!B:B,Archives!F:F,\"PAS\",Archives!R:R,A154)","v":0},{"$f":"SUMIFS(Archives!B:B,Archives!F:F,\"Colo Spé\",Archives!R:R,A154)","v":0},{"$f":"SUMIFS(Archives!G:G,Archives!F:F,\"Colo Spé\",Archives!R:R,A154)","v":0}]
["2017-05-17",{"$f":"SUMIF(Archives!R:R,A155,Archives!B:B)","v":0},{"$f":"SUMIFS(Archives!B:B,Archives!F:F,\"HES\",Archives!R:R,A155)","v":0},{"$f":"SUMIFS(Archives!B:B,Archives!F:F,\"PAS\",Archives!R:R,A155)","v":0},{"$f":"SUMIFS(Archives!B:B,Archives!F:F,\"Colo Spé\",Archives!R:R,A155)","v":0},{"$f":"SUMIFS(Archives!G:G,Archives!F:F,\"Colo Spé\",Archives!R:R,A155)","v":0}]
["2017-05-18",{"$f":"SUMIF(Archives!R:R,A156,Archives!B:B)","v":0},{"$f":"SUMIFS(Archives!B:B,Archives!F:F,\"HES\",Archives!R:R,A156)","v":0},{"$f":"SUMIFS(Archives!B:B,Archives!F:F,\"PAS\",Archives!R:R,A156)","v":0},{"$f":"SUMIFS(Archives!B:B,Archives!F:F,\"Colo Spé\",Archives!R:R,A156)","v":0},{"$f":"SUMIFS(Archives!G:G,Archives!F:F,\"Colo Spé\",Archives!R:R,A156)","v":0}]
["2017-05-19",{"$f":"SUMIF(Archives!R:R,A157,Archives!B:B)","v":0},{"$f":"SUMIFS(Archives!B:B,Archives!F:F,\"HES\",Archives!R:R,A157)","v":0},{"$f":"SUMIFS(Archives!B:B,Archives!F:F,\"PAS\",Archives!R:R,A157)","v":0},{"$f":"SUMIFS(Archives!B:B,Archives!F:F,\"Colo Spé\",Archives!R:R,A157)","v":0},{"$f":"SUMIFS(Archives!G:G,Archives!F:F,\"Colo Spé\",Archives!R:R,A157)","v":0}]
["2017-05-20",{"$f":"SUMIF(Archives!R:R,A158,Archives!B:B)","v":0},{"$f":"SUMIFS(Archives!B:B,Archives!F:F,\"HES\",Archives!R:R,A158)","v":0},{"$f":"SUMIFS(Archives!B:B,Archives!F:F,\"PAS\",Archives!R:R,A158)","v":0},{"$f":"SUMIFS(Archives!B:B,Archives!F:F,\"Colo Spé\",Archives!R:R,A158)","v":0},{"$f":"SUMIFS(Archives!G:G,Archives!F:F,\"Colo Spé\",Archives!R:R,A158)","v":0}]
["2017-05-21",{"$f":"SUMIF(Archives!R:R,A159,Archives!B:B)","v":0},{"$f":"SUMIFS(Archives!B:B,Archives!F:F,\"HES\",Archives!R:R,A159)","v":0},{"$f":"SUMIFS(Archives!B:B,Archives!F:F,\"PAS\",Archives!R:R,A159)","v":0},{"$f":"SUMIFS(Archives!B:B,Archives!F:F,\"Colo Spé\",Archives!R:R,A159)","v":0},{"$f":"SUMIFS(Archives!G:G,Archives!F:F,\"Colo Spé\",Archives!R:R,A159)","v":0}]
["2017-05-22",{"$f":"SUMIF(Archives!R:R,A160,Archives!B:B)","v":0},{"$f":"SUMIFS(Archives!B:B,Archives!F:F,\"HES\",Archives!R:R,A160)","v":0},{"$f":"SUMIFS(Archives!B:B,Archives!F:F,\"PAS\",Archives!R:R,A160)","v":0},{"$f":"SUMIFS(Archives!B:B,Archives!F:F,\"Colo Spé\",Archives!R:R,A160)","v":0},{"$f":"SUMIFS(Archives!G:G,Archives!F:F,\"Colo Spé\",Archives!R:R,A160)","v":0}]
["2017-05-23",{"$f":"SUMIF(Archives!R:R,A161,Archives!B:B)","v":0},{"$f":"SUMIFS(Archives!B:B,Archives!F:F,\"HES\",Archives!R:R,A161)","v":0},{"$f":"SUMIFS(Archives!B:B,Archives!F:F,\"PAS\",Archives!R:R,A161)","v":0},{"$f":"SUMIFS(Archives!B:B,Archives!F:F,\"Colo Spé\",Archives!R:R,A161)","v":0},{"$f":"SUMIFS(Archives!G:G,Archives!F:F,\"Colo Spé\",Archives!R:R,A161)","v":0}]
["2017-05-24",{"$f":"SUMIF(Archives!R:R,A162,Archives!B:B)","v":0},{"$f":"SUMIFS(Archives!B:B,Archives!F:F,\"HES\",Archives!R:R,A162)","v":0},{"$f":"SUMIFS(Archives!B:B,Archives!F:F,\"PAS\",Archives!R:R,A162)","v":0},{"$f":"SUMIFS(Archives!B:B,Archives!F:F,\"Colo Spé\",Archives!R:R,A162)","v":0},{"$f":"SUMIFS(Archives!G:G,Archives!F:F,\"Colo Spé\",Archives!R:R,A162)","v":0}]
["2017-05-25",{"$f":"SUMIF(Archives!R:R,A163,Archives!B:B)","v":0},{"$f":"SUMIFS(Archives!B:B,Archives!F:F,\"HES\",Archives!R:R,A163)","v":0},{"$f":"SUMIFS(Archives!B:B,Archives!F:F,\"PAS\",Archives!R:R,A163)","v":0},{"$f":"SUMIFS(Archives!B:B,Archives!F:F,\"Colo Spé\",Archives!R:R,A163)","v":0},{"$f":"SUMIFS(Archives!G:G,Archives!F:F,\"Colo Spé\",Archives!R:R,A163)","v":0}]
["2017-05-26",{"$f":"SUMIF(Archives!R:R,A164,Archives!B:B)","v":0},{"$f":"SUMIFS(Archives!B:B,Archives!F:F,\"HES\",Archives!R:R,A164)","v":0},{"$f":"SUMIFS(Archives!B:B,Archives!F:F,\"PAS\",Archives!R:R,A164)","v":0},{"$f":"SUMIFS(Archives!B:B,Archives!F:F,\"Colo Spé\",Archives!R:R,A164)","v":0},{"$f":"SUMIFS(Archives!G:G,Archives!F:F,\"Colo Spé\",Archives!R:R,A164)","v":0}]
["2017-05-27",{"$f":"SUMIF(Archives!R:R,A165,Archives!B:B)","v":0},{"$f":"SUMIFS(Archives!B:B,Archives!F:F,\"HES\",Archives!R:R,A165)","v":0},{"$f":"SUMIFS(Archives!B:B,Archives!F:F,\"PAS\",Archives!R:R,A165)","v":0},{"$f":"SUMIFS(Archives!B:B,Archives!F:F,\"Colo Spé\",Archives!R:R,A165)","v":0},{"$f":"SUMIFS(Archives!G:G,Archives!F:F,\"Colo Spé\",Archives!R:R,A165)","v":0}]
["2017-05-28",{"$f":"SUMIF(Archives!R:R,A166,Archives!B:B)","v":0},{"$f":"SUMIFS(Archives!B:B,Archives!F:F,\"HES\",Archives!R:R,A166)","v":0},{"$f":"SUMIFS(Archives!B:B,Archives!F:F,\"PAS\",Archives!R:R,A166)","v":0},{"$f":"SUMIFS(Archives!B:B,Archives!F:F,\"Colo Spé\",Archives!R:R,A166)","v":0},{"$f":"SUMIFS(Archives!G:G,Archives!F:F,\"Colo Spé\",Archives!R:R,A166)","v":0}]
["2017-05-29",{"$f":"SUMIF(Archives!R:R,A167,Archives!B:B)","v":0},{"$f":"SUMIFS(Archives!B:B,Archives!F:F,\"HES\",Archives!R:R,A167)","v":0},{"$f":"SUMIFS(Archives!B:B,Archives!F:F,\"PAS\",Archives!R:R,A167)","v":0},{"$f":"SUMIFS(Archives!B:B,Archives!F:F,\"Colo Spé\",Archives!R:R,A167)","v":0},{"$f":"SUMIFS(Archives!G:G,Archives!F:F,\"Colo Spé\",Archives!R:R,A167)","v":0}]
["2017-05-30",{"$f":"SUMIF(Archives!R:R,A168,Archives!B:B)","v":0},{"$f":"SUMIFS(Archives!B:B,Archives!F:F,\"HES\",Archives!R:R,A168)","v":0},{"$f":"SUMIFS(Archives!B:B,Archives!F:F,\"PAS\",Archives!R:R,A168)","v":0},{"$f":"SUMIFS(Archives!B:B,Archives!F:F,\"Colo Spé\",Archives!R:R,A168)","v":0},{"$f":"SUMIFS(Archives!G:G,Archives!F:F,\"Colo Spé\",Archives!R:R,A168)","v":0}]
["2017-05-31",{"$f":"SUMIF(Archives!R:R,A169,Archives!B:B)","v":0},{"$f":"SUMIFS(Archives!B:B,Archives!F:F,\"HES\",Archives!R:R,A169)","v":0},{"$f":"SUMIFS(Archives!B:B,Archives!F:F,\"PAS\",Archives!R:R,A169)","v":0},{"$f":"SUMIFS(Archives!B:B,Archives!F:F,\"Colo Spé\",Archives!R:R,A169)","v":0},{"$f":"SUMIFS(Archives!G:G,Archives!F:F,\"Colo Spé\",Archives!R:R,A169)","v":0}]
["Total Mai",{"$f":"SUM(B139:B169)","v":1},{"$f":"SUM(C139:C169)","v":1},0,0,0]
[]
["2017-06-01",{"$f":"SUMIF(Archives!R:R,A172,Archives!B:B)","v":0},{"$f":"SUMIFS(Archives!B:B,Archives!F:F,\"HES\",Archives!R:R,A172)","v":0},{"$f":"SUMIFS(Archives!B:B,Archives!F:F,\"PAS\",Archives!R:R,A172)","v":0},{"$f":"SUMIFS(Archives!B:B,Archives!F:F,\"Colo Spé\",Archives!R:R,A172)","v":0},{"$f":"SUMIFS(Archives!G:G,Archives!F:F,\"Colo Spé\",Archives!R:R,A172)","v":0}]
["2017-06-02",{"$f":"SUMIF(Archives!R:R,A173,Archives!B:B)","v":0},{"$f":"SUMIFS(Archives!B:B,Archives!F:F,\"HES\",Archives!R:R,A173)","v":0},{"$f":"SUMIFS(Archives!B:B,Archives!F:F,\"PAS\",Archives!R:R,A173)","v":0},{"$f":"SUMIFS(Archives!B:B,Archives!F:F,\"Colo Spé\",Archives!R:R,A173)","v":0},{"$f":"SUMIFS(Archives!G:G,Archives!F:F,\"Colo Spé\",Archives!R:R,A173)","v":0}]
["2017-06-03",{"$f":"SUMIF(Archives!R:R,A174,Archives!B:B)","v":0},{"$f":"SUMIFS(Archives!B:B,Archives!F:F,\"HES\",Archives!R:R,A174)","v":0},{"$f":"SUMIFS(Archives!B:B,Archives!F:F,\"PAS\",Archives!R:R,A174)","v":0},{"$f":"SUMIFS(Archives!B:B,Archives!F:F,\"Colo Spé\",Archives!R:R,A174)","v":0},{"$f":"SUMIFS(Archives!G:G,Archives!F:F,\"Colo Spé\",Archives!R:R,A174)","v":0}]
["2017-06-04",{"$f":"SUMIF(Archives!R:R,A175,Archives!B:B)","v":0},{"$f":"SUMIFS(Archives!B:B,Archives!F:F,\"HES\",Archives!R:R,A175)","v":0},{"$f":"SUMIFS(Archives!B:B,Archives!F:F,\"PAS\",Archives!R:R,A175)","v":0},{"$f":"SUMIFS(Archives!B:B,Archives!F:F,\"Colo Spé\",Archives!R:R,A175)","v":0},{"$f":"SUMIFS(Archives!G:G,Archives!F:F,\"Colo Spé\",Archives!R:R,A175)","v":0}]
["2017-06-05",{"$f":"SUMIF(Archives!R:R,A176,Archives!B:B)","v":0},{"$f":"SUMIFS(Archives!B:B,Archives!F:F,\"HES\",Archives!R:R,A176)","v":0},{"$f":"SUMIFS(Archives!B:B,Archives!F:F,\"PAS\",Archives!R:R,A176)","v":0},{"$f":"SUMIFS(Archives!B:B,Archives!F:F,\"Colo Spé\",Archives!R:R,A176)","v":0},{"$f":"SUMIFS(Archives!G:G,Archives!F:F,\"Colo Spé\",Archives!R:R,A176)","v":0}]
["2017-06-06",{"$f":"SUMIF(Archives!R:R,A177,Archives!B:B)","v":0},{"$f":"SUMIFS(Archives!B:B,Archives!F:F,\"HES\",Archives!R:R,A177)","v":0},{"$f":"SUMIFS(Archives!B:B,Archives!F:F,\"PAS\",Archives!R:R,A177)","v":0},{"$f":"SUMIFS(Archives!B:B,Archives!F:F,\"Colo Spé\",Archives!R:R,A177)","v":0},{"$f":"SUMIFS(Archives!G:G,Archives!F:F,\"Colo Spé\",Archives!R:R,A177)","v":0}]
["2017-06-07",{"$f":"SUMIF(Archives!R:R,A178,Archives!B:B)","v":0},{"$f":"SUMIFS(Archives!B:B,Archives!F:F,\"HES\",Archives!R:R,A178)","v":0},{"$f":"SUMIFS(Archives!B:B,Archives!F:F,\"PAS\",Archives!R:R,A178)","v":0},{"$f":"SUMIFS(Archives!B:B,Archives!F:F,\"Colo Spé\",Archives!R:R,A178)","v":0},{"$f":"SUMIFS(Archives!G:G,Archives!F:F,\"Colo Spé\",Archives!R:R,A178)","v":0}]
["2017-06-08",{"$f":"SUMIF(Archives!R:R,A179,Archives!B:B)","v":0},{"$f":"SUMIFS(Archives!B:B,Archives!F:F,\"HES\",Archives!R:R,A179)","v":0},{"$f":"SUMIFS(Archives!B:B,Archives!F:F,\"PAS\",Archives!R:R,A179)","v":0},{"$f":"SUMIFS(Archives!B:B,Archives!F:F,\"Colo Spé\",Archives!R:R,A179)","v":0},{"$f":"SUMIFS(Archives!G:G,Archives!F:F,\"Colo Spé\",Archives!R:R,A179)","v":0}]
["2017-06-09",{"$f":"SUMIF(Archives!R:R,A180,Archives!B:B)","v":0},{"$f":"SUMIFS(Archives!B:B,Archives!F:F,\"HES\",Archives!R:R,A180)","v":0},{"$f":"SUMIFS(Archives!B:B,Archives!F:F,\"PAS\",Archives!R:R,A180)","v":0},{"$f":"SUMIFS(Archives!B:B,Archives!F:F,\"Colo Spé\",Archives!R:R,A180)","v":0},{"$f":"SUMIFS(Archives!G:G,Archives!F:F,\"Colo Spé\",Archives!R:R,A180)","v":0}]
["2017-06-10",{"$f":"SUMIF(Archives!R:R,A181,Archives!B:B)","v":0},{"$f":"SUMIFS(Archives!B:B,Archives!F:F,\"HES\",Archives!R:R,A181)","v":0},{"$f":"SUMIFS(Archives!B:B,Archives!F:F,\"PAS\",Archives!R:R,A181)","v":0},{"$f":"SUMIFS(Archives!B:B,Archives!F:F,\"Colo Spé\",Archives!R:R,A181)","v":0},{"$f":"SUMIFS(Archives!G:G,Archives!F:F,\"Colo Spé\",Archives!R:R,A181)","v":0}]
["2017-06-11",{"$f":"SUMIF(Archives!R:R,A182,Archives!B:B)","v":0},{"$f":"SUMIFS(Archives!B:B,Archives!F:F,\"HES\",Archives!R:R,A182)","v":0},{"$f":"SUMIFS(Archives!B:B,Archives!F:F,\"PAS\",Archives!R:R,A182)","v":0},{"$f":"SUMIFS(Archives!B:B,Archives!F:F,\"Colo Spé\",Archives!R:R,A182)","v":0},{"$f":"SUMIFS(Archives!G:G,Archives!F:F,\"Colo Spé\",Archives!R:R,A182)","v":0}]
["2017-06-12",{"$f":"SUMIF(Archives!R:R,A183,Archives!B:B)","v":0},{"$f":"SUMIFS(Archives!B:B,Archives!F:F,\"HES\",Archives!R:R,A183)","v":0},{"$f":"SUMIFS(Archives!B:B,Archives!F:F,\"PAS\",Archives!R:R,A183)","v":0},{"$f":"SUMIFS(Archives!B:B,Archives!F:F,\"Colo Spé\",Archives!R:R,A183)","v":0},{"$f":"SUMIFS(Archives!G:G,Archives!F:F,\"Colo Spé\",Archives!R:R,A183)","v":0}]
["2017-06-13",{"$f":"SUMIF(Archives!R:R,A184,Archives!B:B)","v":0},{"$f":"SUMIFS(Archives!B:B,Archives!F:F,\"HES\",Archives!R:R,A184)","v":0},{"$f":"SUMIFS(Archives!B:B,Archives!F:F,\"PAS\",Archives!R:R,A184)","v":0},{"$f":"SUMIFS(Archives!B:B,Archives!F:F,\"Colo Spé\",Archives!R:R,A184)","v":0},{"$f":"SUMIFS(Archives!G:G,Archives!F:F,\"Colo Spé\",Archives!R:R,A184)","v":0}]
["2017-06-14",{"$f":"SUMIF(Archives!R:R,A185,Archives!B:B)","v":0},{"$f":"SUMIFS(Archives!B:B,Archives!F:F,\"HES\",Archives!R:R,A185)","v":0},{"$f":"SUMIFS(Archives!B:B,Archives!F:F,\"PAS\",Archives!R:R,A185)","v":0},{"$f":"SUMIFS(Archives!B:B,Archives!F:F,\"Colo Spé\",Archives!R:R,A185)","v":0},{"$f":"SUMIFS(Archives!G:G,Archives!F:F,\"Colo Spé\",Archives!R:R,A185)","v":0}]
["2017-06-15",{"$f":"SUMIF(Archives!R:R,A186,Archives!B:B)","v":0},{"$f":"SUMIFS(Archives!B:B,Archives!F:F,\"HES\",Archives!R:R,A186)","v":0},{"$f":"SUMIFS(Archives!B:B,Archives!F:F,\"PAS\",Archives!R:R,A186)","v":0},{"$f":"SUMIFS(Archives!B:B,Archives!F:F,\"Colo Spé\",Archives!R:R,A186)","v":0},{"$f":"SUMIFS(Archives!G:G,Archives!F:F,\"Colo Spé\",Archives!R:R,A186)","v":0}]
["2017-06-16",{"$f":"SUMIF(Archives!R:R,A187,Archives!B:B)","v":0},{"$f":"SUMIFS(Archives!B:B,Archives!F:F,\"HES\",Archives!R:R,A187)","v":0},{"$f":"SUMIFS(Archives!B:B,Archives!F:F,\"PAS\",Archives!R:R,A187)","v":0},{"$f":"SUMIFS(Archives!B:B,Archives!F:F,\"Colo Spé\",Archives!R:R,A187)","v":0},{"$f":"SUMIFS(Archives!G:G,Archives!F:F,\"Colo Spé\",Archives!R:R,A187)","v":0}]
["2017-06-17",{"$f":"SUMIF(Archives!R:R,A188,Archives!B:B)","v":0},{"$f":"SUMIFS(Archives!B:B,Archives!F:F,\"HES\",Archives!R:R,A188)","v":0},{"$f":"SUMIFS(Archives!B:B,Archives!F:F,\"PAS\",Archives!R:R,A188)","v":0},{"$f":"SUMIFS(Archives!B:B,Archives!F:F,\"Colo Spé\",Archives!R:R,A188)","v":0},{"$f":"SUMIFS(Archives!G:G,Archives!F:F,\"Colo Spé\",Archives!R:R,A188)","v":0}]
["2017-06-18",{"$f":"SUMIF(Archives!R:R,A189,Archives!B:B)","v":0},{"$f":"SUMIFS(Archives!B:B,Archives!F:F,\"HES\",Archives!R:R,A189)","v":0},{"$f":"SUMIFS(Archives!B:B,Archives!F:F,\"PAS\",Archives!R:R,A189)","v":0},{"$f":"SUMIFS(Archives!B:B,Archives!F:F,\"Colo Spé\",Archives!R:R,A189)","v":0},{"$f":"SUMIFS(Archives!G:G,Archives!F:F,\"Colo Spé\",Archives!R:R,A189)","v":0}]
["2017-06-19",{"$f":"SUMIF(Archives!R:R,A190,Archives!B:B)","v":0},{"$f":"SUMIFS(Archives!B:B,Archives!F:F,\"HES\",Archives!R:R,A190)","v":0},{"$f":"SUMIFS(Archives!B:B,Archives!F:F,\"PAS\",Archives!R:R,A190)","v":0},{"$f":"SUMIFS(Archives!B:B,Archives!F:F,\"Colo Spé\",Archives!R:R,A190)","v":0},{"$f":"SUMIFS(Archives!G:G,Archives!F:F,\"Colo Spé\",Archives!R:R,A190)","v":0}]
["2017-06-20",{"$f":"SUMIF(Archives!R:R,A191,Archives!B:B)","v":0},{"$f":"SUMIFS(Archives!B:B,Archives!F:F,\"HES\",Archives!R:R,A191)","v":0},{"$f":"SUMIFS(Archives!B:B,Archives!F:F,\"PAS\",Archives!R:R,A191)","v":0},{"$f":"SUMIFS(Archives!B:B,Archives!F:F,\"Colo Spé\",Archives!R:R,A191)","v":0},{"$f":"SUMIFS(Archives!G:G,Archives!F:F,\"Colo Spé\",Archives!R:R,A191)","v":0}]
["2017-06-21",{"$f":"SUMIF(Archives!R:R,A192,Archives!B:B)","v":0},{"$f":"SUMIFS(Archives!B:B,Archives!F:F,\"HES\",Archives!R:R,A192)","v":0},{"$f":"SUMIFS(Archives!B:B,Archives!F:F,\"PAS\",Archives!R:R,A192)","v":0},{"$f":"SUMIFS(Archives!B:B,Archives!F:F,\"Colo Spé\",Archives!R:R,A192)","v":0},{"$f":"SUMIFS(Archives!G:G,Archives!F:F,\"Colo Spé\",Archives!R:R,A192)","v":0}]
["2017-06-22",{"$f":"SUMIF(Archives!R:R,A193,Archives!B:B)","v":0},{"$f":"SUMIFS(Archives!B:B,Archives!F:F,\"HES\",Archives!R:R,A193)","v":0},{"$f":"SUMIFS(Archives!B:B,Archives!F:F,\"PAS\",Archives!R:R,A193)","v":0},{"$f":"SUMIFS(Archives!B:B,Archives!F:F,\"Colo Spé\",Archives!R:R,A193)","v":0},{"$f":"SUMIFS(Archives!G:G,Archives!F:F,\"Colo Spé\",Archives!R:R,A193)","v":0}]
["2017-06-23",{"$f":"SUMIF(Archives!R:R,A194,Archives!B:B)","v":0},{"$f":"SUMIFS(Archives!B:B,Archives!F:F,\"HES\",Archives!R:R,A194)","v":0},{"$f":"SUMIFS(Archives!B:B,Archives!F:F,\"PAS\",Archives!R:R,A194)","v":0},{"$f":"SUMIFS(Archives!B:B,Archives!F:F,\"Colo Spé\",Archives!R:R,A194)","v":0},{"$f":"SUMIFS(Archives!G:G,Archives!F:F,\"Colo Spé\",Archives!R:R,A194)","v":0}]
["2017-06-24",{"$f":"SUMIF(Archives!R:R,A195,Archives!B:B)","v":0},{"$f":"SUMIFS(Archives!B:B,Archives!F:F,\"HES\",Archives!R:R,A195)","v":0},{"$f":"SUMIFS(Archives!B:B,Archives!F:F,\"PAS\",Archives!R:R,A195)","v":0},{"$f":"SUMIFS(Archives!B:B,Archives!F:F,\"Colo Spé\",Archives!R:R,A195)","v":0},{"$f":"SUMIFS(Archives!G:G,Archives!F:F,\"Colo Spé\",Archives!R:R,A195)","v":0}]
["2017-06-25",{"$f":"SUMIF(Archives!R:R,A196,Archives!B:B)","v":0},{"$f":"SUMIFS(Archives!B:B,Archives!F:F,\"HES\",Archives!R:R,A196)","v":0},{"$f":"SUMIFS(Archives!B:B,Archives!F:F,\"PAS\",Archives!R:R,A196)","v":0},{"$f":"SUMIFS(Archives!B:B,Archives!F:F,\"Colo Spé\",Archives!R:R,A196)","v":0},{"$f":"SUMIFS(Archives!G:G,Archives!F:F,\"Colo Spé\",Archives!R:R,A196)","v":0}]
["2017-06-26",{"$f":"SUMIF(Archives!R:R,A197,Archives!B:B)","v":0},{"$f":"SUMIFS(Archives!B:B,Archives!F:F,\"HES\",Archives!R:R,A197)","v":0},{"$f":"SUMIFS(Archives!B:B,Archives!F:F,\"PAS\",Archives!R:R,A197)","v":0},{"$f":"SUMIFS(Archives!B:B,Archives!F:F,\"Colo Spé\",Archives!R:R,A197)","v":0},{"$f":"SUMIFS(Archives!G:G,Archives!F:F,\"Colo Spé\",Archives!R:R,A197)","v":0}]
["2017-06-27",{"$f":"SUMIF(Archives!R:R,A198,Archives!B:B)","v":0},{"$f":"SUMIFS(Archives!B:B,Archives!F:F,\"HES\",Archives!R:R,A198)","v":0},{"$f":"SUMIFS(Archives!B:B,Archives!F:F,\"PAS\",Archives!R:R,A198)","v":0},{"$f":"SUMIFS(Archives!B:B,Archives!F:F,\"Colo Spé\",Archives!R:R,A198)","v":0},{"$f":"SUMIFS(Archives!G:G,Archives!F:F,\"Colo Spé\",Archives!R:R,A198)","v":0}]
["2017-06-28",{"$f":"SUMIF(Archives!R:R,A199,Archives!B:B)","v":0},{"$f":"SUMIFS(Archives!B:B,Archives!F:F,\"HES\",Archives!R:R,A199)","v":0},{"$f":"SUMIFS(Archives!B:B,Archives!F:F,\"PAS\",Archives!R:R,A199)","v":0},{"$f":"SUMIFS(Archives!B:B,Archives!F:F,\"Colo Spé\",Archives!R:R,A199)","v":0},{"$f":"SUMIFS(Archives!G:G,Archives!F:F,\"Colo Spé\",Archives!R:R,A199)","v":0}]
["2017-06-29",{"$f":"SUMIF(Archives!R:R,A200,Archives!B:B)","v":0},{"$f":"SUMIFS(Archives!B:B,Archives!F:F,\"HES\",Archives!R:R,A200)","v":0},{"$f":"SUMIFS(Archives!B:B,Archives!F:F,\"PAS\",Archives!R:R,A200)","v":0},{"$f":"SUMIFS(Archives!B:B,Archives!F:F,\"Colo Spé\",Archives!R:R,A200)","v":0},{"$f":"SUMIFS(Archives!G:G,Archives!F:F,\"Colo Spé\",Archives!R:R,A200)","v":0}]
["2017-06-30",{"$f":"SUMIF(Archives!R:R,A201,Archives!B:B)","v":0},{"$f":"SUMIFS(Archives!B:B,Archives!F:F,\"HES\",Archives!R:R,A201)","v":0},{"$f":"SUMIFS(Archives!B:B,Archives!F:F,\"PAS\",Archives!R:R,A201)","v":0},{"$f":"SUMIFS(Archives!B:B,Archives!F:F,\"Colo Spé\",Archives!R:R,A201)","v":0},{"$f":"SUMIFS(Archives!G:G,Archives!F:F,\"Colo Spé\",Archives!R:R,A201)","v":0}]
["Total Juin",{"$f":"SUM(B172:B201)","v":0},{"$f":"SUM(C172:C201)","v":0},0,0,0]
[]
["2017-07-01",{"$f":"SUMIF(Archives!R:R,A204,Archives!B:B)","v":0},{"$f":"SUMIFS(Archives!B:B,Archives!F:F,\"HES\",Archives!R:R,A204)","v":0},{"$f":"SUMIFS(Archives!B:B,Archives!F:F,\"PAS\",Archives!R:R,A204)","v":0},{"$f":"SUMIFS(Archives!B:B,Archives!F:F,\"Colo Spé\",Archives!R:R,A204)","v":0},{"$f":"SUMIFS(Archives!G:G,Archives!F:F,\"Colo Spé\",Archives!R:R,A204)","v":0}]
["2017-07-02",{"$f":"SUMIF(Archives!R:R,A205,Archives!B:B)","v":0},{"$f":"SUMIFS(Archives!B:B,Archives!F:F,\"HES\",Archives!R:R,A205)","v":0},{"$f":"SUMIFS(Archives!B:B,Archives!F:F,\"PAS\",Archives!R:R,A205)","v":0},{"$f":"SUMIFS(Archives!B:B,Archives!F:F,\"Colo Spé\",Archives!R:R,A205)","v":0},{"$f":"SUMIFS(Archives!G:G,Archives!F:F,\"Colo Spé\",Archives!R:R,A205)","v":0}]
["2017-07-03",{"$f":"SUMIF(Archives!R:R,A206,Archives!B:B)","v":0},{"$f":"SUMIFS(Archives!B:B,Archives!F:F,\"HES\",Archives!R:R,A206)","v":0},{"$f":"SUMIFS(Archives!B:B,Archives!F:F,\"PAS\",Archives!R:R,A206)","v":0},{"$f":"SUMIFS(Archives!B:B,Archives!F:F,\"Colo Spé\",Archives!R:R,A206)","v":0},{"$f":"SUMIFS(Archives!G:G,Archives!F:F,\"Colo Spé\",Archives!R:R,A206)","v":0}]
["2017-07-04",{"$f":"SUMIF(Archives!R:R,A207,Archives!B:B)","v":0},{"$f":"SUMIFS(Archives!B:B,Archives!F:F,\"HES\",Archives!R:R,A207)","v":0},{"$f":"SUMIFS(Archives!B:B,Archives!F:F,\"PAS\",Archives!R:R,A207)","v":0},{"$f":"SUMIFS(Archives!B:B,Archives!F:F,\"Colo Spé\",Archives!R:R,A207)","v":0},{"$f":"SUMIFS(Archives!G:G,Archives!F:F,\"Colo Spé\",Archives!R:R,A207)","v":0}]
["2017-07-05",{"$f":"SUMIF(Archives!R:R,A208,Archives!B:B)","v":0},{"$f":"SUMIFS(Archives!B:B,Archives!F:F,\"HES\",Archives!R:R,A208)","v":0},{"$f":"SUMIFS(Archives!B:B,Archives!F:F,\"PAS\",Archives!R:R,A208)","v":0},{"$f":"SUMIFS(Archives!B:B,Archives!F:F,\"Colo Spé\",Archives!R:R,A208)","v":0},{"$f":"SUMIFS(Archives!G:G,Archives!F:F,\"Colo Spé\",Archives!R:R,A208)","v":0}]
["2017-07-06",{"$f":"SUMIF(Archives!R:R,A209,Archives!B:B)","v":0},{"$f":"SUMIFS(Archives!B:B,Archives!F:F,\"HES\",Archives!R:R,A209)","v":0},{"$f":"SUMIFS(Archives!B:B,Archives!F:F,\"PAS\",Archives!R:R,A209)","v":0},{"$f":"SUMIFS(Archives!B:B,Archives!F:F,\"Colo Spé\",Archives!R:R,A209)","v":0},{"$f":"SUMIFS(Archives!G:G,Archives!F:F,\"Colo Spé\",Archives!R:R,A209)","v":0}]
["2017-07-07",{"$f":"SUMIF(Archives!R:R,A210,Archives!B:B)","v":0},{"$f":"SUMIFS(Archives!B:B,Archives!F:F,\"HES\",Archives!R:R,A210)","v":0},{"$f":"SUMIFS(Archives!B:B,Archives!F:F,\"PAS\",Archives!R:R,A210)","v":0},{"$f":"SUMIFS(Archives!B:B,Archives!F:F,\"Colo Spé\",Archives!R:R,A210)","v":0},{"$f":"SUMIFS(Archives!G:G,Archives!F:F,\"Colo Spé\",Archives!R:R,A210)","v":0}]
["2017-07-08",{"$f":"SUMIF(Archives!R:R,A211,Archives!B:B)","v":0},{"$f":"SUMIFS(Archives!B:B,Archives!F:F,\"HES\",Archives!R:R,A211)","v":0},{"$f":"SUMIFS(Archives!B:B,Archives!F:F,\"PAS\",Archives!R:R,A211)","v":0},{"$f":"SUMIFS(Archives!B:B,Archives!F:F,\"Colo Spé\",Archives!R:R,A211)","v":0},{"$f":"SUMIFS(Archives!G:G,Archives!F:F,\"Colo Spé\",Archives!R:R,A211)","v":0}]
["2017-07-09",{"$f":"SUMIF(Archives!R:R,A212,Archives!B:B)","v":0},{"$f":"SUMIFS(Archives!B:B,Archives!F:F,\"HES\",Archives!R:R,A212)","v":0},{"$f":"SUMIFS(Archives!B:B,Archives!F:F,\"PAS\",Archives!R:R,A212)","v":0},{"$f":"SUMIFS(Archives!B:B,Archives!F:F,\"Colo Spé\",Archives!R:R,A212)","v":0},{"$f":"SUMIFS(Archives!G:G,Archives!F:F,\"Colo Spé\",Archives!R:R,A212)","v":0}]
["2017-07-10",{"$f":"SUMIF(Archives!R:R,A213,Archives!B:B)","v":0},{"$f":"SUMIFS(Archives!B:B,Archives!F:F,\"HES\",Archives!R:R,A213)","v":0},{"$f":"SUMIFS(Archives!B:B,Archives!F:F,\"PAS\",Archives!R:R,A213)","v":0},{"$f":"SUMIFS(Archives!B:B,Archives!F:F,\"Colo Spé\",Archives!R:R,A213)","v":0},{"$f":"SUMIFS(Archives!G:G,Archives!F:F,\"Colo Spé\",Archives!R:R,A213)","v":0}]
["2017-07-11",{"$f":"SUMIF(Archives!R:R,A214,Archives!B:B)","v":0},{"$f":"SUMIFS(Archives!B:B,Archives!F:F,\"HES\",Archives!R:R,A214)","v":0},{"$f":"SUMIFS(Archives!B:B,Archives!F:F,\"PAS\",Archives!R:R,A214)","v":0},{"$f":"SUMIFS(Archives!B:B,Archives!F:F,\"Colo Spé\",Archives!R:R,A214)","v":0},{"$f":"SUMIFS(Archives!G:G,Archives!F:F,\"Colo Spé\",Archives!R:R,A214)","v":0}]
["2017-07-12",{"$f":"SUMIF(Archives!R:R,A215,Archives!B:B)","v":0},{"$f":"SUMIFS(Archives!B:B,Archives!F:F,\"HES\",Archives!R:R,A215)","v":0},{"$f":"SUMIFS(Archives!B:B,Archives!F:F,\"PAS\",Archives!R:R,A215)","v":0},{"$f":"SUMIFS(Archives!B:B,Archives!F:F,\"Colo Spé\",Archives!R:R,A215)","v":0},{"$f":"SUMIFS(Archives!G:G,Archives!F:F,\"Colo Spé\",Archives!R:R,A215)","v":0}]
["2017-07-13",{"$f":"SUMIF(Archives!R:R,A216,Archives!B:B)","v":0},{"$f":"SUMIFS(Archives!B:B,Archives!F:F,\"HES\",Archives!R:R,A216)","v":0},{"$f":"SUMIFS(Archives!B:B,Archives!F:F,\"PAS\",Archives!R:R,A216)","v":0},{"$f":"SUMIFS(Archives!B:B,Archives!F:F,\"Colo Spé\",Archives!R:R,A216)","v":0},{"$f":"SUMIFS(Archives!G:G,Archives!F:F,\"Colo Spé\",Archives!R:R,A216)","v":0}]
["2017-07-14",{"$f":"SUMIF(Archives!R:R,A217,Archives!B:B)","v":0},{"$f":"SUMIFS(Archives!B:B,Archives!F:F,\"HES\",Archives!R:R,A217)","v":0},{"$f":"SUMIFS(Archives!B:B,Archives!F:F,\"PAS\",Archives!R:R,A217)","v":0},{"$f":"SUMIFS(Archives!B:B,Archives!F:F,\"Colo Spé\",Archives!R:R,A217)","v":0},{"$f":"SUMIFS(Archives!G:G,Archives!F:F,\"Colo Spé\",Archives!R:R,A217)","v":0}]
["2017-07-15",{"$f":"SUMIF(Archives!R:R,A218,Archives!B:B)","v":0},{"$f":"SUMIFS(Archives!B:B,Archives!F:F,\"HES\",Archives!R:R,A218)","v":0},{"$f":"SUMIFS(Archives!B:B,Archives!F:F,\"PAS\",Archives!R:R,A218)","v":0},{"$f":"SUMIFS(Archives!B:B,Archives!F:F,\"Colo Spé\",Archives!R:R,A218)","v":0},{"$f":"SUMIFS(Archives!G:G,Archives!F:F,\"Colo Spé\",Archives!R:R,A218)","v":0}]
["2017-07-16",{"$f":"SUMIF(Archives!R:R,A219,Archives!B:B)","v":0},{"$f":"SUMIFS(Archives!B:B,Archives!F:F,\"HES\",Archives!R:R,A219)","v":0},{"$f":"SUMIFS(Archives!B:B,Archives!F:F,\"PAS\",Archives!R:R,A219)","v":0},{"$f":"SUMIFS(Archives!B:B,Archives!F:F,\"Colo Spé\",Archives!R:R,A219)","v":0},{"$f":"SUMIFS(Archives!G:G,Archives!F:F,\"Colo Spé\",Archives!R:R,A219)","v":0}]
["2017-07-17",{"$f":"SUMIF(Archives!R:R,A220,Archives!B:B)","v":0},{"$f":"SUMIFS(Archives!B:B,Archives!F:F,\"HES\",Archives!R:R,A220)","v":0},{"$f":"SUMIFS(Archives!B:B,Archives!F:F,\"PAS\",Archives!R:R,A220)","v":0},{"$f":"SUMIFS(Archives!B:B,Archives!F:F,\"Colo Spé\",Archives!R:R,A220)","v":0},{"$f":"SUMIFS(Archives!G:G,Archives!F:F,\"Colo Spé\",Archives!R:R,A220)","v":0}]
["2017-07-18",{"$f":"SUMIF(Archives!R:R,A221,Archives!B:B)","v":0},{"$f":"SUMIFS(Archives!B:B,Archives!F:F,\"HES\",Archives!R:R,A221)","v":0},{"$f":"SUMIFS(Archives!B:B,Archives!F:F,\"PAS\",Archives!R:R,A221)","v":0},{"$f":"SUMIFS(Archives!B:B,Archives!F:F,\"Colo Spé\",Archives!R:R,A221)","v":0},{"$f":"SUMIFS(Archives!G:G,Archives!F:F,\"Colo Spé\",Archives!R:R,A221)","v":0}]
["2017-07-19",{"$f":"SUMIF(Archives!R:R,A222,Archives!B:B)","v":0},{"$f":"SUMIFS(Archives!B:B,Archives!F:F,\"HES\",Archives!R:R,A222)","v":0},{"$f":"SUMIFS(Archives!B:B,Archives!F:F,\"PAS\",Archives!R:R,A222)","v":0},{"$f":"SUMIFS(Archives!B:B,Archives!F:F,\"Colo Spé\",Archives!R:R,A222)","v":0},{"$f":"SUMIFS(Archives!G:G,Archives!F:F,\"Colo Spé\",Archives!R:R,A222)","v":0}]
["2017-07-20",{"$f":"SUMIF(Archives!R:R,A223,Archives!B:B)","v":0},{"$f":"SUMIFS(Archives!B:B,Archives!F:F,\"HES\",Archives!R:R,A223)","v":0},{"$f":"SUMIFS(Archives!B:B,Archives!F:F,\"PAS\",Archives!R:R,A223)","v":0},{"$f":"SUMIFS(Archives!B:B,Archives!F:F,\"Colo Spé\",Archives!R:R,A223)","v":0},{"$f":"SUMIFS(Archives!G:G,Archives!F:F,\"Colo Spé\",Archives!R:R,A223)","v":0}]
["2017-07-21",{"$f":"SUMIF(Archives!R:R,A224,Archives!B:B)","v":0},{"$f":"SUMIFS(Archives!B:B,Archives!F:F,\"HES\",Archives!R:R,A224)","v":0},{"$f":"SUMIFS(Archives!B:B,Archives!F:F,\"PAS\",Archives!R:R,A224)","v":0},{"$f":"SUMIFS(Archives!B:B,Archives!F:F,\"Colo Spé\",Archives!R:R,A224)","v":0},{"$f":"SUMIFS(Archives!G:G,Archives!F:F,\"Colo Spé\",Archives!R:R,A224)","v":0}]
["2017-07-22",{"$f":"SUMIF(Archives!R:R,A225,Archives!B:B)","v":0},{"$f":"SUMIFS(Archives!B:B,Archives!F:F,\"HES\",Archives!R:R,A225)","v":0},{"$f":"SUMIFS(Archives!B:B,Archives!F:F,\"PAS\",Archives!R:R,A225)","v":0},{"$f":"SUMIFS(Archives!B:B,Archives!F:F,\"Colo Spé\",Archives!R:R,A225)","v":0},{"$f":"SUMIFS(Archives!G:G,Archives!F:F,\"Colo Spé\",Archives!R:R,A225)","v":0}]
["2017-07-23",{"$f":"SUMIF(Archives!R:R,A226,Archives!B:B)","v":0},{"$f":"SUMIFS(Archives!B:B,Archives!F:F,\"HES\",Archives!R:R,A226)","v":0},{"$f":"SUMIFS(Archives!B:B,Archives!F:F,\"PAS\",Archives!R:R,A226)","v":0},{"$f":"SUMIFS(Archives!B:B,Archives!F:F,\"Colo Spé\",Archives!R:R,A226)","v":0},{"$f":"SUMIFS(Archives!G:G,Archives!F:F,\"Colo Spé\",Archives!R:R,A226)","v":0}]
["2017-07-24",{"$f":"SUMIF(Archives!R:R,A227,Archives!B:B)","v":0},{"$f":"SUMIFS(Archives!B:B,Archives!F:F,\"HES\",Archives!R:R,A227)","v":0},{"$f":"SUMIFS(Archives!B:B,Archives!F:F,\"PAS\",Archives!R:R,A227)","v":0},{"$f":"SUMIFS(Archives!B:B,Archives!F:F,\"Colo Spé\",Archives!R:R,A227)","v":0},{"$f":"SUMIFS(Archives!G:G,Archives!F:F,\"Colo Spé\",Archives!R:R,A227)","v":0}]
["2017-07-25",{"$f":"SUMIF(Archives!R:R,A228,Archives!B:B)","v":0},{"$f":"SUMIFS(Archives!B:B,Archives!F:F,\"HES\",Archives!R:R,A228)","v":0},{"$f":"SUMIFS(Archives!B:B,Archives!F:F,\"PAS\",Archives!R:R,A228)","v":0},{"$f":"SUMIFS(Archives!B:B,Archives!F:F,\"Colo Spé\",Archives!R:R,A228)","v":0},{"$f":"SUMIFS(Archives!G:G,Archives!F:F,\"Colo Spé\",Archives!R:R,A228)","v":0}]
["2017-07-26",{"$f":"SUMIF(Archives!R:R,A229,Archives!B:B)","v":0},{"$f":"SUMIFS(Archives!B:B,Archives!F:F,\"HES\",Archives!R:R,A229)","v":0},{"$f":"SUMIFS(Archives!B:B,Archives!F:F,\"PAS\",Archives!R:R,A229)","v":0},{"$f":"SUMIFS(Archives!B:B,Archives!F:F,\"Colo Spé\",Archives!R:R,A229)","v":0},{"$f":"SUMIFS(Archives!G:G,Archives!F:F,\"Colo Spé\",Archives!R:R,A229)","v":0}]
["2017-07-27",{"$f":"SUMIF(Archives!R:R,A230,Archives!B:B)","v":0},{"$f":"SUMIFS(Archives!B:B,Archives!F:F,\"HES\",Archives!R:R,A230)","v":0},{"$f":"SUMIFS(Archives!B:B,Archives!F:F,\"PAS\",Archives!R:R,A230)","v":0},{"$f":"SUMIFS(Archives!B:B,Archives!F:F,\"Colo Spé\",Archives!R:R,A230)","v":0},{"$f":"SUMIFS(Archives!G:G,Archives!F:F,\"Colo Spé\",Archives!R:R,A230)","v":0}]
["2017-07-28",{"$f":"SUMIF(Archives!R:R,A231,Archives!B:B)","v":0},{"$f":"SUMIFS(Archives!B:B,Archives!F:F,\"HES\",Archives!R:R,A231)","v":0},{"$f":"SUMIFS(Archives!B:B,Archives!F:F,\"PAS\",Archives!R:R,A231)","v":0},{"$f":"SUMIFS(Archives!B:B,Archives!F:F,\"Colo Spé\",Archives!R:R,A231)","v":0},{"$f":"SUMIFS(Archives!G:G,Archives!F:F,\"Colo Spé\",Archives!R:R,A231)","v":0}]
["2017-07-29",{"$f":"SUMIF(Archives!R:R,A232,Archives!B:B)","v":0},{"$f":"SUMIFS(Archives!B:B,Archives!F:F,\"HES\",Archives!R:R,A232)","v":0},{"$f":"SUMIFS(Archives!B:B,Archives!F:F,\"PAS\",Archives!R:R,A232)","v":0},{"$f":"SUMIFS(Archives!B:B,Archives!F:F,\"Colo Spé\",Archives!R:R,A232)","v":0},{"$f":"SUMIFS(Archives!G:G,Archives!F:F,\"Colo Spé\",Archives!R:R,A232)","v":0}]
["2017-07-30",{"$f":"SUMIF(Archives!R:R,A233,Archives!B:B)","v":0},{"$f":"SUMIFS(Archives!B:B,Archives!F:F,\"HES\",Archives!R:R,A233)","v":0},{"$f":"SUMIFS(Archives!B:B,Archives!F:F,\"PAS\",Archives!R:R,A233)","v":0},{"$f":"SUMIFS(Archives!B:B,Archives!F:F,\"Colo Spé\",Archives!R:R,A233)","v":0},{"$f":"SUMIFS(Archives!G:G,Archives!F:F,\"Colo Spé\",Archives!R:R,A233)","v":0}]
["2017-07-31",{"$f":"SUMIF(Archives!R:R,A234,Archives!B:B)","v":0},{"$f":"SUMIFS(Archives!B:B,Archives!F:F,\"HES\",Archives!R:R,A234)","v":0},{"$f":"SUMIFS(Archives!B:B,Archives!F:F,\"PAS\",Archives!R:R,A234)","v":0},{"$f":"SUMIFS(Archives!B:B,Archives!F:F,\"Colo Spé\",Archives!R:R,A234)","v":0},{"$f":"SUMIFS(Archives!G:G,Archives!F:F,\"Colo Spé\",Archives!R:R,A234)","v":0}]
["Total Juillet",{"$f":"SUM(B204:B234)","v":0},{"$f":"SUM(C204:C234)","v":0},0,0,0]
[]
["2017-08-01",{"$f":"SUMIF(Archives!R:R,A237,Archives!B:B)","v":0},{"$f":"SUMIFS(Archives!B:B,Archives!F:F,\"HES\",Archives!R:R,A237)","v":0},{"$f":"SUMIFS(Archives!B:B,Archives!F:F,\"PAS\",Archives!R:R,A237)","v":0},{"$f":"SUMIFS(Archives!B:B,Archives!F:F,\"Colo Spé\",Archives!R:R,A237)","v":0},{"$f":"SUMIFS(Archives!G:G,Archives!F:F,\"Colo Spé\",Archives!R:R,A237)","v":0}]
["2017-08-02",{"$f":"SUMIF(Archives!R:R,A238,Archives!B:B)","v":0},{"$f":"SUMIFS(Archives!B:B,Archives!F:F,\"HES\",Archives!R:R,A238)","v":0},{"$f":"SUMIFS(Archives!B:B,Archives!F:F,\"PAS\",Archives!R:R,A238)","v":0},{"$f":"SUMIFS(Archives!B:B,Archives!F:F,\"Colo Spé\",Archives!R:R,A238)","v":0},{"$f":"SUMIFS(Archives!G:G,Archives!F:F,\"Colo Spé\",Archives!R:R,A238)","v":0}]
["2017-08-03",{"$f":"SUMIF(Archives!R:R,A239,Archives!B:B)","v":0},{"$f":"SUMIFS(Archives!B:B,Archives!F:F,\"HES\",Archives!R:R,A239)","v":0},{"$f":"SUMIFS(Archives!B:B,Archives!F:F,\"PAS\",Archives!R:R,A239)","v":0},{"$f":"SUMIFS(Archives!B:B,Archives!F:F,\"Colo Spé\",Archives!R:R,A239)","v":0},{"$f":"SUMIFS(Archives!G:G,Archives!F:F,\"Colo Spé\",Archives!R:R,A239)","v":0}]
["2017-08-04",{"$f":"SUMIF(Archives!R:R,A240,Archives!B:B)","v":0},{"$f":"SUMIFS(Archives!B:B,Archives!F:F,\"HES\",Archives!R:R,A240)","v":0},{"$f":"SUMIFS(Archives!B:B,Archives!F:F,\"PAS\",Archives!R:R,A240)","v":0},{"$f":"SUMIFS(Archives!B:B,Archives!F:F,\"Colo Spé\",Archives!R:R,A240)","v":0},{"$f":"SUMIFS(Archives!G:G,Archives!F:F,\"Colo Spé\",Archives!R:R,A240)","v":0}]
["2017-08-05",{"$f":"SUMIF(Archives!R:R,A241,Archives!B:B)","v":0},{"$f":"SUMIFS(Archives!B:B,Archives!F:F,\"HES\",Archives!R:R,A241)","v":0},{"$f":"SUMIFS(Archives!B:B,Archives!F:F,\"PAS\",Archives!R:R,A241)","v":0},{"$f":"SUMIFS(Archives!B:B,Archives!F:F,\"Colo Spé\",Archives!R:R,A241)","v":0},{"$f":"SUMIFS(Archives!G:G,Archives!F:F,\"Colo Spé\",Archives!R:R,A241)","v":0}]
["2017-08-06",{"$f":"SUMIF(Archives!R:R,A242,Archives!B:B)","v":0},{"$f":"SUMIFS(Archives!B:B,Archives!F:F,\"HES\",Archives!R:R,A242)","v":0},{"$f":"SUMIFS(Archives!B:B,Archives!F:F,\"PAS\",Archives!R:R,A242)","v":0},{"$f":"SUMIFS(Archives!B:B,Archives!F:F,\"Colo Spé\",Archives!R:R,A242)","v":0},{"$f":"SUMIFS(Archives!G:G,Archives!F:F,\"Colo Spé\",Archives!R:R,A242)","v":0}]
["2017-08-07",{"$f":"SUMIF(Archives!R:R,A243,Archives!B:B)","v":0},{"$f":"SUMIFS(Archives!B:B,Archives!F:F,\"HES\",Archives!R:R,A243)","v":0},{"$f":"SUMIFS(Archives!B:B,Archives!F:F,\"PAS\",Archives!R:R,A243)","v":0},{"$f":"SUMIFS(Archives!B:B,Archives!F:F,\"Colo Spé\",Archives!R:R,A243)","v":0},{"$f":"SUMIFS(Archives!G:G,Archives!F:F,\"Colo Spé\",Archives!R:R,A243)","v":0}]
["2017-08-08",{"$f":"SUMIF(Archives!R:R,A244,Archives!B:B)","v":0},{"$f":"SUMIFS(Archives!B:B,Archives!F:F,\"HES\",Archives!R:R,A244)","v":0},{"$f":"SUMIFS(Archives!B:B,Archives!F:F,\"PAS\",Archives!R:R,A244)","v":0},{"$f":"SUMIFS(Archives!B:B,Archives!F:F,\"Colo Spé\",Archives!R:R,A244)","v":0},{"$f":"SUMIFS(Archives!G:G,Archives!F:F,\"Colo Spé\",Archives!R:R,A244)","v":0}]
["2017-08-09",{"$f":"SUMIF(Archives!R:R,A245,Archives!B:B)","v":0},{"$f":"SUMIFS(Archives!B:B,Archives!F:F,\"HES\",Archives!R:R,A245)","v":0},{"$f":"SUMIFS(Archives!B:B,Archives!F:F,\"PAS\",Archives!R:R,A245)","v":0},{"$f":"SUMIFS(Archives!B:B,Archives!F:F,\"Colo Spé\",Archives!R:R,A245)","v":0},{"$f":"SUMIFS(Archives!G:G,Archives!F:F,\"Colo Spé\",Archives!R:R,A245)","v":0}]
["2017-08-10",{"$f":"SUMIF(Archives!R:R,A246,Archives!B:B)","v":0},{"$f":"SUMIFS(Archives!B:B,Archives!F:F,\"HES\",Archives!R:R,A246)","v":0},{"$f":"SUMIFS(Archives!B:B,Archives!F:F,\"PAS\",Archives!R:R,A246)","v":0},{"$f":"SUMIFS(Archives!B:B,Archives!F:F,\"Colo Spé\",Archives!R:R,A246)","v":0},{"$f":"SUMIFS(Archives!G:G,Archives!F:F,\"Colo Spé\",Archives!R:R,A246)","v":0}]
["2017-08-11",{"$f":"SUMIF(Archives!R:R,A247,Archives!B:B)","v":0},{"$f":"SUMIFS(Archives!B:B,Archives!F:F,\"HES\",Archives!R:R,A247)","v":0},{"$f":"SUMIFS(Archives!B:B,Archives!F:F,\"PAS\",Archives!R:R,A247)","v":0},{"$f":"SUMIFS(Archives!B:B,Archives!F:F,\"Colo Spé\",Archives!R:R,A247)","v":0},{"$f":"SUMIFS(Archives!G:G,Archives!F:F,\"Colo Spé\",Archives!R:R,A247)","v":0}]
["2017-08-12",{"$f":"SUMIF(Archives!R:R,A248,Archives!B:B)","v":0},{"$f":"SUMIFS(Archives!B:B,Archives!F:F,\"HES\",Archives!R:R,A248)","v":0},{"$f":"SUMIFS(Archives!B:B,Archives!F:F,\"PAS\",Archives!R:R,A248)","v":0},{"$f":"SUMIFS(Archives!B:B,Archives!F:F,\"Colo Spé\",Archives!R:R,A248)","v":0},{"$f":"SUMIFS(Archives!G:G,Archives!F:F,\"Colo Spé\",Archives!R:R,A248)","v":0}]
["2017-08-13",{"$f":"SUMIF(Archives!R:R,A249,Archives!B:B)","v":0},{"$f":"SUMIFS(Archives!B:B,Archives!F:F,\"HES\",Archives!R:R,A249)","v":0},{"$f":"SUMIFS(Archives!B:B,Archives!F:F,\"PAS\",Archives!R:R,A249)","v":0},{"$f":"SUMIFS(Archives!B:B,Archives!F:F,\"Colo Spé\",Archives!R:R,A249)","v":0},{"$f":"SUMIFS(Archives!G:G,Archives!F:F,\"Colo Spé\",Archives!R:R,A249)","v":0}]
["2017-08-14",{"$f":"SUMIF(Archives!R:R,A250,Archives!B:B)","v":0},{"$f":"SUMIFS(Archives!B:B,Archives!F:F,\"HES\",Archives!R:R,A250)","v":0},{"$f":"SUMIFS(Archives!B:B,Archives!F:F,\"PAS\",Archives!R:R,A250)","v":0},{"$f":"SUMIFS(Archives!B:B,Archives!F:F,\"Colo Spé\",Archives!R:R,A250)","v":0},{"$f":"SUMIFS(Archives!G:G,Archives!F:F,\"Colo Spé\",Archives!R:R,A250)","v":0}]
["2017-08-15",{"$f":"SUMIF(Archives!R:R,A251,Archives!B:B)","v":0},{"$f":"SUMIFS(Archives!B:B,Archives!F:F,\"HES\",Archives!R:R,A251)","v":0},{"$f":"SUMIFS(Archives!B:B,Archives!F:F,\"PAS\",Archives!R:R,A251)","v":0},{"$f":"SUMIFS(Archives!B:B,Archives!F:F,\"Colo Spé\",Archives!R:R,A251)","v":0},{"$f":"SUMIFS(Archives!G:G,Archives!F:F,\"Colo Spé\",Archives!R:R,A251)","v":0}]
["2017-08-16",{"$f":"SUMIF(Archives!R:R,A252,Archives!B:B)","v":0},{"$f":"SUMIFS(Archives!B:B,Archives!F:F,\"HES\",Archives!R:R,A252)","v":0},{"$f":"SUMIFS(Archives!B:B,Archives!F:F,\"PAS\",Archives!R:R,A252)","v":0},{"$f":"SUMIFS(Archives!B:B,Archives!F:F,\"Colo Spé\",Archives!R:R,A252)","v":0},{"$f":"SUMIFS(Archives!G:G,Archives!F:F,\"Colo Spé\",Archives!R:R,A252)","v":0}]
["2017-08-17",{"$f":"SUMIF(Archives!R:R,A253,Archives!B:B)","v":0},{"$f":"SUMIFS(Archives!B:B,Archives!F:F,\"HES\",Archives!R:R,A253)","v":0},{"$f":"SUMIFS(Archives!B:B,Archives!F:F,\"PAS\",Archives!R:R,A253)","v":0},{"$f":"SUMIFS(Archives!B:B,Archives!F:F,\"Colo Spé\",Archives!R:R,A253)","v":0},{"$f":"SUMIFS(Archives!G:G,Archives!F:F,\"Colo Spé\",Archives!R:R,A253)","v":0}]
["2017-08-18",{"$f":"SUMIF(Archives!R:R,A254,Archives!B:B)","v":0},{"$f":"SUMIFS(Archives!B:B,Archives!F:F,\"HES\",Archives!R:R,A254)","v":0},{"$f":"SUMIFS(Archives!B:B,Archives!F:F,\"PAS\",Archives!R:R,A254)","v":0},{"$f":"SUMIFS(Archives!B:B,Archives!F:F,\"Colo Spé\",Archives!R:R,A254)","v":0},{"$f":"SUMIFS(Archives!G:G,Archives!F:F,\"Colo Spé\",Archives!R:R,A254)","v":0}]
["2017-08-19",{"$f":"SUMIF(Archives!R:R,A255,Archives!B:B)","v":0},{"$f":"SUMIFS(Archives!B:B,Archives!F:F,\"HES\",Archives!R:R,A255)","v":0},{"$f":"SUMIFS(Archives!B:B,Archives!F:F,\"PAS\",Archives!R:R,A255)","v":0},{"$f":"SUMIFS(Archives!B:B,Archives!F:F,\"Colo Spé\",Archives!R:R,A255)","v":0},{"$f":"SUMIFS(Archives!G:G,Archives!F:F,\"Colo Spé\",Archives!R:R,A255)","v":0}]
["2017-08-20",{"$f":"SUMIF(Archives!R:R,A256,Archives!B:B)","v":0},{"$f":"SUMIFS(Archives!B:B,Archives!F:F,\"HES\",Archives!R:R,A256)","v":0},{"$f":"SUMIFS(Archives!B:B,Archives!F:F,\"PAS\",Archives!R:R,A256)","v":0},{"$f":"SUMIFS(Archives!B:B,Archives!F:F,\"Colo Spé\",Archives!R:R,A256)","v":0},{"$f":"SUMIFS(Archives!G:G,Archives!F:F,\"Colo Spé\",Archives!R:R,A256)","v":0}]
["2017-08-21",{"$f":"SUMIF(Archives!R:R,A257,Archives!B:B)","v":0},{"$f":"SUMIFS(Archives!B:B,Archives!F:F,\"HES\",Archives!R:R,A257)","v":0},{"$f":"SUMIFS(Archives!B:B,Archives!F:F,\"PAS\",Archives!R:R,A257)","v":0},{"$f":"SUMIFS(Archives!B:B,Archives!F:F,\"Colo Spé\",Archives!R:R,A257)","v":0},{"$f":"SUMIFS(Archives!G:G,Archives!F:F,\"Colo Spé\",Archives!R:R,A257)","v":0}]
["2017-08-22",{"$f":"SUMIF(Archives!R:R,A258,Archives!B:B)","v":0},{"$f":"SUMIFS(Archives!B:B,Archives!F:F,\"HES\",Archives!R:R,A258)","v":0},{"$f":"SUMIFS(Archives!B:B,Archives!F:F,\"PAS\",Archives!R:R,A258)","v":0},{"$f":"SUMIFS(Archives!B:B,Archives!F:F,\"Colo Spé\",Archives!R:R,A258)","v":0},{"$f":"SUMIFS(Archives!G:G,Archives!F:F,\"Colo Spé\",Archives!R:R,A258)","v":0}]
["2017-08-23",{"$f":"SUMIF(Archives!R:R,A259,Archives!B:B)","v":0},{"$f":"SUMIFS(Archives!B:B,Archives!F:F,\"HES\",Archives!R:R,A259)","v":0},{"$f":"SUMIFS(Archives!B:B,Archives!F:F,\"PAS\",Archives!R:R,A259)","v":0},{"$f":"SUMIFS(Archives!B:B,Archives!F:F,\"Colo Spé\",Archives!R:R,A259)","v":0},{"$f":"SUMIFS(Archives!G:G,Archives!F:F,\"Colo Spé\",Archives!R:R,A259)","v":0}]
["2017-08-24",{"$f":"SUMIF(Archives!R:R,A260,Archives!B:B)","v":0},{"$f":"SUMIFS(Archives!B:B,Archives!F:F,\"HES\",Archives!R:R,A260)","v":0},{"$f":"SUMIFS(Archives!B:B,Archives!F:F,\"PAS\",Archives!R:R,A260)","v":0},{"$f":"SUMIFS(Archives!B:B,Archives!F:F,\"Colo Spé\",Archives!R:R,A260)","v":0},{"$f":"SUMIFS(Archives!G:G,Archives!F:F,\"Colo Spé\",Archives!R:R,A260)","v":0}]
["2017-08-25",{"$f":"SUMIF(Archives!R:R,A261,Archives!B:B)","v":0},{"$f":"SUMIFS(Archives!B:B,Archives!F:F,\"HES\",Archives!R:R,A261)","v":0},{"$f":"SUMIFS(Archives!B:B,Archives!F:F,\"PAS\",Archives!R:R,A261)","v":0},{"$f":"SUMIFS(Archives!B:B,Archives!F:F,\"Colo Spé\",Archives!R:R,A261)","v":0},{"$f":"SUMIFS(Archives!G:G,Archives!F:F,\"Colo Spé\",Archives!R:R,A261)","v":0}]
["2017-08-26",{"$f":"SUMIF(Archives!R:R,A262,Archives!B:B)","v":0},{"$f":"SUMIFS(Archives!B:B,Archives!F:F,\"HES\",Archives!R:R,A262)","v":0},{"$f":"SUMIFS(Archives!B:B,Archives!F:F,\"PAS\",Archives!R:R,A262)","v":0},{"$f":"SUMIFS(Archives!B:B,Archives!F:F,\"Colo Spé\",Archives!R:R,A262)","v":0},{"$f":"SUMIFS(Archives!G:G,Archives!F:F,\"Colo Spé\",Archives!R:R,A262)","v":0}]
["2017-08-27",{"$f":"SUMIF(Archives!R:R,A263,Archives!B:B)","v":0},{"$f":"SUMIFS(Archives!B:B,Archives!F:F,\"HES\",Archives!R:R,A263)","v":0},{"$f":"SUMIFS(Archives!B:B,Archives!F:F,\"PAS\",Archives!R:R,A263)","v":0},{"$f":"SUMIFS(Archives!B:B,Archives!F:F,\"Colo Spé\",Archives!R:R,A263)","v":0},{"$f":"SUMIFS(Archives!G:G,Archives!F:F,\"Colo Spé\",Archives!R:R,A263)","v":0}]
["2017-08-28",{"$f":"SUMIF(Archives!R:R,A264,Archives!B:B)","v":0},{"$f":"SUMIFS(Archives!B:B,Archives!F:F,\"HES\",Archives!R:R,A264)","v":0},{"$f":"SUMIFS(Archives!B:B,Archives!F:F,\"PAS\",Archives!R:R,A264)","v":0},{"$f":"SUMIFS(Archives!B:B,Archives!F:F,\"Colo Spé\",Archives!R:R,A264)","v":0},{"$f":"SUMIFS(Archives!G:G,Archives!F:F,\"Colo Spé\",Archives!R:R,A264)","v":0}]
["2017-08-29",{"$f":"SUMIF(Archives!R:R,A265,Archives!B:B)","v":0},{"$f":"SUMIFS(Archives!B:B,Archives!F:F,\"HES\",Archives!R:R,A265)","v":0},{"$f":"SUMIFS(Archives!B:B,Archives!F:F,\"PAS\",Archives!R:R,A265)","v":0},{"$f":"SUMIFS(Archives!B:B,Archives!F:F,\"Colo Spé\",Archives!R:R,A265)","v":0},{"$f":"SUMIFS(Archives!G:G,Archives!F:F,\"Colo Spé\",Archives!R:R,A265)","v":0}]
["2017-08-30",{"$f":"SUMIF(Archives!R:R,A266,Archives!B:B)","v":0},{"$f":"SUMIFS(Archives!B:B,Archives!F:F,\"HES\",Archives!R:R,A266)","v":0},{"$f":"SUMIFS(Archives!B:B,Archives!F:F,\"PAS\",Archives!R:R,A266)","v":0},{"$f":"SUMIFS(Archives!B:B,Archives!F:F,\"Colo Spé\",Archives!R:R,A266)","v":0},{"$f":"SUMIFS(Archives!G:G,Archives!F:F,\"Colo Spé\",Archives!R:R,A266)","v":0}]
["2017-08-31",{"$f":"SUMIF(Archives!R:R,A267,Archives!B:B)","v":0},{"$f":"SUMIFS(Archives!B:B,Archives!F:F,\"HES\",Archives!R:R,A267)","v":0},{"$f":"SUMIFS(Archives!B:B,Archives!F:F,\"PAS\",Archives!R:R,A267)","v":0},{"$f":"SUMIFS(Archives!B:B,Archives!F:F,\"Colo Spé\",Archives!R:R,A267)","v":0},{"$f":"SUMIFS(Archives!G:G,Archives!F:F,\"Colo Spé\",Archives!R:R,A267)","v":0}]
["Total Aout",{"$f":"SUM(B237:B267)","v":0},{"$f":"SUM(C237:C267)","v":0},0,0,0]
[]
["2017-09-01",{"$f":"SUMIF(Archives!R:R,A270,Archives!R:R)","v":0},{"$f":"SUMIFS(Archives!B:B,Archives!F:F,\"HES\",Archives!R:R,A270)","v":0},{"$f":"SUMIFS(Archives!B:B,Archives!F:F,\"PAS\",Archives!R:R,A270)","v":0},{"$f":"SUMIFS(Archives!B:B,Archives!F:F,\"Colo Spé\",Archives!R:R,A270)","v":0},{"$f":"SUMIFS(Archives!G:G,Archives!F:F,\"Colo Spé\",Archives!R:R,A270)","v":0}]
["2017-09-02",{"$f":"SUMIF(Archives!R:R,A271,Archives!R:R)","v":0},{"$f":"SUMIFS(Archives!B:B,Archives!F:F,\"HES\",Archives!R:R,A271)","v":0},{"$f":"SUMIFS(Archives!B:B,Archives!F:F,\"PAS\",Archives!R:R,A271)","v":0},{"$f":"SUMIFS(Archives!B:B,Archives!F:F,\"Colo Spé\",Archives!R:R,A271)","v":0},{"$f":"SUMIFS(Archives!G:G,Archives!F:F,\"Colo Spé\",Archives!R:R,A271)","v":0}]
["2017-09-03",{"$f":"SUMIF(Archives!R:R,A272,Archives!R:R)","v":0},{"$f":"SUMIFS(Archives!B:B,Archives!F:F,\"HES\",Archives!R:R,A272)","v":0},{"$f":"SUMIFS(Archives!B:B,Archives!F:F,\"PAS\",Archives!R:R,A272)","v":0},{"$f":"SUMIFS(Archives!B:B,Archives!F:F,\"Colo Spé\",Archives!R:R,A272)","v":0},{"$f":"SUMIFS(Archives!G:G,Archives!F:F,\"Colo Spé\",Archives!R:R,A272)","v":0}]
["2017-09-04",{"$f":"SUMIF(Archives!R:R,A273,Archives!R:R)","v":0},{"$f":"SUMIFS(Archives!B:B,Archives!F:F,\"HES\",Archives!R:R,A273)","v":0},{"$f":"SUMIFS(Archives!B:B,Archives!F:F,\"PAS\",Archives!R:R,A273)","v":0},{"$f":"SUMIFS(Archives!B:B,Archives!F:F,\"Colo Spé\",Archives!R:R,A273)","v":0},{"$f":"SUMIFS(Archives!G:G,Archives!F:F,\"Colo Spé\",Archives!R:R,A273)","v":0}]
["2017-09-05",{"$f":"SUMIF(Archives!R:R,A274,Archives!R:R)","v":0},{"$f":"SUMIFS(Archives!B:B,Archives!F:F,\"HES\",Archives!R:R,A274)","v":0},{"$f":"SUMIFS(Archives!B:B,Archives!F:F,\"PAS\",Archives!R:R,A274)","v":0},{"$f":"SUMIFS(Archives!B:B,Archives!F:F,\"Colo Spé\",Archives!R:R,A274)","v":0},{"$f":"SUMIFS(Archives!G:G,Archives!F:F,\"Colo Spé\",Archives!R:R,A274)","v":0}]
["2017-09-06",{"$f":"SUMIF(Archives!R:R,A275,Archives!R:R)","v":0},{"$f":"SUMIFS(Archives!B:B,Archives!F:F,\"HES\",Archives!R:R,A275)","v":0},{"$f":"SUMIFS(Archives!B:B,Archives!F:F,\"PAS\",Archives!R:R,A275)","v":0},{"$f":"SUMIFS(Archives!B:B,Archives!F:F,\"Colo Spé\",Archives!R:R,A275)","v":0},{"$f":"SUMIFS(Archives!G:G,Archives!F:F,\"Colo Spé\",Archives!R:R,A275)","v":0}]
["2017-09-07",{"$f":"SUMIF(Archives!R:R,A276,Archives!R:R)","v":0},{"$f":"SUMIFS(Archives!B:B,Archives!F:F,\"HES\",Archives!R:R,A276)","v":0},{"$f":"SUMIFS(Archives!B:B,Archives!F:F,\"PAS\",Archives!R:R,A276)","v":0},{"$f":"SUMIFS(Archives!B:B,Archives!F:F,\"Colo Spé\",Archives!R:R,A276)","v":0},{"$f":"SUMIFS(Archives!G:G,Archives!F:F,\"Colo Spé\",Archives!R:R,A276)","v":0}]
["2017-09-08",{"$f":"SUMIF(Archives!R:R,A277,Archives!R:R)","v":0},{"$f":"SUMIFS(Archives!B:B,Archives!F:F,\"HES\",Archives!R:R,A277)","v":0},{"$f":"SUMIFS(Archives!B:B,Archives!F:F,\"PAS\",Archives!R:R,A277)","v":0},{"$f":"SUMIFS(Archives!B:B,Archives!F:F,\"Colo Spé\",Archives!R:R,A277)","v":0},{"$f":"SUMIFS(Archives!G:G,Archives!F:F,\"Colo Spé\",Archives!R:R,A277)","v":0}]
["2017-09-09",{"$f":"SUMIF(Archives!R:R,A278,Archives!R:R)","v":0},{"$f":"SUMIFS(Archives!B:B,Archives!F:F,\"HES\",Archives!R:R,A278)","v":0},{"$f":"SUMIFS(Archives!B:B,Archives!F:F,\"PAS\",Archives!R:R,A278)","v":0},{"$f":"SUMIFS(Archives!B:B,Archives!F:F,\"Colo Spé\",Archives!R:R,A278)","v":0},{"$f":"SUMIFS(Archives!G:G,Archives!F:F,\"Colo Spé\",Archives!R:R,A278)","v":0}]
["2017-09-10",{"$f":"SUMIF(Archives!R:R,A279,Archives!R:R)","v":0},{"$f":"SUMIFS(Archives!B:B,Archives!F:F,\"HES\",Archives!R:R,A279)","v":0},{"$f":"SUMIFS(Archives!B:B,Archives!F:F,\"PAS\",Archives!R:R,A279)","v":0},{"$f":"SUMIFS(Archives!B:B,Archives!F:F,\"Colo Spé\",Archives!R:R,A279)","v":0},{"$f":"SUMIFS(Archives!G:G,Archives!F:F,\"Colo Spé\",Archives!R:R,A279)","v":0}]
["2017-09-11",{"$f":"SUMIF(Archives!R:R,A280,Archives!R:R)","v":0},{"$f":"SUMIFS(Archives!B:B,Archives!F:F,\"HES\",Archives!R:R,A280)","v":0},{"$f":"SUMIFS(Archives!B:B,Archives!F:F,\"PAS\",Archives!R:R,A280)","v":0},{"$f":"SUMIFS(Archives!B:B,Archives!F:F,\"Colo Spé\",Archives!R:R,A280)","v":0},{"$f":"SUMIFS(Archives!G:G,Archives!F:F,\"Colo Spé\",Archives!R:R,A280)","v":0}]
["2017-09-12",{"$f":"SUMIF(Archives!R:R,A281,Archives!R:R)","v":0},{"$f":"SUMIFS(Archives!B:B,Archives!F:F,\"HES\",Archives!R:R,A281)","v":0},{"$f":"SUMIFS(Archives!B:B,Archives!F:F,\"PAS\",Archives!R:R,A281)","v":0},{"$f":"SUMIFS(Archives!B:B,Archives!F:F,\"Colo Spé\",Archives!R:R,A281)","v":0},{"$f":"SUMIFS(Archives!G:G,Archives!F:F,\"Colo Spé\",Archives!R:R,A281)","v":0}]
["2017-09-13",{"$f":"SUMIF(Archives!R:R,A282,Archives!R:R)","v":0},{"$f":"SUMIFS(Archives!B:B,Archives!F:F,\"HES\",Archives!R:R,A282)","v":0},{"$f":"SUMIFS(Archives!B:B,Archives!F:F,\"PAS\",Archives!R:R,A282)","v":0},{"$f":"SUMIFS(Archives!B:B,Archives!F:F,\"Colo Spé\",Archives!R:R,A282)","v":0},{"$f":"SUMIFS(Archives!G:G,Archives!F:F,\"Colo Spé\",Archives!R:R,A282)","v":0}]
["2017-09-14",{"$f":"SUMIF(Archives!R:R,A283,Archives!R:R)","v":0},{"$f":"SUMIFS(Archives!B:B,Archives!F:F,\"HES\",Archives!R:R,A283)","v":0},{"$f":"SUMIFS(Archives!B:B,Archives!F:F,\"PAS\",Archives!R:R,A283)","v":0},{"$f":"SUMIFS(Archives!B:B,Archives!F:F,\"Colo Spé\",Archives!R:R,A283)","v":0},{"$f":"SUMIFS(Archives!G:G,Archives!F:F,\"Colo Spé\",Archives!R:R,A283)","v":0}]
["2017-09-15",{"$f":"SUMIF(Archives!R:R,A284,Archives!R:R)","v":0},{"$f":"SUMIFS(Archives!B:B,Archives!F:F,\"HES\",Archives!R:R,A284)","v":0},{"$f":"SUMIFS(Archives!B:B,Archives!F:F,\"PAS\",Archives!R:R,A284)","v":0},{"$f":"SUMIFS(Archives!B:B,Archives!F:F,\"Colo Spé\",Archives!R:R,A284)","v":0},{"$f":"SUMIFS(Archives!G:G,Archives!F:F,\"Colo Spé\",Archives!R:R,A284)","v":0}]
["2017-09-16",{"$f":"SUMIF(Archives!R:R,A285,Archives!R:R)","v":0},{"$f":"SUMIFS(Archives!B:B,Archives!F:F,\"HES\",Archives!R:R,A285)","v":0},{"$f":"SUMIFS(Archives!B:B,Archives!F:F,\"PAS\",Archives!R:R,A285)","v":0},{"$f":"SUMIFS(Archives!B:B,Archives!F:F,\"Colo Spé\",Archives!R:R,A285)","v":0},{"$f":"SUMIFS(Archives!G:G,Archives!F:F,\"Colo Spé\",Archives!R:R,A285)","v":0}]
["2017-09-17",{"$f":"SUMIF(Archives!R:R,A286,Archives!R:R)","v":0},{"$f":"SUMIFS(Archives!B:B,Archives!F:F,\"HES\",Archives!R:R,A286)","v":0},{"$f":"SUMIFS(Archives!B:B,Archives!F:F,\"PAS\",Archives!R:R,A286)","v":0},{"$f":"SUMIFS(Archives!B:B,Archives!F:F,\"Colo Spé\",Archives!R:R,A286)","v":0},{"$f":"SUMIFS(Archives!G:G,Archives!F:F,\"Colo Spé\",Archives!R:R,A286)","v":0}]
["2017-09-18",{"$f":"SUMIF(Archives!R:R,A287,Archives!R:R)","v":0},{"$f":"SUMIFS(Archives!B:B,Archives!F:F,\"HES\",Archives!R:R,A287)","v":0},{"$f":"SUMIFS(Archives!B:B,Archives!F:F,\"PAS\",Archives!R:R,A287)","v":0},{"$f":"SUMIFS(Archives!B:B,Archives!F:F,\"Colo Spé\",Archives!R:R,A287)","v":0},{"$f":"SUMIFS(Archives!G:G,Archives!F:F,\"Colo Spé\",Archives!R:R,A287)","v":0}]
["2017-09-19",{"$f":"SUMIF(Archives!R:R,A288,Archives!R:R)","v":0},{"$f":"SUMIFS(Archives!B:B,Archives!F:F,\"HES\",Archives!R:R,A288)","v":0},{"$f":"SUMIFS(Archives!B:B,Archives!F:F,\"PAS\",Archives!R:R,A288)","v":0},{"$f":"SUMIFS(Archives!B:B,Archives!F:F,\"Colo Spé\",Archives!R:R,A288)","v":0},{"$f":"SUMIFS(Archives!G:G,Archives!F:F,\"Colo Spé\",Archives!R:R,A288)","v":0}]
["2017-09-20",{"$f":"SUMIF(Archives!R:R,A289,Archives!R:R)","v":0},{"$f":"SUMIFS(Archives!B:B,Archives!F:F,\"HES\",Archives!R:R,A289)","v":0},{"$f":"SUMIFS(Archives!B:B,Archives!F:F,\"PAS\",Archives!R:R,A289)","v":0},{"$f":"SUMIFS(Archives!B:B,Archives!F:F,\"Colo Spé\",Archives!R:R,A289)","v":0},{"$f":"SUMIFS(Archives!G:G,Archives!F:F,\"Colo Spé\",Archives!R:R,A289)","v":0}]
["2017-09-21",{"$f":"SUMIF(Archives!R:R,A290,Archives!R:R)","v":0},{"$f":"SUMIFS(Archives!B:B,Archives!F:F,\"HES\",Archives!R:R,A290)","v":0},{"$f":"SUMIFS(Archives!B:B,Archives!F:F,\"PAS\",Archives!R:R,A290)","v":0},{"$f":"SUMIFS(Archives!B:B,Archives!F:F,\"Colo Spé\",Archives!R:R,A290)","v":0},{"$f":"SUMIFS(Archives!G:G,Archives!F:F,\"Colo Spé\",Archives!R:R,A290)","v":0}]
["2017-09-22",{"$f":"SUMIF(Archives!R:R,A291,Archives!R:R)","v":0},{"$f":"SUMIFS(Archives!B:B,Archives!F:F,\"HES\",Archives!R:R,A291)","v":0},{"$f":"SUMIFS(Archives!B:B,Archives!F:F,\"PAS\",Archives!R:R,A291)","v":0},{"$f":"SUMIFS(Archives!B:B,Archives!F:F,\"Colo Spé\",Archives!R:R,A291)","v":0},{"$f":"SUMIFS(Archives!G:G,Archives!F:F,\"Colo Spé\",Archives!R:R,A291)","v":0}]
["2017-09-23",{"$f":"SUMIF(Archives!R:R,A292,Archives!R:R)","v":0},{"$f":"SUMIFS(Archives!B:B,Archives!F:F,\"HES\",Archives!R:R,A292)","v":0},{"$f":"SUMIFS(Archives!B:B,Archives!F:F,\"PAS\",Archives!R:R,A292)","v":0},{"$f":"SUMIFS(Archives!B:B,Archives!F:F,\"Colo Spé\",Archives!R:R,A292)","v":0},{"$f":"SUMIFS(Archives!G:G,Archives!F:F,\"Colo Spé\",Archives!R:R,A292)","v":0}]
["2017-09-24",{"$f":"SUMIF(Archives!R:R,A293,Archives!R:R)","v":0},{"$f":"SUMIFS(Archives!B:B,Archives!F:F,\"HES\",Archives!R:R,A293)","v":0},{"$f":"SUMIFS(Archives!B:B,Archives!F:F,\"PAS\",Archives!R:R,A293)","v":0},{"$f":"SUMIFS(Archives!B:B,Archives!F:F,\"Colo Spé\",Archives!R:R,A293)","v":0},{"$f":"SUMIFS(Archives!G:G,Archives!F:F,\"Colo Spé\",Archives!R:R,A293)","v":0}]
["2017-09-25",{"$f":"SUMIF(Archives!R:R,A294,Archives!R:R)","v":0},{"$f":"SUMIFS(Archives!B:B,Archives!F:F,\"HES\",Archives!R:R,A294)","v":0},{"$f":"SUMIFS(Archives!B:B,Archives!F:F,\"PAS\",Archives!R:R,A294)","v":0},{"$f":"SUMIFS(Archives!B:B,Archives!F:F,\"Colo Spé\",Archives!R:R,A294)","v":0},{"$f":"SUMIFS(Archives!G:G,Archives!F:F,\"Colo Spé\",Archives!R:R,A294)","v":0}]
["2017-09-26",{"$f":"SUMIF(Archives!R:R,A295,Archives!R:R)","v":0},{"$f":"SUMIFS(Archives!B:B,Archives!F:F,\"HES\",Archives!R:R,A295)","v":0},{"$f":"SUMIFS(Archives!B:B,Archives!F:F,\"PAS\",Archives!R:R,A295)","v":0},{"$f":"SUMIFS(Archives!B:B,Archives!F:F,\"Colo Spé\",Archives!R:R,A295)","v":0},{"$f":"SUMIFS(Archives!G:G,Archives!F:F,\"Colo Spé\",Archives!R:R,A295)","v":0}]
["2017-09-27",{"$f":"SUMIF(Archives!R:R,A296,Archives!R:R)","v":0},{"$f":"SUMIFS(Archives!B:B,Archives!F:F,\"HES\",Archives!R:R,A296)","v":0},{"$f":"SUMIFS(Archives!B:B,Archives!F:F,\"PAS\",Archives!R:R,A296)","v":0},{"$f":"SUMIFS(Archives!B:B,Archives!F:F,\"Colo Spé\",Archives!R:R,A296)","v":0},{"$f":"SUMIFS(Archives!G:G,Archives!F:F,\"Colo Spé\",Archives!R:R,A296)","v":0}]
["2017-09-28",{"$f":"SUMIF(Archives!R:R,A297,Archives!R:R)","v":0},{"$f":"SUMIFS(Archives!B:B,Archives!F:F,\"HES\",Archives!R:R,A297)","v":0},{"$f":"SUMIFS(Archives!B:B,Archives!F:F,\"PAS\",Archives!R:R,A297)","v":0},{"$f":"SUMIFS(Archives!B:B,Archives!F:F,\"Colo Spé\",Archives!R:R,A297)","v":0},{"$f":"SUMIFS(Archives!G:G,Archives!F:F,\"Colo Spé\",Archives!R:R,A297)","v":0}]
["2017-09-29",{"$f":"SUMIF(Archives!R:R,A298,Archives!R:R)","v":0},{"$f":"SUMIFS(Archives!B:B,Archives!F:F,\"HES\",Archives!R:R,A298)","v":0},{"$f":"SUMIFS(Archives!B:B,Archives!F:F,\"PAS\",Archives!R:R,A298)","v":0},{"$f":"SUMIFS(Archives!B:B,Archives!F:F,\"Colo Spé\",Archives!R:R,A298)","v":0},{"$f":"SUMIFS(Archives!G:G,Archives!F:F,\"Colo Spé\",Archives!R:R,A298)","v":0}]
["2017-09-30",{"$f":"SUMIF(Archives!R:R,A299,Archives!R:R)","v":0},{"$f":"SUMIFS(Archives!B:B,Archives!F:F,\"HES\",Archives!R:R,A299)","v":0},{"$f":"SUMIFS(Archives!B:B,Archives!F:F,\"PAS\",Archives!R:R,A299)","v":0},{"$f":"SUMIFS(Archives!B:B,Archives!F:F,\"Colo Spé\",Archives!R:R,A299)","v":0},{"$f":"SUMIFS(Archives!G:G,Archives!F:F,\"Colo Spé\",Archives!R:R,A299)","v":0}]
["Total Septembre",{"$f":"SUM(B270:B299)","v":0},{"$f":"SUM(C270:C299)","v":0},0,0,0]
[]
["2017-10-01",{"$f":"SUMIF(Archives!R:R,A302,Archives!B:B)","v":0},{"$f":"SUMIFS(Archives!B:B,Archives!F:F,\"HES\",Archives!R:R,A302)","v":0},{"$f":"SUMIFS(Archives!B:B,Archives!F:F,\"PAS\",Archives!R:R,A302)","v":0},{"$f":"SUMIFS(Archives!B:B,Archives!F:F,\"Colo Spé\",Archives!R:R,A302)","v":0},{"$f":"SUMIFS(Archives!G:G,Archives!F:F,\"Colo Spé\",Archives!R:R,A302)","v":0}]
["2017-10-02",{"$f":"SUMIF(Archives!R:R,A303,Archives!B:B)","v":0},{"$f":"SUMIFS(Archives!B:B,Archives!F:F,\"HES\",Archives!R:R,A303)","v":0},{"$f":"SUMIFS(Archives!B:B,Archives!F:F,\"PAS\",Archives!R:R,A303)","v":0},{"$f":"SUMIFS(Archives!B:B,Archives!F:F,\"Colo Spé\",Archives!R:R,A303)","v":0},{"$f":"SUMIFS(Archives!G:G,Archives!F:F,\"Colo Spé\",Archives!R:R,A303)","v":0}]
["2017-10-03",{"$f":"SUMIF(Archives!R:R,A304,Archives!B:B)","v":0},{"$f":"SUMIFS(Archives!B:B,Archives!F:F,\"HES\",Archives!R:R,A304)","v":0},{"$f":"SUMIFS(Archives!B:B,Archives!F:F,\"PAS\",Archives!R:R,A304)","v":0},{"$f":"SUMIFS(Archives!B:B,Archives!F:F,\"Colo Spé\",Archives!R:R,A304)","v":0},{"$f":"SUMIFS(Archives!G:G,Archives!F:F,\"Colo Spé\",Archives!R:R,A304)","v":0}]
["2017-10-04",{"$f":"SUMIF(Archives!R:R,A305,Archives!B:B)","v":0},{"$f":"SUMIFS(Archives!B:B,Archives!F:F,\"HES\",Archives!R:R,A305)","v":0},{"$f":"SUMIFS(Archives!B:B,Archives!F:F,\"PAS\",Archives!R:R,A305)","v":0},{"$f":"SUMIFS(Archives!B:B,Archives!F:F,\"Colo Spé\",Archives!R:R,A305)","v":0},{"$f":"SUMIFS(Archives!G:G,Archives!F:F,\"Colo Spé\",Archives!R:R,A305)","v":0}]
["2017-10-05",{"$f":"SUMIF(Archives!R:R,A306,Archives!B:B)","v":0},{"$f":"SUMIFS(Archives!B:B,Archives!F:F,\"HES\",Archives!R:R,A306)","v":0},{"$f":"SUMIFS(Archives!B:B,Archives!F:F,\"PAS\",Archives!R:R,A306)","v":0},{"$f":"SUMIFS(Archives!B:B,Archives!F:F,\"Colo Spé\",Archives!R:R,A306)","v":0},{"$f":"SUMIFS(Archives!G:G,Archives!F:F,\"Colo Spé\",Archives!R:R,A306)","v":0}]
["2017-10-06",{"$f":"SUMIF(Archives!R:R,A307,Archives!B:B)","v":0},{"$f":"SUMIFS(Archives!B:B,Archives!F:F,\"HES\",Archives!R:R,A307)","v":0},{"$f":"SUMIFS(Archives!B:B,Archives!F:F,\"PAS\",Archives!R:R,A307)","v":0},{"$f":"SUMIFS(Archives!B:B,Archives!F:F,\"Colo Spé\",Archives!R:R,A307)","v":0},{"$f":"SUMIFS(Archives!G:G,Archives!F:F,\"Colo Spé\",Archives!R:R,A307)","v":0}]
["2017-10-07",{"$f":"SUMIF(Archives!R:R,A308,Archives!B:B)","v":0},{"$f":"SUMIFS(Archives!B:B,Archives!F:F,\"HES\",Archives!R:R,A308)","v":0},{"$f":"SUMIFS(Archives!B:B,Archives!F:F,\"PAS\",Archives!R:R,A308)","v":0},{"$f":"SUMIFS(Archives!B:B,Archives!F:F,\"Colo Spé\",Archives!R:R,A308)","v":0},{"$f":"SUMIFS(Archives!G:G,Archives!F:F,\"Colo Spé\",Archives!R:R,A308)","v":0}]
["2017-10-08",{"$f":"SUMIF(Archives!R:R,A309,Archives!B:B)","v":0},{"$f":"SUMIFS(Archives!B:B,Archives!F:F,\"HES\",Archives!R:R,A309)","v":0},{"$f":"SUMIFS(Archives!B:B,Archives!F:F,\"PAS\",Archives!R:R,A309)","v":0},{"$f":"SUMIFS(Archives!B:B,Archives!F:F,\"Colo Spé\",Archives!R:R,A309)","v":0},{"$f":"SUMIFS(Archives!G:G,Archives!F:F,\"Colo Spé\",Archives!R:R,A309)","v":0}]
["2017-10-09",{"$f":"SUMIF(Archives!R:R,A310,Archives!B:B)","v":0},{"$f":"SUMIFS(Archives!B:B,Archives!F:F,\"HES\",Archives!R:R,A310)","v":0},{"$f":"SUMIFS(Archives!B:B,Archives!F:F,\"PAS\",Archives!R:R,A310)","v":0},{"$f":"SUMIFS(Archives!B:B,Archives!F:F,\"Colo Spé\",Archives!R:R,A310)","v":0},{"$f":"SUMIFS(Archives!G:G,Archives!F:F,\"Colo Spé\",Archives!R:R,A310)","v":0}]
["2017-10-10",{"$f":"SUMIF(Archives!R:R,A311,Archives!B:B)","v":0},{"$f":"SUMIFS(Archives!B:B,Archives!F:F,\"HES\",Archives!R:R,A311)","v":0},{"$f":"SUMIFS(Archives!B:B,Archives!F:F,\"PAS\",Archives!R:R,A311)","v":0},{"$f":"SUMIFS(Archives!B:B,Archives!F:F,\"Colo Spé\",Archives!R:R,A311)","v":0},{"$f":"SUMIFS(Archives!G:G,Archives!F:F,\"Colo Spé\",Archives!R:R,A311)","v":0}]
["2017-10-11",{"$f":"SUMIF(Archives!R:R,A312,Archives!B:B)","v":0},{"$f":"SUMIFS(Archives!B:B,Archives!F:F,\"HES\",Archives!R:R,A312)","v":0},{"$f":"SUMIFS(Archives!B:B,Archives!F:F,\"PAS\",Archives!R:R,A312)","v":0},{"$f":"SUMIFS(Archives!B:B,Archives!F:F,\"Colo Spé\",Archives!R:R,A312)","v":0},{"$f":"SUMIFS(Archives!G:G,Archives!F:F,\"Colo Spé\",Archives!R:R,A312)","v":0}]
["2017-10-12",{"$f":"SUMIF(Archives!R:R,A313,Archives!B:B)","v":0},{"$f":"SUMIFS(Archives!B:B,Archives!F:F,\"HES\",Archives!R:R,A313)","v":0},{"$f":"SUMIFS(Archives!B:B,Archives!F:F,\"PAS\",Archives!R:R,A313)","v":0},{"$f":"SUMIFS(Archives!B:B,Archives!F:F,\"Colo Spé\",Archives!R:R,A313)","v":0},{"$f":"SUMIFS(Archives!G:G,Archives!F:F,\"Colo Spé\",Archives!R:R,A313)","v":0}]
["2017-10-13",{"$f":"SUMIF(Archives!R:R,A314,Archives!B:B)","v":0},{"$f":"SUMIFS(Archives!B:B,Archives!F:F,\"HES\",Archives!R:R,A314)","v":0},{"$f":"SUMIFS(Archives!B:B,Archives!F:F,\"PAS\",Archives!R:R,A314)","v":0},{"$f":"SUMIFS(Archives!B:B,Archives!F:F,\"Colo Spé\",Archives!R:R,A314)","v":0},{"$f":"SUMIFS(Archives!G:G,Archives!F:F,\"Colo Spé\",Archives!R:R,A314)","v":0}]
["2017-10-14",{"$f":"SUMIF(Archives!R:R,A315,Archives!B:B)","v":0},{"$f":"SUMIFS(Archives!B:B,Archives!F:F,\"HES\",Archives!R:R,A315)","v":0},{"$f":"SUMIFS(Archives!B:B,Archives!F:F,\"PAS\",Archives!R:R,A315)","v":0},{"$f":"SUMIFS(Archives!B:B,Archives!F:F,\"Colo Spé\",Archives!R:R,A315)","v":0},{"$f":"SUMIFS(Archives!G:G,Archives!F:F,\"Colo Spé\",Archives!R:R,A315)","v":0}]
["2017-10-15",{"$f":"SUMIF(Archives!R:R,A316,Archives!B:B)","v":0},{"$f":"SUMIFS(Archives!B:B,Archives!F:F,\"HES\",Archives!R:R,A316)","v":0},{"$f":"SUMIFS(Archives!B:B,Archives!F:F,\"PAS\",Archives!R:R,A316)","v":0},{"$f":"SUMIFS(Archives!B:B,Archives!F:F,\"Colo Spé\",Archives!R:R,A316)","v":0},{"$f":"SUMIFS(Archives!G:G,Archives!F:F,\"Colo Spé\",Archives!R:R,A316)","v":0}]
["2017-10-16",{"$f":"SUMIF(Archives!R:R,A317,Archives!B:B)","v":0},{"$f":"SUMIFS(Archives!B:B,Archives!F:F,\"HES\",Archives!R:R,A317)","v":0},{"$f":"SUMIFS(Archives!B:B,Archives!F:F,\"PAS\",Archives!R:R,A317)","v":0},{"$f":"SUMIFS(Archives!B:B,Archives!F:F,\"Colo Spé\",Archives!R:R,A317)","v":0},{"$f":"SUMIFS(Archives!G:G,Archives!F:F,\"Colo Spé\",Archives!R:R,A317)","v":0}]
["2017-10-17",{"$f":"SUMIF(Archives!R:R,A318,Archives!B:B)","v":0},{"$f":"SUMIFS(Archives!B:B,Archives!F:F,\"HES\",Archives!R:R,A318)","v":0},{"$f":"SUMIFS(Archives!B:B,Archives!F:F,\"PAS\",Archives!R:R,A318)","v":0},{"$f":"SUMIFS(Archives!B:B,Archives!F:F,\"Colo Spé\",Archives!R:R,A318)","v":0},{"$f":"SUMIFS(Archives!G:G,Archives!F:F,\"Colo Spé\",Archives!R:R,A318)","v":0}]
["2017-10-18",{"$f":"SUMIF(Archives!R:R,A319,Archives!B:B)","v":0},{"$f":"SUMIFS(Archives!B:B,Archives!F:F,\"HES\",Archives!R:R,A319)","v":0},{"$f":"SUMIFS(Archives!B:B,Archives!F:F,\"PAS\",Archives!R:R,A319)","v":0},{"$f":"SUMIFS(Archives!B:B,Archives!F:F,\"Colo Spé\",Archives!R:R,A319)","v":0},{"$f":"SUMIFS(Archives!G:G,Archives!F:F,\"Colo Spé\",Archives!R:R,A319)","v":0}]
["2017-10-19",{"$f":"SUMIF(Archives!R:R,A320,Archives!B:B)","v":0},{"$f":"SUMIFS(Archives!B:B,Archives!F:F,\"HES\",Archives!R:R,A320)","v":0},{"$f":"SUMIFS(Archives!B:B,Archives!F:F,\"PAS\",Archives!R:R,A320)","v":0},{"$f":"SUMIFS(Archives!B:B,Archives!F:F,\"Colo Spé\",Archives!R:R,A320)","v":0},{"$f":"SUMIFS(Archives!G:G,Archives!F:F,\"Colo Spé\",Archives!R:R,A320)","v":0}]
["2017-10-20",{"$f":"SUMIF(Archives!R:R,A321,Archives!B:B)","v":0},{"$f":"SUMIFS(Archives!B:B,Archives!F:F,\"HES\",Archives!R:R,A321)","v":0},{"$f":"SUMIFS(Archives!B:B,Archives!F:F,\"PAS\",Archives!R:R,A321)","v":0},{"$f":"SUMIFS(Archives!B:B,Archives!F:F,\"Colo Spé\",Archives!R:R,A321)","v":0},{"$f":"SUMIFS(Archives!G:G,Archives!F:F,\"Colo Spé\",Archives!R:R,A321)","v":0}]
["2017-10-21",{"$f":"SUMIF(Archives!R:R,A322,Archives!B:B)","v":0},{"$f":"SUMIFS(Archives!B:B,Archives!F:F,\"HES\",Archives!R:R,A322)","v":0},{"$f":"SUMIFS(Archives!B:B,Archives!F:F,\"PAS\",Archives!R:R,A322)","v":0},{"$f":"SUMIFS(Archives!B:B,Archives!F:F,\"Colo Spé\",Archives!R:R,A322)","v":0},{"$f":"SUMIFS(Archives!G:G,Archives!F:F,\"Colo Spé\",Archives!R:R,A322)","v":0}]
["2017-10-22",{"$f":"SUMIF(Archives!R:R,A323,Archives!B:B)","v":0},{"$f":"SUMIFS(Archives!B:B,Archives!F:F,\"HES\",Archives!R:R,A323)","v":0},{"$f":"SUMIFS(Archives!B:B,Archives!F:F,\"PAS\",Archives!R:R,A323)","v":0},{"$f":"SUMIFS(Archives!B:B,Archives!F:F,\"Colo Spé\",Archives!R:R,A323)","v":0},{"$f":"SUMIFS(Archives!G:G,Archives!F:F,\"Colo Spé\",Archives!R:R,A323)","v":0}]
["2017-10-23",{"$f":"SUMIF(Archives!R:R,A324,Archives!B:B)","v":0},{"$f":"SUMIFS(Archives!B:B,Archives!F:F,\"HES\",Archives!R:R,A324)","v":0},{"$f":"SUMIFS(Archives!B:B,Archives!F:F,\"PAS\",Archives!R:R,A324)","v":0},{"$f":"SUMIFS(Archives!B:B,Archives!F:F,\"Colo Spé\",Archives!R:R,A324)","v":0},{"$f":"SUMIFS(Archives!G:G,Archives!F:F,\"Colo Spé\",Archives!R:R,A324)","v":0}]
["2017-10-24",{"$f":"SUMIF(Archives!R:R,A325,Archives!B:B)","v":0},{"$f":"SUMIFS(Archives!B:B,Archives!F:F,\"HES\",Archives!R:R,A325)","v":0},{"$f":"SUMIFS(Archives!B:B,Archives!F:F,\"PAS\",Archives!R:R,A325)","v":0},{"$f":"SUMIFS(Archives!B:B,Archives!F:F,\"Colo Spé\",Archives!R:R,A325)","v":0},{"$f":"SUMIFS(Archives!G:G,Archives!F:F,\"Colo Spé\",Archives!R:R,A325)","v":0}]
["2017-10-25",{"$f":"SUMIF(Archives!R:R,A326,Archives!B:B)","v":0},{"$f":"SUMIFS(Archives!B:B,Archives!F:F,\"HES\",Archives!R:R,A326)","v":0},{"$f":"SUMIFS(Archives!B:B,Archives!F:F,\"PAS\",Archives!R:R,A326)","v":0},{"$f":"SUMIFS(Archives!B:B,Archives!F:F,\"Colo Spé\",Archives!R:R,A326)","v":0},{"$f":"SUMIFS(Archives!G:G,Archives!F:F,\"Colo Spé\",Archives!R:R,A326)","v":0}]
["2017-10-26",{"$f":"SUMIF(Archives!R:R,A327,Archives!B:B)","v":0},{"$f":"SUMIFS(Archives!B:B,Archives!F:F,\"HES\",Archives!R:R,A327)","v":0},{"$f":"SUMIFS(Archives!B:B,Archives!F:F,\"PAS\",Archives!R:R,A327)","v":0},{"$f":"SUMIFS(Archives!B:B,Archives!F:F,\"Colo Spé\",Archives!R:R,A327)","v":0},{"$f":"SUMIFS(Archives!G:G,Archives!F:F,\"Colo Spé\",Archives!R:R,A327)","v":0}]
["2017-10-27",{"$f":"SUMIF(Archives!R:R,A328,Archives!B:B)","v":0},{"$f":"SUMIFS(Archives!B:B,Archives!F:F,\"HES\",Archives!R:R,A328)","v":0},{"$f":"SUMIFS(Archives!B:B,Archives!F:F,\"PAS\",Archives!R:R,A328)","v":0},{"$f":"SUMIFS(Archives!B:B,Archives!F:F,\"Colo Spé\",Archives!R:R,A328)","v":0},{"$f":"SUMIFS(Archives!G:G,Archives!F:F,\"Colo Spé\",Archives!R:R,A328)","v":0}]
["2017-10-28",{"$f":"SUMIF(Archives!R:R,A329,Archives!B:B)","v":0},{"$f":"SUMIFS(Archives!B:B,Archives!F:F,\"HES\",Archives!R:R,A329)","v":0},{"$f":"SUMIFS(Archives!B:B,Archives!F:F,\"PAS\",Archives!R:R,A329)","v":0},{"$f":"SUMIFS(Archives!B:B,Archives!F:F,\"Colo Spé\",Archives!R:R,A329)","v":0},{"$f":"SUMIFS(Archives!G:G,Archives!F:F,\"Colo Spé\",Archives!R:R,A329)","v":0}]
["2017-10-29",{"$f":"SUMIF(Archives!R:R,A330,Archives!B:B)","v":0},{"$f":"SUMIFS(Archives!B:B,Archives!F:F,\"HES\",Archives!R:R,A330)","v":0},{"$f":"SUMIFS(Archives!B:B,Archives!F:F,\"PAS\",Archives!R:R,A330)","v":0},{"$f":"SUMIFS(Archives!B:B,Archives!F:F,\"Colo Spé\",Archives!R:R,A330)","v":0},{"$f":"SUMIFS(Archives!G:G,Archives!F:F,\"Colo Spé\",Archives!R:R,A330)","v":0}]
["2017-10-30",{"$f":"SUMIF(Archives!R:R,A331,Archives!B:B)","v":0},{"$f":"SUMIFS(Archives!B:B,Archives!F:F,\"HES\",Archives!R:R,A331)","v":0},{"$f":"SUMIFS(Archives!B:B,Archives!F:F,\"PAS\",Archives!R:R,A331)","v":0},{"$f":"SUMIFS(Archives!B:B,Archives!F:F,\"Colo Spé\",Archives!R:R,A331)","v":0},{"$f":"SUMIFS(Archives!G:G,Archives!F:F,\"Colo Spé\",Archives!R:R,A331)","v":0}]
["2017-10-31",{"$f":"SUMIF(Archives!R:R,A332,Archives!B:B)","v":0},{"$f":"SUMIFS(Archives!B:B,Archives!F:F,\"HES\",Archives!R:R,A332)","v":0},{"$f":"SUMIFS(Archives!B:B,Archives!F:F,\"PAS\",Archives!R:R,A332)","v":0},{"$f":"SUMIFS(Archives!B:B,Archives!F:F,\"Colo Spé\",Archives!R:R,A332)","v":0},{"$f":"SUMIFS(Archives!G:G,Archives!F:F,\"Colo Spé\",Archives!R:R,A332)","v":0}]
["Total Octobre",{"$f":"SUM(B302:B332)","v":0},{"$f":"SUM(C302:C332)","v":0},0,0,0]
[]
["2017-11-01",{"$f":"SUMIF(Archives!R:R,A335,Archives!B:B)","v":0},{"$f":"SUMIFS(Archives!B:B,Archives!F:F,\"HES\",Archives!R:R,A335)","v":0},{"$f":"SUMIFS(Archives!B:B,Archives!F:F,\"PAS\",Archives!R:R,A335)","v":0},{"$f":"SUMIFS(Archives!B:B,Archives!F:F,\"Colo Spé\",Archives!R:R,A335)","v":0},{"$f":"SUMIFS(Archives!G:G,Archives!F:F,\"Colo Spé\",Archives!R:R,A335)","v":0}]
["2017-11-02",{"$f":"SUMIF(Archives!R:R,A336,Archives!B:B)","v":0},{"$f":"SUMIFS(Archives!B:B,Archives!F:F,\"HES\",Archives!R:R,A336)","v":0},{"$f":"SUMIFS(Archives!B:B,Archives!F:F,\"PAS\",Archives!R:R,A336)","v":0},{"$f":"SUMIFS(Archives!B:B,Archives!F:F,\"Colo Spé\",Archives!R:R,A336)","v":0},{"$f":"SUMIFS(Archives!G:G,Archives!F:F,\"Colo Spé\",Archives!R:R,A336)","v":0}]
["2017-11-03",{"$f":"SUMIF(Archives!R:R,A337,Archives!B:B)","v":0},{"$f":"SUMIFS(Archives!B:B,Archives!F:F,\"HES\",Archives!R:R,A337)","v":0},{"$f":"SUMIFS(Archives!B:B,Archives!F:F,\"PAS\",Archives!R:R,A337)","v":0},{"$f":"SUMIFS(Archives!B:B,Archives!F:F,\"Colo Spé\",Archives!R:R,A337)","v":0},{"$f":"SUMIFS(Archives!G:G,Archives!F:F,\"Colo Spé\",Archives!R:R,A337)","v":0}]
["2017-11-04",{"$f":"SUMIF(Archives!R:R,A338,Archives!B:B)","v":0},{"$f":"SUMIFS(Archives!B:B,Archives!F:F,\"HES\",Archives!R:R,A338)","v":0},{"$f":"SUMIFS(Archives!B:B,Archives!F:F,\"PAS\",Archives!R:R,A338)","v":0},{"$f":"SUMIFS(Archives!B:B,Archives!F:F,\"Colo Spé\",Archives!R:R,A338)","v":0},{"$f":"SUMIFS(Archives!G:G,Archives!F:F,\"Colo Spé\",Archives!R:R,A338)","v":0}]
["2017-11-05",{"$f":"SUMIF(Archives!R:R,A339,Archives!B:B)","v":0},{"$f":"SUMIFS(Archives!B:B,Archives!F:F,\"HES\",Archives!R:R,A339)","v":0},{"$f":"SUMIFS(Archives!B:B,Archives!F:F,\"PAS\",Archives!R:R,A339)","v":0},{"$f":"SUMIFS(Archives!B:B,Archives!F:F,\"Colo Spé\",Archives!R:R,A339)","v":0},{"$f":"SUMIFS(Archives!G:G,Archives!F:F,\"Colo Spé\",Archives!R:R,A339)","v":0}]
["2017-11-06",{"$f":"SUMIF(Archives!R:R,A340,Archives!B:B)","v":0},{"$f":"SUMIFS(Archives!B:B,Archives!F:F,\"HES\",Archives!R:R,A340)","v":0},{"$f":"SUMIFS(Archives!B:B,Archives!F:F,\"PAS\",Archives!R:R,A340)","v":0},{"$f":"SUMIFS(Archives!B:B,Archives!F:F,\"Colo Spé\",Archives!R:R,A340)","v":0},{"$f":"SUMIFS(Archives!G:G,Archives!F:F,\"Colo Spé\",Archives!R:R,A340)","v":0}]
["2017-11-07",{"$f":"SUMIF(Archives!R:R,A341,Archives!B:B)","v":0},{"$f":"SUMIFS(Archives!B:B,Archives!F:F,\"HES\",Archives!R:R,A341)","v":0},{"$f":"SUMIFS(Archives!B:B,Archives!F:F,\"PAS\",Archives!R:R,A341)","v":0},{"$f":"SUMIFS(Archives!B:B,Archives!F:F,\"Colo Spé\",Archives!R:R,A341)","v":0},{"$f":"SUMIFS(Archives!G:G,Archives!F:F,\"Colo Spé\",Archives!R:R,A341)","v":0}]
["2017-11-08",{"$f":"SUMIF(Archives!R:R,A342,Archives!B:B)","v":0},{"$f":"SUMIFS(Archives!B:B,Archives!F:F,\"HES\",Archives!R:R,A342)","v":0},{"$f":"SUMIFS(Archives!B:B,Archives!F:F,\"PAS\",Archives!R:R,A342)","v":0},{"$f":"SUMIFS(Archives!B:B,Archives!F:F,\"Colo Spé\",Archives!R:R,A342)","v":0},{"$f":"SUMIFS(Archives!G:G,Archives!F:F,\"Colo Spé\",Archives!R:R,A342)","v":0}]
["2017-11-09",{"$f":"SUMIF(Archives!R:R,A343,Archives!B:B)","v":0},{"$f":"SUMIFS(Archives!B:B,Archives!F:F,\"HES\",Archives!R:R,A343)","v":0},{"$f":"SUMIFS(Archives!B:B,Archives!F:F,\"PAS\",Archives!R:R,A343)","v":0},{"$f":"SUMIFS(Archives!B:B,Archives!F:F,\"Colo Spé\",Archives!R:R,A343)","v":0},{"$f":"SUMIFS(Archives!G:G,Archives!F:F,\"Colo Spé\",Archives!R:R,A343)","v":0}]
["2017-11-10",{"$f":"SUMIF(Archives!R:R,A344,Archives!B:B)","v":0},{"$f":"SUMIFS(Archives!B:B,Archives!F:F,\"HES\",Archives!R:R,A344)","v":0},{"$f":"SUMIFS(Archives!B:B,Archives!F:F,\"PAS\",Archives!R:R,A344)","v":0},{"$f":"SUMIFS(Archives!B:B,Archives!F:F,\"Colo Spé\",Archives!R:R,A344)","v":0},{"$f":"SUMIFS(Archives!G:G,Archives!F:F,\"Colo Spé\",Archives!R:R,A344)","v":0}]
["2017-11-11",{"$f":"SUMIF(Archives!R:R,A345,Archives!B:B)","v":0},{"$f":"SUMIFS(Archives!B:B,Archives!F:F,\"HES\",Archives!R:R,A345)","v":0},{"$f":"SUMIFS(Archives!B:B,Archives!F:F,\"PAS\",Archives!R:R,A345)","v":0},{"$f":"SUMIFS(Archives!B:B,Archives!F:F,\"Colo Spé\",Archives!R:R,A345)","v":0},{"$f":"SUMIFS(Archives!G:G,Archives!F:F,\"Colo Spé\",Archives!R:R,A345)","v":0}]
["2017-11-12",{"$f":"SUMIF(Archives!R:R,A346,Archives!B:B)","v":0},{"$f":"SUMIFS(Archives!B:B,Archives!F:F,\"HES\",Archives!R:R,A346)","v":0},{"$f":"SUMIFS(Archives!B:B,Archives!F:F,\"PAS\",Archives!R:R,A346)","v":0},{"$f":"SUMIFS(Archives!B:B,Archives!F:F,\"Colo Spé\",Archives!R:R,A346)","v":0},{"$f":"SUMIFS(Archives!G:G,Archives!F:F,\"Colo Spé\",Archives!R:R,A346)","v":0}]
["2017-11-13",{"$f":"SUMIF(Archives!R:R,A347,Archives!B:B)","v":0},{"$f":"SUMIFS(Archives!B:B,Archives!F:F,\"HES\",Archives!R:R,A347)","v":0},{"$f":"SUMIFS(Archives!B:B,Archives!F:F,\"PAS\",Archives!R:R,A347)","v":0},{"$f":"SUMIFS(Archives!B:B,Archives!F:F,\"Colo Spé\",Archives!R:R,A347)","v":0},{"$f":"SUMIFS(Archives!G:G,Archives!F:F,\"Colo Spé\",Archives!R:R,A347)","v":0}]
["2017-11-14",{"$f":"SUMIF(Archives!R:R,A348,Archives!B:B)","v":0},{"$f":"SUMIFS(Archives!B:B,Archives!F:F,\"HES\",Archives!R:R,A348)","v":0},{"$f":"SUMIFS(Archives!B:B,Archives!F:F,\"PAS\",Archives!R:R,A348)","v":0},{"$f":"SUMIFS(Archives!B:B,Archives!F:F,\"Colo Spé\",Archives!R:R,A348)","v":0},{"$f":"SUMIFS(Archives!G:G,Archives!F:F,\"Colo Spé\",Archives!R:R,A348)","v":0}]
["2017-11-15",{"$f":"SUMIF(Archives!R:R,A349,Archives!B:B)","v":0},{"$f":"SUMIFS(Archives!B:B,Archives!F:F,\"HES\",Archives!R:R,A349)","v":0},{"$f":"SUMIFS(Archives!B:B,Archives!F:F,\"PAS\",Archives!R:R,A349)","v":0},{"$f":"SUMIFS(Archives!B:B,Archives!F:F,\"Colo Spé\",Archives!R:R,A349)","v":0},{"$f":"SUMIFS(Archives!G:G,Archives!F:F,\"Colo Spé\",Archives!R:R,A349)","v":0}]
["2017-11-16",{"$f":"SUMIF(Archives!R:R,A350,Archives!B:B)","v":0},{"$f":"SUMIFS(Archives!B:B,Archives!F:F,\"HES\",Archives!R:R,A350)","v":0},{"$f":"SUMIFS(Archives!B:B,Archives!F:F,\"PAS\",Archives!R:R,A350)","v":0},{"$f":"SUMIFS(Archives!B:B,Archives!F:F,\"Colo Spé\",Archives!R:R,A350)","v":0},{"$f":"SUMIFS(Archives!G:G,Archives!F:F,\"Colo Spé\",Archives!R:R,A350)","v":0}]
["2017-11-17",{"$f":"SUMIF(Archives!R:R,A351,Archives!B:B)","v":0},{"$f":"SUMIFS(Archives!B:B,Archives!F:F,\"HES\",Archives!R:R,A351)","v":0},{"$f":"SUMIFS(Archives!B:B,Archives!F:F,\"PAS\",Archives!R:R,A351)","v":0},{"$f":"SUMIFS(Archives!B:B,Archives!F:F,\"Colo Spé\",Archives!R:R,A351)","v":0},{"$f":"SUMIFS(Archives!G:G,Archives!F:F,\"Colo Spé\",Archives!R:R,A351)","v":0}]
["2017-11-18",{"$f":"SUMIF(Archives!R:R,A352,Archives!B:B)","v":0},{"$f":"SUMIFS(Archives!B:B,Archives!F:F,\"HES\",Archives!R:R,A352)","v":0},{"$f":"SUMIFS(Archives!B:B,Archives!F:F,\"PAS\",Archives!R:R,A352)","v":0},{"$f":"SUMIFS(Archives!B:B,Archives!F:F,\"Colo Spé\",Archives!R:R,A352)","v":0},{"$f":"SUMIFS(Archives!G:G,Archives!F:F,\"Colo Spé\",Archives!R:R,A352)","v":0}]
["2017-11-19",{"$f":"SUMIF(Archives!R:R,A353,Archives!B:B)","v":0},{"$f":"SUMIFS(Archives!B:B,Archives!F:F,\"HES\",Archives!R:R,A353)","v":0},{"$f":"SUMIFS(Archives!B:B,Archives!F:F,\"PAS\",Archives!R:R,A353)","v":0},{"$f":"SUMIFS(Archives!B:B,Archives!F:F,\"Colo Spé\",Archives!R:R,A353)","v":0},{"$f":"SUMIFS(Archives!G:G,Archives!F:F,\"Colo Spé\",Archives!R:R,A353)","v":0}]
["2017-11-20",{"$f":"SUMIF(Archives!R:R,A354,Archives!B:B)","v":0},{"$f":"SUMIFS(Archives!B:B,Archives!F:F,\"HES\",Archives!R:R,A354)","v":0},{"$f":"SUMIFS(Archives!B:B,Archives!F:F,\"PAS\",Archives!R:R,A354)","v":0},{"$f":"SUMIFS(Archives!B:B,Archives!F:F,\"Colo Spé\",Archives!R:R,A354)","v":0},{"$f":"SUMIFS(Archives!G:G,Archives!F:F,\"Colo Spé\",Archives!R:R,A354)","v":0}]
["2017-11-21",{"$f":"SUMIF(Archives!R:R,A355,Archives!B:B)","v":0},{"$f":"SUMIFS(Archives!B:B,Archives!F:F,\"HES\",Archives!R:R,A355)","v":0},{"$f":"SUMIFS(Archives!B:B,Archives!F:F,\"PAS\",Archives!R:R,A355)","v":0},{"$f":"SUMIFS(Archives!B:B,Archives!F:F,\"Colo Spé\",Archives!R:R,A355)","v":0},{"$f":"SUMIFS(Archives!G:G,Archives!F:F,\"Colo Spé\",Archives!R:R,A355)","v":0}]
["2017-11-22",{"$f":"SUMIF(Archives!R:R,A356,Archives!B:B)","v":0},{"$f":"SUMIFS(Archives!B:B,Archives!F:F,\"HES\",Archives!R:R,A356)","v":0},{"$f":"SUMIFS(Archives!B:B,Archives!F:F,\"PAS\",Archives!R:R,A356)","v":0},{"$f":"SUMIFS(Archives!B:B,Archives!F:F,\"Colo Spé\",Archives!R:R,A356)","v":0},{"$f":"SUMIFS(Archives!G:G,Archives!F:F,\"Colo Spé\",Archives!R:R,A356)","v":0}]
["2017-11-23",{"$f":"SUMIF(Archives!R:R,A357,Archives!B:B)","v":0},{"$f":"SUMIFS(Archives!B:B,Archives!F:F,\"HES\",Archives!R:R,A357)","v":0},{"$f":"SUMIFS(Archives!B:B,Archives!F:F,\"PAS\",Archives!R:R,A357)","v":0},{"$f":"SUMIFS(Archives!B:B,Archives!F:F,\"Colo Spé\",Archives!R:R,A357)","v":0},{"$f":"SUMIFS(Archives!G:G,Archives!F:F,\"Colo Spé\",Archives!R:R,A357)","v":0}]
["2017-11-24",{"$f":"SUMIF(Archives!R:R,A358,Archives!B:B)","v":0},{"$f":"SUMIFS(Archives!B:B,Archives!F:F,\"HES\",Archives!R:R,A358)","v":0},{"$f":"SUMIFS(Archives!B:B,Archives!F:F,\"PAS\",Archives!R:R,A358)","v":0},{"$f":"SUMIFS(Archives!B:B,Archives!F:F,\"Colo Spé\",Archives!R:R,A358)","v":0},{"$f":"SUMIFS(Archives!G:G,Archives!F:F,\"Colo Spé\",Archives!R:R,A358)","v":0}]
["2017-11-25",{"$f":"SUMIF(Archives!R:R,A359,Archives!B:B)","v":0},{"$f":"SUMIFS(Archives!B:B,Archives!F:F,\"HES\",Archives!R:R,A359)","v":0},{"$f":"SUMIFS(Archives!B:B,Archives!F:F,\"PAS\",Archives!R:R,A359)","v":0},{"$f":"SUMIFS(Archives!B:B,Archives!F:F,\"Colo Spé\",Archives!R:R,A359)","v":0},{"$f":"SUMIFS(Archives!G:G,Archives!F:F,\"Colo Spé\",Archives!R:R,A359)","v":0}]
["2017-11-26",{"$f":"SUMIF(Archives!R:R,A360,Archives!B:B)","v":0},{"$f":"SUMIFS(Archives!B:B,Archives!F:F,\"HES\",Archives!R:R,A360)","v":0},{"$f":"SUMIFS(Archives!B:B,Archives!F:F,\"PAS\",Archives!R:R,A360)","v":0},{"$f":"SUMIFS(Archives!B:B,Archives!F:F,\"Colo Spé\",Archives!R:R,A360)","v":0},{"$f":"SUMIFS(Archives!G:G,Archives!F:F,\"Colo Spé\",Archives!R:R,A360)","v":0}]
["2017-11-27",{"$f":"SUMIF(Archives!R:R,A361,Archives!B:B)","v":0},{"$f":"SUMIFS(Archives!B:B,Archives!F:F,\"HES\",Archives!R:R,A361)","v":0},{"$f":"SUMIFS(Archives!B:B,Archives!F:F,\"PAS\",Archives!R:R,A361)","v":0},{"$f":"SUMIFS(Archives!B:B,Archives!F:F,\"Colo Spé\",Archives!R:R,A361)","v":0},{"$f":"SUMIFS(Archives!G:G,Archives!F:F,\"Colo Spé\",Archives!R:R,A361)","v":0}]
["2017-11-28",{"$f":"SUMIF(Archives!R:R,A362,Archives!B:B)","v":0},{"$f":"SUMIFS(Archives!B:B,Archives!F:F,\"HES\",Archives!R:R,A362)","v":0},{"$f":"SUMIFS(Archives!B:B,Archives!F:F,\"PAS\",Archives!R:R,A362)","v":0},{"$f":"SUMIFS(Archives!B:B,Archives!F:F,\"Colo Spé\",Archives!R:R,A362)","v":0},{"$f":"SUMIFS(Archives!G:G,Archives!F:F,\"Colo Spé\",Archives!R:R,A362)","v":0}]
["2017-11-29",{"$f":"SUMIF(Archives!R:R,A363,Archives!B:B)","v":0},{"$f":"SUMIFS(Archives!B:B,Archives!F:F,\"HES\",Archives!R:R,A363)","v":0},{"$f":"SUMIFS(Archives!B:B,Archives!F:F,\"PAS\",Archives!R:R,A363)","v":0},{"$f":"SUMIFS(Archives!B:B,Archives!F:F,\"Colo Spé\",Archives!R:R,A363)","v":0},{"$f":"SUMIFS(Archives!G:G,Archives!F:F,\"Colo Spé\",Archives!R:R,A363)","v":0}]
["2017-11-30",{"$f":"SUMIF(Archives!R:R,A364,Archives!B:B)","v":0},{"$f":"SUMIFS(Archives!B:B,Archives!F:F,\"HES\",Archives!R:R,A364)","v":0},{"$f":"SUMIFS(Archives!B:B,Archives!F:F,\"PAS\",Archives!R:R,A364)","v":0},{"$f":"SUMIFS(Archives!B:B,Archives!F:F,\"Colo Spé\",Archives!R:R,A364)","v":0},{"$f":"SUMIFS(Archives!G:G,Archives!F:F,\"Colo Spé\",Archives!R:R,A364)","v":0}]
["Total Novembre",{"$f":"SUM(B335:B364)","v":0},{"$f":"SUM(C335:C364)","v":0},0,0,0]
[]
["2017-12-01",{"$f":"SUMIF(Archives!R:R,A367,Archives!B:B)","v":0},{"$f":"SUMIFS(Archives!B:B,Archives!F:F,\"HES\",Archives!R:R,A367)","v":0},{"$f":"SUMIFS(Archives!B:B,Archives!F:F,\"PAS\",Archives!R:R,A367)","v":0},{"$f":"SUMIFS(Archives!B:B,Archives!F:F,\"Colo Spé\",Archives!R:R,A367)","v":0},{"$f":"SUMIFS(Archives!G:G,Archives!F:F,\"Colo Spé\",Archives!R:R,A367)","v":0}]
["2017-12-02",{"$f":"SUMIF(Archives!R:R,A368,Archives!B:B)","v":0},{"$f":"SUMIFS(Archives!B:B,Archives!F:F,\"HES\",Archives!R:R,A368)","v":0},{"$f":"SUMIFS(Archives!B:B,Archives!F:F,\"PAS\",Archives!R:R,A368)","v":0},{"$f":"SUMIFS(Archives!B:B,Archives!F:F,\"Colo Spé\",Archives!R:R,A368)","v":0},{"$f":"SUMIFS(Archives!G:G,Archives!F:F,\"Colo Spé\",Archives!R:R,A368)","v":0}]
["2017-12-03",{"$f":"SUMIF(Archives!R:R,A369,Archives!B:B)","v":0},{"$f":"SUMIFS(Archives!B:B,Archives!F:F,\"HES\",Archives!R:R,A369)","v":0},{"$f":"SUMIFS(Archives!B:B,Archives!F:F,\"PAS\",Archives!R:R,A369)","v":0},{"$f":"SUMIFS(Archives!B:B,Archives!F:F,\"Colo Spé\",Archives!R:R,A369)","v":0},{"$f":"SUMIFS(Archives!G:G,Archives!F:F,\"Colo Spé\",Archives!R:R,A369)","v":0}]
["2017-12-04",{"$f":"SUMIF(Archives!R:R,A370,Archives!B:B)","v":0},{"$f":"SUMIFS(Archives!B:B,Archives!F:F,\"HES\",Archives!R:R,A370)","v":0},{"$f":"SUMIFS(Archives!B:B,Archives!F:F,\"PAS\",Archives!R:R,A370)","v":0},{"$f":"SUMIFS(Archives!B:B,Archives!F:F,\"Colo Spé\",Archives!R:R,A370)","v":0},{"$f":"SUMIFS(Archives!G:G,Archives!F:F,\"Colo Spé\",Archives!R:R,A370)","v":0}]
["2017-12-05",{"$f":"SUMIF(Archives!R:R,A371,Archives!B:B)","v":0},{"$f":"SUMIFS(Archives!B:B,Archives!F:F,\"HES\",Archives!R:R,A371)","v":0},{"$f":"SUMIFS(Archives!B:B,Archives!F:F,\"PAS\",Archives!R:R,A371)","v":0},{"$f":"SUMIFS(Archives!B:B,Archives!F:F,\"Colo Spé\",Archives!R:R,A371)","v":0},{"$f":"SUMIFS(Archives!G:G,Archives!F:F,\"Colo Spé\",Archives!R:R,A371)","v":0}]
["2017-12-06",{"$f":"SUMIF(Archives!R:R,A372,Archives!B:B)","v":0},{"$f":"SUMIFS(Archives!B:B,Archives!F:F,\"HES\",Archives!R:R,A372)","v":0},{"$f":"SUMIFS(Archives!B:B,Archives!F:F,\"PAS\",Archives!R:R,A372)","v":0},{"$f":"SUMIFS(Archives!B:B,Archives!F:F,\"Colo Spé\",Archives!R:R,A372)","v":0},{"$f":"SUMIFS(Archives!G:G,Archives!F:F,\"Colo Spé\",Archives!R:R,A372)","v":0}]
["2017-12-07",{"$f":"SUMIF(Archives!R:R,A373,Archives!B:B)","v":0},{"$f":"SUMIFS(Archives!B:B,Archives!F:F,\"HES\",Archives!R:R,A373)","v":0},{"$f":"SUMIFS(Archives!B:B,Archives!F:F,\"PAS\",Archives!R:R,A373)","v":0},{"$f":"SUMIFS(Archives!B:B,Archives!F:F,\"Colo Spé\",Archives!R:R,A373)","v":0},{"$f":"SUMIFS(Archives!G:G,Archives!F:F,\"Colo Spé\",Archives!R:R,A373)","v":0}]
["2017-12-08",{"$f":"SUMIF(Archives!R:R,A374,Archives!B:B)","v":0},{"$f":"SUMIFS(Archives!B:B,Archives!F:F,\"HES\",Archives!R:R,A374)","v":0},{"$f":"SUMIFS(Archives!B:B,Archives!F:F,\"PAS\",Archives!R:R,A374)","v":0},{"$f":"SUMIFS(Archives!B:B,Archives!F:F,\"Colo Spé\",Archives!R:R,A374)","v":0},{"$f":"SUMIFS(Archives!G:G,Archives!F:F,\"Colo Spé\",Archives!R:R,A374)","v":0}]
["2017-12-09",{"$f":"SUMIF(Archives!R:R,A375,Archives!B:B)","v":0},{"$f":"SUMIFS(Archives!B:B,Archives!F:F,\"HES\",Archives!R:R,A375)","v":0},{"$f":"SUMIFS(Archives!B:B,Archives!F:F,\"PAS\",Archives!R:R,A375)","v":0},{"$f":"SUMIFS(Archives!B:B,Archives!F:F,\"Colo Spé\",Archives!R:R,A375)","v":0},{"$f":"SUMIFS(Archives!G:G,Archives!F:F,\"Colo Spé\",Archives!R:R,A375)","v":0}]
["2017-12-10",{"$f":"SUMIF(Archives!R:R,A376,Archives!B:B)","v":0},{"$f":"SUMIFS(Archives!B:B,Archives!F:F,\"HES\",Archives!R:R,A376)","v":0},{"$f":"SUMIFS(Archives!B:B,Archives!F:F,\"PAS\",Archives!R:R,A376)","v":0},{"$f":"SUMIFS(Archives!B:B,Archives!F:F,\"Colo Spé\",Archives!R:R,A376)","v":0},{"$f":"SUMIFS(Archives!G:G,Archives!F:F,\"Colo Spé\",Archives!R:R,A376)","v":0}]
["2017-12-11",{"$f":"SUMIF(Archives!R:R,A377,Archives!B:B)","v":0},{"$f":"SUMIFS(Archives!B:B,Archives!F:F,\"HES\",Archives!R:R,A377)","v":0},{"$f":"SUMIFS(Archives!B:B,Archives!F:F,\"PAS\",Archives!R:R,A377)","v":0},{"$f":"SUMIFS(Archives!B:B,Archives!F:F,\"Colo Spé\",Archives!R:R,A377)","v":0},{"$f":"SUMIFS(Archives!G:G,Archives!F:F,\"Colo Spé\",Archives!R:R,A377)","v":0}]
["2017-12-12",{"$f":"SUMIF(Archives!R:R,A378,Archives!B:B)","v":0},{"$f":"SUMIFS(Archives!B:B,Archives!F:F,\"HES\",Archives!R:R,A378)","v":0},{"$f":"SUMIFS(Archives!B:B,Archives!F:F,\"PAS\",Archives!R:R,A378)","v":0},{"$f":"SUMIFS(Archives!B:B,Archives!F:F,\"Colo Spé\",Archives!R:R,A378)","v":0},{"$f":"SUMIFS(Archives!G:G,Archives!F:F,\"Colo Spé\",Archives!R:R,A378)","v":0}]
["2017-12-13",{"$f":"SUMIF(Archives!R:R,A379,Archives!B:B)","v":0},{"$f":"SUMIFS(Archives!B:B,Archives!F:F,\"HES\",Archives!R:R,A379)","v":0},{"$f":"SUMIFS(Archives!B:B,Archives!F:F,\"PAS\",Archives!R:R,A379)","v":0},{"$f":"SUMIFS(Archives!B:B,Archives!F:F,\"Colo Spé\",Archives!R:R,A379)","v":0},{"$f":"SUMIFS(Archives!G:G,Archives!F:F,\"Colo Spé\",Archives!R:R,A379)","v":0}]
["2017-12-14",{"$f":"SUMIF(Archives!R:R,A380,Archives!B:B)","v":0},{"$f":"SUMIFS(Archives!B:B,Archives!F:F,\"HES\",Archives!R:R,A380)","v":0},{"$f":"SUMIFS(Archives!B:B,Archives!F:F,\"PAS\",Archives!R:R,A380)","v":0},{"$f":"SUMIFS(Archives!B:B,Archives!F:F,\"Colo Spé\",Archives!R:R,A380)","v":0},{"$f":"SUMIFS(Archives!G:G,Archives!F:F,\"Colo Spé\",Archives!R:R,A380)","v":0}]
["2017-12-15",{"$f":"SUMIF(Archives!R:R,A381,Archives!B:B)","v":0},{"$f":"SUMIFS(Archives!B:B,Archives!F:F,\"HES\",Archives!R:R,A381)","v":0},{"$f":"SUMIFS(Archives!B:B,Archives!F:F,\"PAS\",Archives!R:R,A381)","v":0},{"$f":"SUMIFS(Archives!B:B,Archives!F:F,\"Colo Spé\",Archives!R:R,A381)","v":0},{"$f":"SUMIFS(Archives!G:G,Archives!F:F,\"Colo Spé\",Archives!R:R,A381)","v":0}]
["2017-12-16",{"$f":"SUMIF(Archives!R:R,A382,Archives!B:B)","v":0},{"$f":"SUMIFS(Archives!B:B,Archives!F:F,\"HES\",Archives!R:R,A382)","v":0},{"$f":"SUMIFS(Archives!B:B,Archives!F:F,\"PAS\",Archives!R:R,A382)","v":0},{"$f":"SUMIFS(Archives!B:B,Archives!F:F,\"Colo Spé\",Archives!R:R,A382)","v":0},{"$f":"SUMIFS(Archives!G:G,Archives!F:F,\"Colo Spé\",Archives!R:R,A382)","v":0}]
["2017-12-17",{"$f":"SUMIF(Archives!R:R,A383,Archives!B:B)","v":0},{"$f":"SUMIFS(Archives!B:B,Archives!F:F,\"HES\",Archives!R:R,A383)","v":0},{"$f":"SUMIFS(Archives!B:B,Archives!F:F,\"PAS\",Archives!R:R,A383)","v":0},{"$f":"SUMIFS(Archives!B:B,Archives!F:F,\"Colo Spé\",Archives!R:R,A383)","v":0},{"$f":"SUMIFS(Archives!G:G,Archives!F:F,\"Colo Spé\",Archives!R:R,A383)","v":0}]
["2017-12-18",{"$f":"SUMIF(Archives!R:R,A384,Archives!B:B)","v":0},{"$f":"SUMIFS(Archives!B:B,Archives!F:F,\"HES\",Archives!R:R,A384)","v":0},{"$f":"SUMIFS(Archives!B:B,Archives!F:F,\"PAS\",Archives!R:R,A384)","v":0},{"$f":"SUMIFS(Archives!B:B,Archives!F:F,\"Colo Spé\",Archives!R:R,A384)","v":0},{"$f":"SUMIFS(Archives!G:G,Archives!F:F,\"Colo Spé\",Archives!R:R,A384)","v":0}]
["2017-12-19",{"$f":"SUMIF(Archives!R:R,A385,Archives!B:B)","v":0},{"$f":"SUMIFS(Archives!B:B,Archives!F:F,\"HES\",Archives!R:R,A385)","v":0},{"$f":"SUMIFS(Archives!B:B,Archives!F:F,\"PAS\",Archives!R:R,A385)","v":0},{"$f":"SUMIFS(Archives!B:B,Archives!F:F,\"Colo Spé\",Archives!R:R,A385)","v":0},{"$f":"SUMIFS(Archives!G:G,Archives!F:F,\"Colo Spé\",Archives!R:R,A385)","v":0}]
["2017-12-20",{"$f":"SUMIF(Archives!R:R,A386,Archives!B:B)","v":0},{"$f":"SUMIFS(Archives!B:B,Archives!F:F,\"HES\",Archives!R:R,A386)","v":0},{"$f":"SUMIFS(Archives!B:B,Archives!F:F,\"PAS\",Archives!R:R,A386)","v":0},{"$f":"SUMIFS(Archives!B:B,Archives!F:F,\"Colo Spé\",Archives!R:R,A386)","v":0},{"$f":"SUMIFS(Archives!G:G,Archives!F:F,\"Colo Spé\",Archives!R:R,A386)","v":0}]
["2017-12-21",{"$f":"SUMIF(Archives!R:R,A387,Archives!B:B)","v":0},{"$f":"SUMIFS(Archives!B:B,Archives!F:F,\"HES\",Archives!R:R,A387)","v":0},{"$f":"SUMIFS(Archives!B:B,Archives!F:F,\"PAS\",Archives!R:R,A387)","v":0},{"$f":"SUMIFS(Archives!B:B,Archives!F:F,\"Colo Spé\",Archives!R:R,A387)","v":0},{"$f":"SUMIFS(Archives!G:G,Archives!F:F,\"Colo Spé\",Archives!R:R,A387)","v":0}]
["2017-12-22",{"$f":"SUMIF(Archives!R:R,A388,Archives!B:B)","v":0},{"$f":"SUMIFS(Archives!B:B,Archives!F:F,\"HES\",Archives!R:R,A388)","v":0},{"$f":"SUMIFS(Archives!B:B,Archives!F:F,\"PAS\",Archives!R:R,A388)","v":0},{"$f":"SUMIFS(Archives!B:B,Archives!F:F,\"Colo Spé\",Archives!R:R,A388)","v":0},{"$f":"SUMIFS(Archives!G:G,Archives!F:F,\"Colo Spé\",Archives!R:R,A388)","v":0}]
["2017-12-23",{"$f":"SUMIF(Archives!R:R,A389,Archives!B:B)","v":0},{"$f":"SUMIFS(Archives!B:B,Archives!F:F,\"HES\",Archives!R:R,A389)","v":0},{"$f":"SUMIFS(Archives!B:B,Archives!F:F,\"PAS\",Archives!R:R,A389)","v":0},{"$f":"SUMIFS(Archives!B:B,Archives!F:F,\"Colo Spé\",Archives!R:R,A389)","v":0},{"$f":"SUMIFS(Archives!G:G,Archives!F:F,\"Colo Spé\",Archives!R:R,A389)","v":0}]
["2017-12-24",{"$f":"SUMIF(Archives!R:R,A390,Archives!B:B)","v":0},{"$f":"SUMIFS(Archives!B:B,Archives!F:F,\"HES\",Archives!R:R,A390)","v":0},{"$f":"SUMIFS(Archives!B:B,Archives!F:F,\"PAS\",Archives!R:R,A390)","v":0},{"$f":"SUMIFS(Archives!B:B,Archives!F:F,\"Colo Spé\",Archives!R:R,A390)","v":0},{"$f":"SUMIFS(Archives!G:G,Archives!F:F,\"Colo Spé\",Archives!R:R,A390)","v":0}]
["2017-12-25",{"$f":"SUMIF(Archives!R:R,A391,Archives!B:B)","v":0},{"$f":"SUMIFS(Archives!B:B,Archives!F:F,\"HES\",Archives!R:R,A391)","v":0},{"$f":"SUMIFS(Archives!B:B,Archives!F:F,\"PAS\",Archives!R:R,A391)","v":0},{"$f":"SUMIFS(Archives!B:B,Archives!F:F,\"Colo Spé\",Archives!R:R,A391)","v":0},{"$f":"SUMIFS(Archives!G:G,Archives!F:F,\"Colo Spé\",Archives!R:R,A391)","v":0}]
["2017-12-26",{"$f":"SUMIF(Archives!R:R,A392,Archives!B:B)","v":0},{"$f":"SUMIFS(Archives!B:B,Archives!F:F,\"HES\",Archives!R:R,A392)","v":0},{"$f":"SUMIFS(Archives!B:B,Archives!F:F,\"PAS\",Archives!R:R,A392)","v":0},{"$f":"SUMIFS(Archives!B:B,Archives!F:F,\"Colo Spé\",Archives!R:R,A392)","v":0},{"$f":"SUMIFS(Archives!G:G,Archives!F:F,\"Colo Spé\",Archives!R:R,A392)","v":0}]
["2017-12-27",{"$f":"SUMIF(Archives!R:R,A393,Archives!B:B)","v":0},{"$f":"SUMIFS(Archives!B:B,Archives!F:F,\"HES\",Archives!R:R,A393)","v":0},{"$f":"SUMIFS(Archives!B:B,Archives!F:F,\"PAS\",Archives!R:R,A393)","v":0},{"$f":"SUMIFS(Archives!B:B,Archives!F:F,\"Colo Spé\",Archives!R:R,A393)","v":0},{"$f":"SUMIFS(Archives!G:G,Archives!F:F,\"Colo Spé\",Archives!R:R,A393)","v":0}]
["2017-12-28",{"$f":"SUMIF(Archives!R:R,A394,Archives!B:B)","v":0},{"$f":"SUMIFS(Archives!B:B,Archives!F:F,\"HES\",Archives!R:R,A394)","v":0},{"$f":"SUMIFS(Archives!B:B,Archives!F:F,\"PAS\",Archives!R:R,A394)","v":0},{"$f":"SUMIFS(Archives!B:B,Archives!F:F,\"Colo Spé\",Archives!R:R,A394)","v":0},{"$f":"SUMIFS(Archives!G:G,Archives!F:F,\"Colo Spé\",Archives!R:R,A394)","v":0}]
["2017-12-29",{"$f":"SUMIF(Archives!R:R,A395,Archives!B:B)","v":0},{"$f":"SUMIFS(Archives!B:B,Archives!F:F,\"HES\",Archives!R:R,A395)","v":0},{"$f":"SUMIFS(Archives!B:B,Archives!F:F,\"PAS\",Archives!R:R,A395)","v":0},{"$f":"SUMIFS(Archives!B:B,Archives!F:F,\"Colo Spé\",Archives!R:R,A395)","v":0},{"$f":"SUMIFS(Archives!G:G,Archives!F:F,\"Colo Spé\",Archives!R:R,A395)","v":0}]
["2017-12-30",{"$f":"SUMIF(Archives!R:R,A396,Archives!B:B)","v":0},{"$f":"SUMIFS(Archives!B:B,Archives!F:F,\"HES\",Archives!R:R,A396)","v":0},{"$f":"SUMIFS(Archives!B:B,Archives!F:F,\"PAS\",Archives!R:R,A396)","v":0},{"$f":"SUMIFS(Archives!B:B,Archives!F:F,\"Colo Spé\",Archives!R:R,A396)","v":0},{"$f":"SUMIFS(Archives!G:G,Archives!F:F,\"Colo Spé\",Archives!R:R,A396)","v":0}]
["2017-12-31",{"$f":"SUMIF(Archives!R:R,A397,Archives!B:B)","v":0},{"$f":"SUMIFS(Archives!B:B,Archives!F:F,\"HES\",Archives!R:R,A397)","v":0},{"$f":"SUMIFS(Archives!B:B,Archives!F:F,\"PAS\",Archives!R:R,A397)","v":0},{"$f":"SUMIFS(Archives!B:B,Archives!F:F,\"Colo Spé\",Archives!R:R,A397)","v":0},{"$f":"SUMIFS(Archives!G:G,Archives!F:F,\"Colo Spé\",Archives!R:R,A397)","v":0}]
["Total Décembre",{"$f":"SUM(B367:B397)","v":0},{"$f":"SUM(C367:C397)","v":0},0,0,0]

{"sheet":"Liste","index":3,"n_rows":5,"n_cols":11,"rows_kept":5,"cut":false,"hidden":false,"merged":[]}
["Etuve","technicien Colo","Colo",null,"N° de Lot Alcool","N° de Lot Xylene","N° de Lot Hematoxyline","N° de Lot Carbonate","N° de Lot Erythrosine","N° de Lot Safran","N° de Lot Film"]
["Non","Françoise ","HES",null,"17B224007","17C144003",372371,"K46909980","FN1330836","16G0300002",4442208]
["20 min","Fanny","PAS"]
["Macro  ","Emilie","Colo Spé"]
["37°"]